Workbook

Sheet 表紙
A1: 令和5年度 ○○市○○郡小学校陸上教室記録会エントリー
A2: 学校NO
A3: 学校名（自動表示） | B3: =VLOOKUP($B$2,学校データ!$A$1:$H$312,3,FALSE) -> 
A4: 郡市NO
A5: 郡市名（自動表示） | B5: =VLOOKUP(B4,郡市データ!$A$1:$B$19,2,FALSE) -> な し
A6: 学校電話番号 | B6: 027-123-1234 | D6: 男子 | E6: 5
A7: 担当者名 | B7: 群馬 太郎 | D7: 女子 | E7: 6
A8: 担当者メールアドレス | B8: gepra-joho@gepra7.ec-net.jp
A9: 担当者電話番号 | B9: 027-123-4567
B10: エントリー人数
A11: １００ｍ男子小学５年 | B11: =COUNTIF(選手入力!$AM$3:$AM$202,表紙!D11) -> 0 | D11: 002 105
A12: １００ｍ男子小学６年 | B12: =COUNTIF(選手入力!$AM$3:$AM$202,表紙!D12) -> 0 | D12: 002 106
A13: １０００ｍ男子小学５・６年 | B13: =COUNTIF(選手入力!$AM$3:$AM$202,表紙!D13) -> 0 | D13: 007 100
A14: ５０ｍＨ男子小学５・６年 | B14: =COUNTIF(選手入力!$AM$3:$AM$202,表紙!D14) -> 0 | D14: 042 100
A15: １００ｍ男子小学友好レース | B15: =COUNTIF(選手入力!$AM$3:$AM$202,表紙!D15) -> 0 | D15: 002 107
A16: ４×１００ｍ男子小学５・６年 | B16: =IF(リレー入力!I3="",0,1) -> 0 | D16: 601 100
A17: 走高跳男子小学５・６年 | B17: =COUNTIF(選手入力!$AM$3:$AM$202,表紙!D17) -> 0 | D17: 071 100
A18: 走幅跳男子小学５・６年 | B18: =COUNTIF(選手入力!$AM$3:$AM$202,表紙!D18) -> 0 | D18: 073 100
A19: リレーのみ男子 | B19: =COUNTIF(選手入力!$AM$3:$AM$202,表紙!D19) -> 0 | D19: 999 100
A20: ボール投男子小学５・６年 | B20: =COUNTIF(選手入力!$AM$3:$AM$202,表紙!D20) -> 0 | D20: 092 100
A21: １００ｍ女子小学５年 | B21: =COUNTIF(選手入力!$AM$3:$AM$202,表紙!D21) -> 0 | D21: 002 205
A22: １００ｍ女子小学６年 | B22: =COUNTIF(選手入力!$AM$3:$AM$202,表紙!D22) -> 0 | D22: 002 206
A23: ８００ｍ女子小学５・６年 | B23: =COUNTIF(選手入力!$AM$3:$AM$202,表紙!D23) -> 0 | D23: 006 200
A24: ５０ｍＨ女子小学５・６年 | B24: =COUNTIF(選手入力!$AM$3:$AM$202,表紙!D24) -> 0 | D24: 042 200
A25: １００ｍ女子小学友好レース | B25: =COUNTIF(選手入力!$AM$3:$AM$202,表紙!D25) -> 0 | D25: 002 207
A26: ４×１００ｍ女子小学５・６年 | B26: =IF(リレー入力!I43="",0,1) -> 0 | D26: 601 200
A27: 走高跳女子小学５・６年 | B27: =COUNTIF(選手入力!$AM$3:$AM$202,表紙!D27) -> 0 | D27: 071 200
A28: 走幅跳女子小学５・６年 | B28: =COUNTIF(選手入力!$AM$3:$AM$202,表紙!D28) -> 0 | D28: 073 200
A29: ボール投女子小学５・６年 | B29: =COUNTIF(選手入力!$AM$3:$AM$202,表紙!D29) -> 0 | D29: 092 200
A30: リレーのみ女子 | B30: =COUNTIF(選手入力!$AM$3:$AM$202,表紙!D30) -> 0 | D30: 999 200
A32: 以下処理用
A33: 選手初期NO | B33: =VLOOKUP($B$2,学校データ!$A$1:$H$312,7,FALSE) -> 
A34: リレー初期NO | B34: =VLOOKUP($B$2,学校データ!$A$1:$H$312,8,FALSE) -> 

Sheet 選手入力
A1: =CONCATENATE(表紙!B3,"チーム選手入力") ->  | H1: 友好・リレーのみもこちらに | I1: 申込みタイム（各位ずつ記入）
A2: 選手NO | B2: 漢字氏名 | C2: ﾖﾐｶﾞﾅ | D2: 学年 | E2: 性別 | F2: 学校NO（自動表示） | G2: 学校名（自動表示） | H2: 種目1 | I2: 分 | K2: 秒・ｍ | L2: 1/10 | M2: 1/100・ｃｍ | X2: DB | Y2: N1 | Z2: N2 | AA2: SX | AB2: KC | AC2: MC | AD2: TL | AE2: WT | AF2: ZK | AG2: S1 | AH2: S2 | AI2: S3 | AJ2: S4
A3: 1 | F3: =IF(B3="","",表紙!$B$2) ->  | G3: =IF(B3="","",VLOOKUP(F3,学校データ!A:D,4,FALSE)) ->  | O3: =IF(I3="",0,I3) -> 0 | P3: =IF(J3="",0,J3) -> 0 | Q3: =IF(K3="",0,K3) -> 0 | R3: =IF(L3="",0,L3) -> 0 | S3: =IF(M3="",0,M3) -> 0 | T3: =CONCATENATE("00",O3,P3,Q3,R3,S3) -> 0000000 | U3: =IF(B3="","",VLOOKUP(H3,競技データ!$B$21:$C$29,2,FALSE)) ->  | V3: =IF(B3="","",IF(H3="100ｍ",CONCATENATE("0",D3),IF(H3="友好100ｍ","07","00"))) ->  | X3: =IF(B3="","",表紙!$B$33+選手入力!A3) ->  | Y3: =IF(B3="","",B3 & "(" &D3&")") ->  | Z3: =IF(B3="","",C3) ->  | AA3: =IF(E3="","",IF(E3="男子",1,2)) ->  | AB3: =IF(B3="","",表紙!$B$4) ->  | AC3: =IF(B3="","",F3) ->  | AF3: =IF(B3="","",X3) ->  | AG3: =IF(B3="","",IF(H3="リレーのみ","R99900",CONCATENATE(U3,V3," ",T3))) ->  | AK3: =IF(AG3="","",RIGHT(LEFT(AG3,4),3)) ->  | AL3: =IF(AG3="","",RIGHT(LEFT(AG3,6),2)) ->  | AM3: =IF(AG3="","",CONCATENATE(AK3," ",AA3,AL3)) -> 
A4: 2 | F4: =IF(B4="","",表紙!$B$2) ->  | G4: =IF(B4="","",VLOOKUP(F4,学校データ!A:D,4,FALSE)) ->  | O4: =IF(I4="",0,I4) -> 0 | P4: 0 | Q4: 0 | R4: 0 | S4: 0 | T4: =CONCATENATE("00",O4,P4,Q4,R4,S4) -> 0000000 | U4: =IF(B4="","",VLOOKUP(H4,競技データ!$B$21:$C$29,2,FALSE)) ->  | V4: =IF(B4="","",IF(H4="100ｍ",CONCATENATE("0",D4),IF(H4="友好100ｍ","07","00"))) ->  | X4: =IF(B4="","",表紙!$B$33+選手入力!A4) ->  | Y4: =IF(B4="","",B4 & "(" &D4&")") ->  | AB4: =IF(B4="","",表紙!$B$4) ->  | AG4: =IF(B4="","",IF(H4="リレーのみ","R99900",CONCATENATE(U4,V4," ",T4))) ->  | AK4: =IF(AG4="","",RIGHT(LEFT(AG4,4),3)) ->  | AL4: =IF(AG4="","",RIGHT(LEFT(AG4,6),2)) ->  | AM4: =IF(AG4="","",CONCATENATE(AK4," ",AA4,AL4)) -> 
A5: 3 | F5: =IF(B5="","",表紙!$B$2) ->  | G5: =IF(B5="","",VLOOKUP(F5,学校データ!A:D,4,FALSE)) ->  | O5: 0 | P5: 0 | Q5: 0 | R5: 0 | S5: 0 | T5: 0000000 | U5: =IF(B5="","",VLOOKUP(H5,競技データ!$B$21:$C$29,2,FALSE)) ->  | X5: =IF(B5="","",表紙!$B$33+選手入力!A5) ->  | AB5: =IF(B5="","",表紙!$B$4) -> 
A6: 4 | F6: =IF(B6="","",表紙!$B$2) ->  | G6: =IF(B6="","",VLOOKUP(F6,学校データ!A:D,4,FALSE)) ->  | O6: 0 | P6: 0 | Q6: 0 | R6: 0 | S6: 0 | T6: 0000000 | U6: =IF(B6="","",VLOOKUP(H6,競技データ!$B$21:$C$29,2,FALSE)) ->  | X6: =IF(B6="","",表紙!$B$33+選手入力!A6) ->  | AB6: =IF(B6="","",表紙!$B$4) -> 
A7: 5 | F7: =IF(B7="","",表紙!$B$2) ->  | G7: =IF(B7="","",VLOOKUP(F7,学校データ!A:D,4,FALSE)) ->  | O7: 0 | P7: 0 | Q7: 0 | R7: 0 | S7: 0 | T7: 0000000 | U7: =IF(B7="","",VLOOKUP(H7,競技データ!$B$21:$C$29,2,FALSE)) ->  | X7: =IF(B7="","",表紙!$B$33+選手入力!A7) ->  | AB7: =IF(B7="","",表紙!$B$4) -> 
A8: 6 | F8: =IF(B8="","",表紙!$B$2) ->  | G8: =IF(B8="","",VLOOKUP(F8,学校データ!A:D,4,FALSE)) ->  | O8: 0 | P8: 0 | Q8: 0 | R8: 0 | S8: 0 | T8: 0000000 | U8: =IF(B8="","",VLOOKUP(H8,競技データ!$B$21:$C$29,2,FALSE)) ->  | X8: =IF(B8="","",表紙!$B$33+選手入力!A8) ->  | AB8: =IF(B8="","",表紙!$B$4) -> 
A9: 7 | F9: =IF(B9="","",表紙!$B$2) ->  | G9: =IF(B9="","",VLOOKUP(F9,学校データ!A:D,4,FALSE)) ->  | O9: 0 | P9: 0 | Q9: 0 | R9: 0 | S9: 0 | T9: 0000000 | U9: =IF(B9="","",VLOOKUP(H9,競技データ!$B$21:$C$29,2,FALSE)) ->  | X9: =IF(B9="","",表紙!$B$33+選手入力!A9) ->  | AB9: =IF(B9="","",表紙!$B$4) -> 
A10: 8 | F10: =IF(B10="","",表紙!$B$2) ->  | G10: =IF(B10="","",VLOOKUP(F10,学校データ!A:D,4,FALSE)) ->  | O10: 0 | P10: 0 | Q10: 0 | R10: 0 | S10: 0 | T10: 0000000 | U10: =IF(B10="","",VLOOKUP(H10,競技データ!$B$21:$C$29,2,FALSE)) ->  | X10: =IF(B10="","",表紙!$B$33+選手入力!A10) ->  | AB10: =IF(B10="","",表紙!$B$4) -> 
A11: 9 | F11: =IF(B11="","",表紙!$B$2) ->  | G11: =IF(B11="","",VLOOKUP(F11,学校データ!A:D,4,FALSE)) ->  | O11: 0 | P11: 0 | Q11: 0 | R11: 0 | S11: 0 | T11: 0000000 | U11: =IF(B11="","",VLOOKUP(H11,競技データ!$B$21:$C$29,2,FALSE)) ->  | X11: =IF(B11="","",表紙!$B$33+選手入力!A11) ->  | AB11: =IF(B11="","",表紙!$B$4) -> 
A12: 10 | F12: =IF(B12="","",表紙!$B$2) ->  | G12: =IF(B12="","",VLOOKUP(F12,学校データ!A:D,4,FALSE)) ->  | O12: 0 | P12: 0 | Q12: 0 | R12: 0 | S12: 0 | T12: 0000000 | U12: =IF(B12="","",VLOOKUP(H12,競技データ!$B$21:$C$29,2,FALSE)) ->  | X12: =IF(B12="","",表紙!$B$33+選手入力!A12) ->  | AB12: =IF(B12="","",表紙!$B$4) -> 
A13: 11 | F13: =IF(B13="","",表紙!$B$2) ->  | G13: =IF(B13="","",VLOOKUP(F13,学校データ!A:D,4,FALSE)) ->  | O13: 0 | P13: 0 | Q13: 0 | R13: 0 | S13: 0 | T13: 0000000 | U13: =IF(B13="","",VLOOKUP(H13,競技データ!$B$21:$C$29,2,FALSE)) ->  | X13: =IF(B13="","",表紙!$B$33+選手入力!A13) ->  | AB13: =IF(B13="","",表紙!$B$4) -> 
A14: 12 | F14: =IF(B14="","",表紙!$B$2) ->  | G14: =IF(B14="","",VLOOKUP(F14,学校データ!A:D,4,FALSE)) ->  | O14: 0 | P14: 0 | Q14: 0 | R14: 0 | S14: 0 | T14: 0000000 | U14: =IF(B14="","",VLOOKUP(H14,競技データ!$B$21:$C$29,2,FALSE)) ->  | X14: =IF(B14="","",表紙!$B$33+選手入力!A14) ->  | AB14: =IF(B14="","",表紙!$B$4) -> 
A15: 13 | F15: =IF(B15="","",表紙!$B$2) ->  | G15: =IF(B15="","",VLOOKUP(F15,学校データ!A:D,4,FALSE)) ->  | O15: 0 | P15: 0 | Q15: 0 | R15: 0 | S15: 0 | T15: 0000000 | U15: =IF(B15="","",VLOOKUP(H15,競技データ!$B$21:$C$29,2,FALSE)) ->  | X15: =IF(B15="","",表紙!$B$33+選手入力!A15) ->  | AB15: =IF(B15="","",表紙!$B$4) -> 
A16: 14 | F16: =IF(B16="","",表紙!$B$2) ->  | G16: =IF(B16="","",VLOOKUP(F16,学校データ!A:D,4,FALSE)) ->  | O16: 0 | P16: 0 | Q16: 0 | R16: 0 | S16: 0 | T16: 0000000 | U16: =IF(B16="","",VLOOKUP(H16,競技データ!$B$21:$C$29,2,FALSE)) ->  | X16: =IF(B16="","",表紙!$B$33+選手入力!A16) ->  | AB16: =IF(B16="","",表紙!$B$4) -> 
A17: 15 | F17: =IF(B17="","",表紙!$B$2) ->  | G17: =IF(B17="","",VLOOKUP(F17,学校データ!A:D,4,FALSE)) ->  | O17: 0 | P17: 0 | Q17: 0 | R17: 0 | S17: 0 | T17: 0000000 | U17: =IF(B17="","",VLOOKUP(H17,競技データ!$B$21:$C$29,2,FALSE)) ->  | X17: =IF(B17="","",表紙!$B$33+選手入力!A17) ->  | AB17: =IF(B17="","",表紙!$B$4) -> 
A18: 16 | F18: =IF(B18="","",表紙!$B$2) ->  | G18: =IF(B18="","",VLOOKUP(F18,学校データ!A:D,4,FALSE)) ->  | O18: 0 | P18: 0 | Q18: 0 | R18: 0 | S18: 0 | T18: 0000000 | U18: =IF(B18="","",VLOOKUP(H18,競技データ!$B$21:$C$29,2,FALSE)) ->  | X18: =IF(B18="","",表紙!$B$33+選手入力!A18) ->  | AB18: =IF(B18="","",表紙!$B$4) -> 
A19: 17 | F19: =IF(B19="","",表紙!$B$2) ->  | G19: =IF(B19="","",VLOOKUP(F19,学校データ!A:D,4,FALSE)) ->  | O19: 0 | P19: 0 | Q19: 0 | R19: 0 | S19: 0 | T19: 0000000 | U19: =IF(B19="","",VLOOKUP(H19,競技データ!$B$21:$C$29,2,FALSE)) ->  | X19: =IF(B19="","",表紙!$B$33+選手入力!A19) ->  | AB19: =IF(B19="","",表紙!$B$4) -> 
A20: 18 | F20: =IF(B20="","",表紙!$B$2) ->  | G20: =IF(B20="","",VLOOKUP(F20,学校データ!A:D,4,FALSE)) ->  | O20: 0 | P20: 0 | Q20: 0 | R20: 0 | S20: 0 | T20: 0000000 | U20: =IF(B20="","",VLOOKUP(H20,競技データ!$B$21:$C$29,2,FALSE)) ->  | X20: =IF(B20="","",表紙!$B$33+選手入力!A20) ->  | AB20: =IF(B20="","",表紙!$B$4) -> 
A21: 19 | F21: =IF(B21="","",表紙!$B$2) ->  | G21: =IF(B21="","",VLOOKUP(F21,学校データ!A:D,4,FALSE)) ->  | O21: 0 | P21: 0 | Q21: 0 | R21: 0 | S21: 0 | T21: 0000000 | U21: =IF(B21="","",VLOOKUP(H21,競技データ!$B$21:$C$29,2,FALSE)) ->  | X21: =IF(B21="","",表紙!$B$33+選手入力!A21) ->  | AB21: =IF(B21="","",表紙!$B$4) -> 
A22: 20 | F22: =IF(B22="","",表紙!$B$2) ->  | G22: =IF(B22="","",VLOOKUP(F22,学校データ!A:D,4,FALSE)) ->  | O22: 0 | P22: 0 | Q22: 0 | R22: 0 | S22: 0 | T22: 0000000 | U22: =IF(B22="","",VLOOKUP(H22,競技データ!$B$21:$C$29,2,FALSE)) ->  | X22: =IF(B22="","",表紙!$B$33+選手入力!A22) ->  | AB22: =IF(B22="","",表紙!$B$4) -> 
A23: 21 | F23: =IF(B23="","",表紙!$B$2) ->  | G23: =IF(B23="","",VLOOKUP(F23,学校データ!A:D,4,FALSE)) ->  | O23: 0 | P23: 0 | Q23: 0 | R23: 0 | S23: 0 | T23: 0000000 | U23: =IF(B23="","",VLOOKUP(H23,競技データ!$B$21:$C$29,2,FALSE)) ->  | X23: =IF(B23="","",表紙!$B$33+選手入力!A23) ->  | AB23: =IF(B23="","",表紙!$B$4) -> 
A24: 22 | F24: =IF(B24="","",表紙!$B$2) ->  | G24: =IF(B24="","",VLOOKUP(F24,学校データ!A:D,4,FALSE)) ->  | O24: 0 | P24: 0 | Q24: 0 | R24: 0 | S24: 0 | T24: 0000000 | U24: =IF(B24="","",VLOOKUP(H24,競技データ!$B$21:$C$29,2,FALSE)) ->  | X24: =IF(B24="","",表紙!$B$33+選手入力!A24) ->  | AB24: =IF(B24="","",表紙!$B$4) -> 
A25: 23 | F25: =IF(B25="","",表紙!$B$2) ->  | G25: =IF(B25="","",VLOOKUP(F25,学校データ!A:D,4,FALSE)) ->  | O25: 0 | P25: 0 | Q25: 0 | R25: 0 | S25: 0 | T25: 0000000 | U25: =IF(B25="","",VLOOKUP(H25,競技データ!$B$21:$C$29,2,FALSE)) ->  | X25: =IF(B25="","",表紙!$B$33+選手入力!A25) ->  | AB25: =IF(B25="","",表紙!$B$4) -> 
A26: 24 | F26: =IF(B26="","",表紙!$B$2) ->  | G26: =IF(B26="","",VLOOKUP(F26,学校データ!A:D,4,FALSE)) ->  | O26: 0 | P26: 0 | Q26: 0 | R26: 0 | S26: 0 | T26: 0000000 | U26: =IF(B26="","",VLOOKUP(H26,競技データ!$B$21:$C$29,2,FALSE)) ->  | X26: =IF(B26="","",表紙!$B$33+選手入力!A26) ->  | AB26: =IF(B26="","",表紙!$B$4) -> 
A27: 25 | F27: =IF(B27="","",表紙!$B$2) ->  | G27: =IF(B27="","",VLOOKUP(F27,学校データ!A:D,4,FALSE)) ->  | O27: 0 | P27: 0 | Q27: 0 | R27: 0 | S27: 0 | T27: 0000000 | U27: =IF(B27="","",VLOOKUP(H27,競技データ!$B$21:$C$29,2,FALSE)) ->  | X27: =IF(B27="","",表紙!$B$33+選手入力!A27) ->  | AB27: =IF(B27="","",表紙!$B$4) -> 
A28: 26 | F28: =IF(B28="","",表紙!$B$2) ->  | G28: =IF(B28="","",VLOOKUP(F28,学校データ!A:D,4,FALSE)) ->  | O28: 0 | P28: 0 | Q28: 0 | R28: 0 | S28: 0 | T28: 0000000 | U28: =IF(B28="","",VLOOKUP(H28,競技データ!$B$21:$C$29,2,FALSE)) ->  | X28: =IF(B28="","",表紙!$B$33+選手入力!A28) ->  | AB28: =IF(B28="","",表紙!$B$4) -> 
A29: 27 | F29: =IF(B29="","",表紙!$B$2) ->  | G29: =IF(B29="","",VLOOKUP(F29,学校データ!A:D,4,FALSE)) ->  | O29: 0 | P29: 0 | Q29: 0 | R29: 0 | S29: 0 | T29: 0000000 | U29: =IF(B29="","",VLOOKUP(H29,競技データ!$B$21:$C$29,2,FALSE)) ->  | X29: =IF(B29="","",表紙!$B$33+選手入力!A29) ->  | AB29: =IF(B29="","",表紙!$B$4) -> 
A30: 28 | F30: =IF(B30="","",表紙!$B$2) ->  | G30: =IF(B30="","",VLOOKUP(F30,学校データ!A:D,4,FALSE)) ->  | O30: 0 | P30: 0 | Q30: 0 | R30: 0 | S30: 0 | T30: 0000000 | U30: =IF(B30="","",VLOOKUP(H30,競技データ!$B$21:$C$29,2,FALSE)) ->  | X30: =IF(B30="","",表紙!$B$33+選手入力!A30) ->  | AB30: =IF(B30="","",表紙!$B$4) -> 
A31: 29 | F31: =IF(B31="","",表紙!$B$2) ->  | G31: =IF(B31="","",VLOOKUP(F31,学校データ!A:D,4,FALSE)) ->  | O31: 0 | P31: 0 | Q31: 0 | R31: 0 | S31: 0 | T31: 0000000 | U31: =IF(B31="","",VLOOKUP(H31,競技データ!$B$21:$C$29,2,FALSE)) ->  | X31: =IF(B31="","",表紙!$B$33+選手入力!A31) ->  | AB31: =IF(B31="","",表紙!$B$4) -> 
A32: 30 | F32: =IF(B32="","",表紙!$B$2) ->  | G32: =IF(B32="","",VLOOKUP(F32,学校データ!A:D,4,FALSE)) ->  | O32: 0 | P32: 0 | Q32: 0 | R32: 0 | S32: 0 | T32: 0000000 | U32: =IF(B32="","",VLOOKUP(H32,競技データ!$B$21:$C$29,2,FALSE)) ->  | X32: =IF(B32="","",表紙!$B$33+選手入力!A32) ->  | AB32: =IF(B32="","",表紙!$B$4) -> 
A33: 31 | F33: =IF(B33="","",表紙!$B$2) ->  | G33: =IF(B33="","",VLOOKUP(F33,学校データ!A:D,4,FALSE)) ->  | O33: 0 | P33: 0 | Q33: 0 | R33: 0 | S33: 0 | T33: 0000000 | U33: =IF(B33="","",VLOOKUP(H33,競技データ!$B$21:$C$29,2,FALSE)) ->  | X33: =IF(B33="","",表紙!$B$33+選手入力!A33) ->  | AB33: =IF(B33="","",表紙!$B$4) -> 
A34: 32 | F34: =IF(B34="","",表紙!$B$2) ->  | G34: =IF(B34="","",VLOOKUP(F34,学校データ!A:D,4,FALSE)) ->  | O34: 0 | P34: 0 | Q34: 0 | R34: 0 | S34: 0 | T34: 0000000 | U34: =IF(B34="","",VLOOKUP(H34,競技データ!$B$21:$C$29,2,FALSE)) ->  | X34: =IF(B34="","",表紙!$B$33+選手入力!A34) ->  | AB34: =IF(B34="","",表紙!$B$4) -> 
A35: 33 | F35: =IF(B35="","",表紙!$B$2) ->  | G35: =IF(B35="","",VLOOKUP(F35,学校データ!A:D,4,FALSE)) ->  | O35: 0 | P35: 0 | Q35: 0 | R35: 0 | S35: 0 | T35: 0000000 | U35: =IF(B35="","",VLOOKUP(H35,競技データ!$B$21:$C$29,2,FALSE)) ->  | X35: =IF(B35="","",表紙!$B$33+選手入力!A35) ->  | Z35: =IF(B35="","",C35) ->  | AA35: =IF(E35="","",IF(E35="男子",1,2)) ->  | AB35: =IF(B35="","",表紙!$B$4) ->  | AC35: =IF(B35="","",F35) ->  | AF35: =IF(B35="","",X35) -> 
A36: 34 | F36: =IF(B36="","",表紙!$B$2) ->  | G36: =IF(B36="","",VLOOKUP(F36,学校データ!A:D,4,FALSE)) ->  | O36: 0 | P36: 0 | Q36: 0 | R36: 0 | S36: 0 | T36: 0000000 | U36: =IF(B36="","",VLOOKUP(H36,競技データ!$B$21:$C$29,2,FALSE)) ->  | X36: =IF(B36="","",表紙!$B$33+選手入力!A36) ->  | AB36: =IF(B36="","",表紙!$B$4) -> 
A37: 35 | F37: =IF(B37="","",表紙!$B$2) ->  | G37: =IF(B37="","",VLOOKUP(F37,学校データ!A:D,4,FALSE)) ->  | O37: 0 | P37: 0 | Q37: 0 | R37: 0 | S37: 0 | T37: 0000000 | U37: =IF(B37="","",VLOOKUP(H37,競技データ!$B$21:$C$29,2,FALSE)) ->  | X37: =IF(B37="","",表紙!$B$33+選手入力!A37) ->  | AB37: =IF(B37="","",表紙!$B$4) -> 
A38: 36 | F38: =IF(B38="","",表紙!$B$2) ->  | G38: =IF(B38="","",VLOOKUP(F38,学校データ!A:D,4,FALSE)) ->  | O38: 0 | P38: 0 | Q38: 0 | R38: 0 | S38: 0 | T38: 0000000 | U38: =IF(B38="","",VLOOKUP(H38,競技データ!$B$21:$C$29,2,FALSE)) ->  | X38: =IF(B38="","",表紙!$B$33+選手入力!A38) ->  | AB38: =IF(B38="","",表紙!$B$4) -> 
A39: 37 | F39: =IF(B39="","",表紙!$B$2) ->  | G39: =IF(B39="","",VLOOKUP(F39,学校データ!A:D,4,FALSE)) ->  | O39: 0 | P39: 0 | Q39: 0 | R39: 0 | S39: 0 | T39: 0000000 | U39: =IF(B39="","",VLOOKUP(H39,競技データ!$B$21:$C$29,2,FALSE)) ->  | X39: =IF(B39="","",表紙!$B$33+選手入力!A39) ->  | AB39: =IF(B39="","",表紙!$B$4) -> 
A40: 38 | F40: =IF(B40="","",表紙!$B$2) ->  | G40: =IF(B40="","",VLOOKUP(F40,学校データ!A:D,4,FALSE)) ->  | O40: 0 | P40: 0 | Q40: 0 | R40: 0 | S40: 0 | T40: 0000000 | U40: =IF(B40="","",VLOOKUP(H40,競技データ!$B$21:$C$29,2,FALSE)) ->  | X40: =IF(B40="","",表紙!$B$33+選手入力!A40) ->  | AB40: =IF(B40="","",表紙!$B$4) -> 
A41: 39 | F41: =IF(B41="","",表紙!$B$2) ->  | G41: =IF(B41="","",VLOOKUP(F41,学校データ!A:D,4,FALSE)) ->  | O41: 0 | P41: 0 | Q41: 0 | R41: 0 | S41: 0 | T41: 0000000 | U41: =IF(B41="","",VLOOKUP(H41,競技データ!$B$21:$C$29,2,FALSE)) ->  | X41: =IF(B41="","",表紙!$B$33+選手入力!A41) ->  | AB41: =IF(B41="","",表紙!$B$4) -> 
A42: 40 | F42: =IF(B42="","",表紙!$B$2) ->  | G42: =IF(B42="","",VLOOKUP(F42,学校データ!A:D,4,FALSE)) ->  | O42: 0 | P42: 0 | Q42: 0 | R42: 0 | S42: 0 | T42: 0000000 | U42: =IF(B42="","",VLOOKUP(H42,競技データ!$B$21:$C$29,2,FALSE)) ->  | X42: =IF(B42="","",表紙!$B$33+選手入力!A42) ->  | AB42: =IF(B42="","",表紙!$B$4) -> 
A43: 41 | F43: =IF(B43="","",表紙!$B$2) ->  | G43: =IF(B43="","",VLOOKUP(F43,学校データ!A:D,4,FALSE)) ->  | O43: 0 | P43: 0 | Q43: 0 | R43: 0 | S43: 0 | T43: 0000000 | U43: =IF(B43="","",VLOOKUP(H43,競技データ!$B$21:$C$29,2,FALSE)) ->  | X43: =IF(B43="","",表紙!$B$33+選手入力!A43) ->  | AB43: =IF(B43="","",表紙!$B$4) -> 
A44: 42 | F44: =IF(B44="","",表紙!$B$2) ->  | G44: =IF(B44="","",VLOOKUP(F44,学校データ!A:D,4,FALSE)) ->  | O44: 0 | P44: 0 | Q44: 0 | R44: 0 | S44: 0 | T44: 0000000 | U44: =IF(B44="","",VLOOKUP(H44,競技データ!$B$21:$C$29,2,FALSE)) ->  | X44: =IF(B44="","",表紙!$B$33+選手入力!A44) ->  | AB44: =IF(B44="","",表紙!$B$4) -> 
A45: 43 | F45: =IF(B45="","",表紙!$B$2) ->  | G45: =IF(B45="","",VLOOKUP(F45,学校データ!A:D,4,FALSE)) ->  | O45: 0 | P45: 0 | Q45: 0 | R45: 0 | S45: 0 | T45: 0000000 | U45: =IF(B45="","",VLOOKUP(H45,競技データ!$B$21:$C$29,2,FALSE)) ->  | X45: =IF(B45="","",表紙!$B$33+選手入力!A45) ->  | AB45: =IF(B45="","",表紙!$B$4) -> 
A46: 44 | F46: =IF(B46="","",表紙!$B$2) ->  | G46: =IF(B46="","",VLOOKUP(F46,学校データ!A:D,4,FALSE)) ->  | O46: 0 | P46: 0 | Q46: 0 | R46: 0 | S46: 0 | T46: 0000000 | U46: =IF(B46="","",VLOOKUP(H46,競技データ!$B$21:$C$29,2,FALSE)) ->  | X46: =IF(B46="","",表紙!$B$33+選手入力!A46) ->  | AB46: =IF(B46="","",表紙!$B$4) -> 
A47: 45 | F47: =IF(B47="","",表紙!$B$2) ->  | G47: =IF(B47="","",VLOOKUP(F47,学校データ!A:D,4,FALSE)) ->  | O47: 0 | P47: 0 | Q47: 0 | R47: 0 | S47: 0 | T47: 0000000 | U47: =IF(B47="","",VLOOKUP(H47,競技データ!$B$21:$C$29,2,FALSE)) ->  | X47: =IF(B47="","",表紙!$B$33+選手入力!A47) ->  | AB47: =IF(B47="","",表紙!$B$4) -> 
A48: 46 | F48: =IF(B48="","",表紙!$B$2) ->  | G48: =IF(B48="","",VLOOKUP(F48,学校データ!A:D,4,FALSE)) ->  | O48: 0 | P48: 0 | Q48: 0 | R48: 0 | S48: 0 | T48: 0000000 | U48: =IF(B48="","",VLOOKUP(H48,競技データ!$B$21:$C$29,2,FALSE)) ->  | X48: =IF(B48="","",表紙!$B$33+選手入力!A48) ->  | AB48: =IF(B48="","",表紙!$B$4) -> 
A49: 47 | F49: =IF(B49="","",表紙!$B$2) ->  | G49: =IF(B49="","",VLOOKUP(F49,学校データ!A:D,4,FALSE)) ->  | O49: 0 | P49: 0 | Q49: 0 | R49: 0 | S49: 0 | T49: 0000000 | U49: =IF(B49="","",VLOOKUP(H49,競技データ!$B$21:$C$29,2,FALSE)) ->  | X49: =IF(B49="","",表紙!$B$33+選手入力!A49) ->  | AB49: =IF(B49="","",表紙!$B$4) -> 
A50: 48 | F50: =IF(B50="","",表紙!$B$2) ->  | G50: =IF(B50="","",VLOOKUP(F50,学校データ!A:D,4,FALSE)) ->  | O50: 0 | P50: 0 | Q50: 0 | R50: 0 | S50: 0 | T50: 0000000 | U50: =IF(B50="","",VLOOKUP(H50,競技データ!$B$21:$C$29,2,FALSE)) ->  | X50: =IF(B50="","",表紙!$B$33+選手入力!A50) ->  | AB50: =IF(B50="","",表紙!$B$4) -> 
A51: 49 | F51: =IF(B51="","",表紙!$B$2) ->  | G51: =IF(B51="","",VLOOKUP(F51,学校データ!A:D,4,FALSE)) ->  | O51: 0 | P51: 0 | Q51: 0 | R51: 0 | S51: 0 | T51: 0000000 | U51: =IF(B51="","",VLOOKUP(H51,競技データ!$B$21:$C$29,2,FALSE)) ->  | X51: =IF(B51="","",表紙!$B$33+選手入力!A51) ->  | AB51: =IF(B51="","",表紙!$B$4) -> 
A52: 50 | F52: =IF(B52="","",表紙!$B$2) ->  | G52: =IF(B52="","",VLOOKUP(F52,学校データ!A:D,4,FALSE)) ->  | O52: 0 | P52: 0 | Q52: 0 | R52: 0 | S52: 0 | T52: 0000000 | U52: =IF(B52="","",VLOOKUP(H52,競技データ!$B$21:$C$29,2,FALSE)) ->  | X52: =IF(B52="","",表紙!$B$33+選手入力!A52) ->  | AB52: =IF(B52="","",表紙!$B$4) -> 
A53: 51 | F53: =IF(B53="","",表紙!$B$2) ->  | G53: =IF(B53="","",VLOOKUP(F53,学校データ!A:D,4,FALSE)) ->  | O53: 0 | P53: 0 | Q53: 0 | R53: 0 | S53: 0 | T53: 0000000 | U53: =IF(B53="","",VLOOKUP(H53,競技データ!$B$21:$C$29,2,FALSE)) ->  | X53: =IF(B53="","",表紙!$B$33+選手入力!A53) ->  | AB53: =IF(B53="","",表紙!$B$4) -> 
A54: 52 | F54: =IF(B54="","",表紙!$B$2) ->  | G54: =IF(B54="","",VLOOKUP(F54,学校データ!A:D,4,FALSE)) ->  | O54: 0 | P54: 0 | Q54: 0 | R54: 0 | S54: 0 | T54: 0000000 | U54: =IF(B54="","",VLOOKUP(H54,競技データ!$B$21:$C$29,2,FALSE)) ->  | X54: =IF(B54="","",表紙!$B$33+選手入力!A54) ->  | AB54: =IF(B54="","",表紙!$B$4) -> 
A55: 53 | F55: =IF(B55="","",表紙!$B$2) ->  | G55: =IF(B55="","",VLOOKUP(F55,学校データ!A:D,4,FALSE)) ->  | O55: 0 | P55: 0 | Q55: 0 | R55: 0 | S55: 0 | T55: 0000000 | U55: =IF(B55="","",VLOOKUP(H55,競技データ!$B$21:$C$29,2,FALSE)) ->  | X55: =IF(B55="","",表紙!$B$33+選手入力!A55) ->  | AB55: =IF(B55="","",表紙!$B$4) -> 
A56: 54 | F56: =IF(B56="","",表紙!$B$2) ->  | G56: =IF(B56="","",VLOOKUP(F56,学校データ!A:D,4,FALSE)) ->  | O56: 0 | P56: 0 | Q56: 0 | R56: 0 | S56: 0 | T56: 0000000 | U56: =IF(B56="","",VLOOKUP(H56,競技データ!$B$21:$C$29,2,FALSE)) ->  | X56: =IF(B56="","",表紙!$B$33+選手入力!A56) ->  | AB56: =IF(B56="","",表紙!$B$4) -> 
A57: 55 | F57: =IF(B57="","",表紙!$B$2) ->  | G57: =IF(B57="","",VLOOKUP(F57,学校データ!A:D,4,FALSE)) ->  | O57: 0 | P57: 0 | Q57: 0 | R57: 0 | S57: 0 | T57: 0000000 | U57: =IF(B57="","",VLOOKUP(H57,競技データ!$B$21:$C$29,2,FALSE)) ->  | X57: =IF(B57="","",表紙!$B$33+選手入力!A57) ->  | AB57: =IF(B57="","",表紙!$B$4) -> 
A58: 56 | F58: =IF(B58="","",表紙!$B$2) ->  | G58: =IF(B58="","",VLOOKUP(F58,学校データ!A:D,4,FALSE)) ->  | O58: 0 | P58: 0 | Q58: 0 | R58: 0 | S58: 0 | T58: 0000000 | U58: =IF(B58="","",VLOOKUP(H58,競技データ!$B$21:$C$29,2,FALSE)) ->  | X58: =IF(B58="","",表紙!$B$33+選手入力!A58) ->  | AB58: =IF(B58="","",表紙!$B$4) -> 
A59: 57 | F59: =IF(B59="","",表紙!$B$2) ->  | G59: =IF(B59="","",VLOOKUP(F59,学校データ!A:D,4,FALSE)) ->  | O59: 0 | P59: 0 | Q59: 0 | R59: 0 | S59: 0 | T59: 0000000 | U59: =IF(B59="","",VLOOKUP(H59,競技データ!$B$21:$C$29,2,FALSE)) ->  | X59: =IF(B59="","",表紙!$B$33+選手入力!A59) ->  | AB59: =IF(B59="","",表紙!$B$4) -> 
A60: 58 | F60: =IF(B60="","",表紙!$B$2) ->  | G60: =IF(B60="","",VLOOKUP(F60,学校データ!A:D,4,FALSE)) ->  | O60: 0 | P60: 0 | Q60: 0 | R60: 0 | S60: 0 | T60: 0000000 | U60: =IF(B60="","",VLOOKUP(H60,競技データ!$B$21:$C$29,2,FALSE)) ->  | X60: =IF(B60="","",表紙!$B$33+選手入力!A60) ->  | AB60: =IF(B60="","",表紙!$B$4) -> 
A61: 59 | F61: =IF(B61="","",表紙!$B$2) ->  | G61: =IF(B61="","",VLOOKUP(F61,学校データ!A:D,4,FALSE)) ->  | O61: 0 | P61: 0 | Q61: 0 | R61: 0 | S61: 0 | T61: 0000000 | U61: =IF(B61="","",VLOOKUP(H61,競技データ!$B$21:$C$29,2,FALSE)) ->  | X61: =IF(B61="","",表紙!$B$33+選手入力!A61) ->  | AB61: =IF(B61="","",表紙!$B$4) -> 
A62: 60 | F62: =IF(B62="","",表紙!$B$2) ->  | G62: =IF(B62="","",VLOOKUP(F62,学校データ!A:D,4,FALSE)) ->  | O62: 0 | P62: 0 | Q62: 0 | R62: 0 | S62: 0 | T62: 0000000 | U62: =IF(B62="","",VLOOKUP(H62,競技データ!$B$21:$C$29,2,FALSE)) ->  | X62: =IF(B62="","",表紙!$B$33+選手入力!A62) ->  | AB62: =IF(B62="","",表紙!$B$4) -> 
A63: 61 | F63: =IF(B63="","",表紙!$B$2) ->  | G63: =IF(B63="","",VLOOKUP(F63,学校データ!A:D,4,FALSE)) ->  | O63: 0 | P63: 0 | Q63: 0 | R63: 0 | S63: 0 | T63: 0000000 | U63: =IF(B63="","",VLOOKUP(H63,競技データ!$B$21:$C$29,2,FALSE)) ->  | X63: =IF(B63="","",表紙!$B$33+選手入力!A63) ->  | AB63: =IF(B63="","",表紙!$B$4) -> 
A64: 62 | F64: =IF(B64="","",表紙!$B$2) ->  | G64: =IF(B64="","",VLOOKUP(F64,学校データ!A:D,4,FALSE)) ->  | O64: 0 | P64: 0 | Q64: 0 | R64: 0 | S64: 0 | T64: 0000000 | U64: =IF(B64="","",VLOOKUP(H64,競技データ!$B$21:$C$29,2,FALSE)) ->  | X64: =IF(B64="","",表紙!$B$33+選手入力!A64) ->  | AB64: =IF(B64="","",表紙!$B$4) -> 
A65: 63 | F65: =IF(B65="","",表紙!$B$2) ->  | G65: =IF(B65="","",VLOOKUP(F65,学校データ!A:D,4,FALSE)) ->  | O65: 0 | P65: 0 | Q65: 0 | R65: 0 | S65: 0 | T65: 0000000 | U65: =IF(B65="","",VLOOKUP(H65,競技データ!$B$21:$C$29,2,FALSE)) ->  | X65: =IF(B65="","",表紙!$B$33+選手入力!A65) ->  | AB65: =IF(B65="","",表紙!$B$4) -> 
A66: 64 | F66: =IF(B66="","",表紙!$B$2) ->  | G66: =IF(B66="","",VLOOKUP(F66,学校データ!A:D,4,FALSE)) ->  | O66: 0 | P66: 0 | Q66: 0 | R66: 0 | S66: 0 | T66: 0000000 | U66: =IF(B66="","",VLOOKUP(H66,競技データ!$B$21:$C$29,2,FALSE)) ->  | X66: =IF(B66="","",表紙!$B$33+選手入力!A66) ->  | AB66: =IF(B66="","",表紙!$B$4) -> 
A67: 65 | F67: =IF(B67="","",表紙!$B$2) ->  | G67: =IF(B67="","",VLOOKUP(F67,学校データ!A:D,4,FALSE)) ->  | O67: 0 | P67: =IF(J67="",0,J67) -> 0 | Q67: =IF(K67="",0,K67) -> 0 | R67: =IF(L67="",0,L67) -> 0 | S67: =IF(M67="",0,M67) -> 0 | T67: 0000000 | U67: =IF(B67="","",VLOOKUP(H67,競技データ!$B$21:$C$29,2,FALSE)) ->  | X67: =IF(B67="","",表紙!$B$33+選手入力!A67) ->  | Z67: =IF(B67="","",C67) ->  | AA67: =IF(E67="","",IF(E67="男子",1,2)) ->  | AB67: =IF(B67="","",表紙!$B$4) ->  | AC67: =IF(B67="","",F67) ->  | AF67: =IF(B67="","",X67) -> 
A68: 66 | F68: =IF(B68="","",表紙!$B$2) ->  | G68: =IF(B68="","",VLOOKUP(F68,学校データ!A:D,4,FALSE)) ->  | O68: =IF(I68="",0,I68) -> 0 | P68: 0 | Q68: 0 | R68: 0 | S68: 0 | T68: =CONCATENATE("00",O68,P68,Q68,R68,S68) -> 0000000 | U68: =IF(B68="","",VLOOKUP(H68,競技データ!$B$21:$C$29,2,FALSE)) ->  | V68: =IF(B68="","",IF(H68="100ｍ",CONCATENATE("0",D68),IF(H68="友好100ｍ","07","00"))) ->  | X68: =IF(B68="","",表紙!$B$33+選手入力!A68) ->  | Y68: =IF(B68="","",B68 & "(" &D68&")") ->  | AB68: =IF(B68="","",表紙!$B$4) ->  | AG68: =IF(B68="","",IF(H68="リレーのみ","R99900",CONCATENATE(U68,V68," ",T68))) ->  | AK68: =IF(AG68="","",RIGHT(LEFT(AG68,4),3)) ->  | AL68: =IF(AG68="","",RIGHT(LEFT(AG68,6),2)) ->  | AM68: =IF(AG68="","",CONCATENATE(AK68," ",AA68,AL68)) -> 
A69: 67 | F69: =IF(B69="","",表紙!$B$2) ->  | G69: =IF(B69="","",VLOOKUP(F69,学校データ!A:D,4,FALSE)) ->  | O69: 0 | P69: 0 | Q69: 0 | R69: 0 | S69: 0 | T69: 0000000 | U69: =IF(B69="","",VLOOKUP(H69,競技データ!$B$21:$C$29,2,FALSE)) ->  | X69: =IF(B69="","",表紙!$B$33+選手入力!A69) ->  | AB69: =IF(B69="","",表紙!$B$4) -> 
A70: 68 | F70: =IF(B70="","",表紙!$B$2) ->  | G70: =IF(B70="","",VLOOKUP(F70,学校データ!A:D,4,FALSE)) ->  | O70: 0 | P70: 0 | Q70: 0 | R70: 0 | S70: 0 | T70: 0000000 | U70: =IF(B70="","",VLOOKUP(H70,競技データ!$B$21:$C$29,2,FALSE)) ->  | X70: =IF(B70="","",表紙!$B$33+選手入力!A70) ->  | AB70: =IF(B70="","",表紙!$B$4) -> 
A71: 69 | F71: =IF(B71="","",表紙!$B$2) ->  | G71: =IF(B71="","",VLOOKUP(F71,学校データ!A:D,4,FALSE)) ->  | O71: 0 | P71: 0 | Q71: 0 | R71: 0 | S71: 0 | T71: 0000000 | U71: =IF(B71="","",VLOOKUP(H71,競技データ!$B$21:$C$29,2,FALSE)) ->  | X71: =IF(B71="","",表紙!$B$33+選手入力!A71) ->  | AB71: =IF(B71="","",表紙!$B$4) -> 
A72: 70 | F72: =IF(B72="","",表紙!$B$2) ->  | G72: =IF(B72="","",VLOOKUP(F72,学校データ!A:D,4,FALSE)) ->  | O72: 0 | P72: 0 | Q72: 0 | R72: 0 | S72: 0 | T72: 0000000 | U72: =IF(B72="","",VLOOKUP(H72,競技データ!$B$21:$C$29,2,FALSE)) ->  | X72: =IF(B72="","",表紙!$B$33+選手入力!A72) ->  | AB72: =IF(B72="","",表紙!$B$4) -> 
A73: 71 | F73: =IF(B73="","",表紙!$B$2) ->  | G73: =IF(B73="","",VLOOKUP(F73,学校データ!A:D,4,FALSE)) ->  | O73: 0 | P73: 0 | Q73: 0 | R73: 0 | S73: 0 | T73: 0000000 | U73: =IF(B73="","",VLOOKUP(H73,競技データ!$B$21:$C$29,2,FALSE)) ->  | X73: =IF(B73="","",表紙!$B$33+選手入力!A73) ->  | AB73: =IF(B73="","",表紙!$B$4) -> 
A74: 72 | F74: =IF(B74="","",表紙!$B$2) ->  | G74: =IF(B74="","",VLOOKUP(F74,学校データ!A:D,4,FALSE)) ->  | O74: 0 | P74: 0 | Q74: 0 | R74: 0 | S74: 0 | T74: 0000000 | U74: =IF(B74="","",VLOOKUP(H74,競技データ!$B$21:$C$29,2,FALSE)) ->  | X74: =IF(B74="","",表紙!$B$33+選手入力!A74) ->  | AB74: =IF(B74="","",表紙!$B$4) -> 
A75: 73 | F75: =IF(B75="","",表紙!$B$2) ->  | G75: =IF(B75="","",VLOOKUP(F75,学校データ!A:D,4,FALSE)) ->  | O75: 0 | P75: 0 | Q75: 0 | R75: 0 | S75: 0 | T75: 0000000 | U75: =IF(B75="","",VLOOKUP(H75,競技データ!$B$21:$C$29,2,FALSE)) ->  | X75: =IF(B75="","",表紙!$B$33+選手入力!A75) ->  | AB75: =IF(B75="","",表紙!$B$4) -> 
A76: 74 | F76: =IF(B76="","",表紙!$B$2) ->  | G76: =IF(B76="","",VLOOKUP(F76,学校データ!A:D,4,FALSE)) ->  | O76: 0 | P76: 0 | Q76: 0 | R76: 0 | S76: 0 | T76: 0000000 | U76: =IF(B76="","",VLOOKUP(H76,競技データ!$B$21:$C$29,2,FALSE)) ->  | X76: =IF(B76="","",表紙!$B$33+選手入力!A76) ->  | AB76: =IF(B76="","",表紙!$B$4) -> 
A77: 75 | F77: =IF(B77="","",表紙!$B$2) ->  | G77: =IF(B77="","",VLOOKUP(F77,学校データ!A:D,4,FALSE)) ->  | O77: 0 | P77: 0 | Q77: 0 | R77: 0 | S77: 0 | T77: 0000000 | U77: =IF(B77="","",VLOOKUP(H77,競技データ!$B$21:$C$29,2,FALSE)) ->  | X77: =IF(B77="","",表紙!$B$33+選手入力!A77) ->  | AB77: =IF(B77="","",表紙!$B$4) -> 
A78: 76 | F78: =IF(B78="","",表紙!$B$2) ->  | G78: =IF(B78="","",VLOOKUP(F78,学校データ!A:D,4,FALSE)) ->  | O78: 0 | P78: 0 | Q78: 0 | R78: 0 | S78: 0 | T78: 0000000 | U78: =IF(B78="","",VLOOKUP(H78,競技データ!$B$21:$C$29,2,FALSE)) ->  | X78: =IF(B78="","",表紙!$B$33+選手入力!A78) ->  | AB78: =IF(B78="","",表紙!$B$4) -> 
A79: 77 | F79: =IF(B79="","",表紙!$B$2) ->  | G79: =IF(B79="","",VLOOKUP(F79,学校データ!A:D,4,FALSE)) ->  | O79: 0 | P79: 0 | Q79: 0 | R79: 0 | S79: 0 | T79: 0000000 | U79: =IF(B79="","",VLOOKUP(H79,競技データ!$B$21:$C$29,2,FALSE)) ->  | X79: =IF(B79="","",表紙!$B$33+選手入力!A79) ->  | AB79: =IF(B79="","",表紙!$B$4) -> 
A80: 78 | F80: =IF(B80="","",表紙!$B$2) ->  | G80: =IF(B80="","",VLOOKUP(F80,学校データ!A:D,4,FALSE)) ->  | O80: 0 | P80: 0 | Q80: 0 | R80: 0 | S80: 0 | T80: 0000000 | U80: =IF(B80="","",VLOOKUP(H80,競技データ!$B$21:$C$29,2,FALSE)) ->  | X80: =IF(B80="","",表紙!$B$33+選手入力!A80) ->  | AB80: =IF(B80="","",表紙!$B$4) -> 
A81: 79 | F81: =IF(B81="","",表紙!$B$2) ->  | G81: =IF(B81="","",VLOOKUP(F81,学校データ!A:D,4,FALSE)) ->  | O81: 0 | P81: 0 | Q81: 0 | R81: 0 | S81: 0 | T81: 0000000 | U81: =IF(B81="","",VLOOKUP(H81,競技データ!$B$21:$C$29,2,FALSE)) ->  | X81: =IF(B81="","",表紙!$B$33+選手入力!A81) ->  | AB81: =IF(B81="","",表紙!$B$4) -> 
A82: 80 | F82: =IF(B82="","",表紙!$B$2) ->  | G82: =IF(B82="","",VLOOKUP(F82,学校データ!A:D,4,FALSE)) ->  | O82: 0 | P82: 0 | Q82: 0 | R82: 0 | S82: 0 | T82: 0000000 | U82: =IF(B82="","",VLOOKUP(H82,競技データ!$B$21:$C$29,2,FALSE)) ->  | X82: =IF(B82="","",表紙!$B$33+選手入力!A82) ->  | AB82: =IF(B82="","",表紙!$B$4) -> 
A83: 81 | F83: =IF(B83="","",表紙!$B$2) ->  | G83: =IF(B83="","",VLOOKUP(F83,学校データ!A:D,4,FALSE)) ->  | O83: 0 | P83: 0 | Q83: 0 | R83: 0 | S83: 0 | T83: 0000000 | U83: =IF(B83="","",VLOOKUP(H83,競技データ!$B$21:$C$29,2,FALSE)) ->  | X83: =IF(B83="","",表紙!$B$33+選手入力!A83) ->  | AB83: =IF(B83="","",表紙!$B$4) -> 
A84: 82 | F84: =IF(B84="","",表紙!$B$2) ->  | G84: =IF(B84="","",VLOOKUP(F84,学校データ!A:D,4,FALSE)) ->  | O84: 0 | P84: 0 | Q84: 0 | R84: 0 | S84: 0 | T84: 0000000 | U84: =IF(B84="","",VLOOKUP(H84,競技データ!$B$21:$C$29,2,FALSE)) ->  | X84: =IF(B84="","",表紙!$B$33+選手入力!A84) ->  | AB84: =IF(B84="","",表紙!$B$4) -> 
A85: 83 | F85: =IF(B85="","",表紙!$B$2) ->  | G85: =IF(B85="","",VLOOKUP(F85,学校データ!A:D,4,FALSE)) ->  | O85: 0 | P85: 0 | Q85: 0 | R85: 0 | S85: 0 | T85: 0000000 | U85: =IF(B85="","",VLOOKUP(H85,競技データ!$B$21:$C$29,2,FALSE)) ->  | X85: =IF(B85="","",表紙!$B$33+選手入力!A85) ->  | AB85: =IF(B85="","",表紙!$B$4) -> 
A86: 84 | F86: =IF(B86="","",表紙!$B$2) ->  | G86: =IF(B86="","",VLOOKUP(F86,学校データ!A:D,4,FALSE)) ->  | O86: 0 | P86: 0 | Q86: 0 | R86: 0 | S86: 0 | T86: 0000000 | U86: =IF(B86="","",VLOOKUP(H86,競技データ!$B$21:$C$29,2,FALSE)) ->  | X86: =IF(B86="","",表紙!$B$33+選手入力!A86) ->  | AB86: =IF(B86="","",表紙!$B$4) -> 
A87: 85 | F87: =IF(B87="","",表紙!$B$2) ->  | G87: =IF(B87="","",VLOOKUP(F87,学校データ!A:D,4,FALSE)) ->  | O87: 0 | P87: 0 | Q87: 0 | R87: 0 | S87: 0 | T87: 0000000 | U87: =IF(B87="","",VLOOKUP(H87,競技データ!$B$21:$C$29,2,FALSE)) ->  | X87: =IF(B87="","",表紙!$B$33+選手入力!A87) ->  | AB87: =IF(B87="","",表紙!$B$4) -> 
A88: 86 | F88: =IF(B88="","",表紙!$B$2) ->  | G88: =IF(B88="","",VLOOKUP(F88,学校データ!A:D,4,FALSE)) ->  | O88: 0 | P88: 0 | Q88: 0 | R88: 0 | S88: 0 | T88: 0000000 | U88: =IF(B88="","",VLOOKUP(H88,競技データ!$B$21:$C$29,2,FALSE)) ->  | X88: =IF(B88="","",表紙!$B$33+選手入力!A88) ->  | AB88: =IF(B88="","",表紙!$B$4) -> 
A89: 87 | F89: =IF(B89="","",表紙!$B$2) ->  | G89: =IF(B89="","",VLOOKUP(F89,学校データ!A:D,4,FALSE)) ->  | O89: 0 | P89: 0 | Q89: 0 | R89: 0 | S89: 0 | T89: 0000000 | U89: =IF(B89="","",VLOOKUP(H89,競技データ!$B$21:$C$29,2,FALSE)) ->  | X89: =IF(B89="","",表紙!$B$33+選手入力!A89) ->  | AB89: =IF(B89="","",表紙!$B$4) -> 
A90: 88 | F90: =IF(B90="","",表紙!$B$2) ->  | G90: =IF(B90="","",VLOOKUP(F90,学校データ!A:D,4,FALSE)) ->  | O90: 0 | P90: 0 | Q90: 0 | R90: 0 | S90: 0 | T90: 0000000 | U90: =IF(B90="","",VLOOKUP(H90,競技データ!$B$21:$C$29,2,FALSE)) ->  | X90: =IF(B90="","",表紙!$B$33+選手入力!A90) ->  | AB90: =IF(B90="","",表紙!$B$4) -> 
A91: 89 | F91: =IF(B91="","",表紙!$B$2) ->  | G91: =IF(B91="","",VLOOKUP(F91,学校データ!A:D,4,FALSE)) ->  | O91: 0 | P91: 0 | Q91: 0 | R91: 0 | S91: 0 | T91: 0000000 | U91: =IF(B91="","",VLOOKUP(H91,競技データ!$B$21:$C$29,2,FALSE)) ->  | X91: =IF(B91="","",表紙!$B$33+選手入力!A91) ->  | AB91: =IF(B91="","",表紙!$B$4) -> 
A92: 90 | F92: =IF(B92="","",表紙!$B$2) ->  | G92: =IF(B92="","",VLOOKUP(F92,学校データ!A:D,4,FALSE)) ->  | O92: 0 | P92: 0 | Q92: 0 | R92: 0 | S92: 0 | T92: 0000000 | U92: =IF(B92="","",VLOOKUP(H92,競技データ!$B$21:$C$29,2,FALSE)) ->  | X92: =IF(B92="","",表紙!$B$33+選手入力!A92) ->  | AB92: =IF(B92="","",表紙!$B$4) -> 
A93: 91 | F93: =IF(B93="","",表紙!$B$2) ->  | G93: =IF(B93="","",VLOOKUP(F93,学校データ!A:D,4,FALSE)) ->  | O93: 0 | P93: 0 | Q93: 0 | R93: 0 | S93: 0 | T93: 0000000 | U93: =IF(B93="","",VLOOKUP(H93,競技データ!$B$21:$C$29,2,FALSE)) ->  | X93: =IF(B93="","",表紙!$B$33+選手入力!A93) ->  | AB93: =IF(B93="","",表紙!$B$4) -> 
A94: 92 | F94: =IF(B94="","",表紙!$B$2) ->  | G94: =IF(B94="","",VLOOKUP(F94,学校データ!A:D,4,FALSE)) ->  | O94: 0 | P94: 0 | Q94: 0 | R94: 0 | S94: 0 | T94: 0000000 | U94: =IF(B94="","",VLOOKUP(H94,競技データ!$B$21:$C$29,2,FALSE)) ->  | X94: =IF(B94="","",表紙!$B$33+選手入力!A94) ->  | AB94: =IF(B94="","",表紙!$B$4) -> 
A95: 93 | F95: =IF(B95="","",表紙!$B$2) ->  | G95: =IF(B95="","",VLOOKUP(F95,学校データ!A:D,4,FALSE)) ->  | O95: 0 | P95: 0 | Q95: 0 | R95: 0 | S95: 0 | T95: 0000000 | U95: =IF(B95="","",VLOOKUP(H95,競技データ!$B$21:$C$29,2,FALSE)) ->  | X95: =IF(B95="","",表紙!$B$33+選手入力!A95) ->  | AB95: =IF(B95="","",表紙!$B$4) -> 
A96: 94 | F96: =IF(B96="","",表紙!$B$2) ->  | G96: =IF(B96="","",VLOOKUP(F96,学校データ!A:D,4,FALSE)) ->  | O96: 0 | P96: 0 | Q96: 0 | R96: 0 | S96: 0 | T96: 0000000 | U96: =IF(B96="","",VLOOKUP(H96,競技データ!$B$21:$C$29,2,FALSE)) ->  | X96: =IF(B96="","",表紙!$B$33+選手入力!A96) ->  | AB96: =IF(B96="","",表紙!$B$4) -> 
A97: 95 | F97: =IF(B97="","",表紙!$B$2) ->  | G97: =IF(B97="","",VLOOKUP(F97,学校データ!A:D,4,FALSE)) ->  | O97: 0 | P97: 0 | Q97: 0 | R97: 0 | S97: 0 | T97: 0000000 | U97: =IF(B97="","",VLOOKUP(H97,競技データ!$B$21:$C$29,2,FALSE)) ->  | X97: =IF(B97="","",表紙!$B$33+選手入力!A97) ->  | AB97: =IF(B97="","",表紙!$B$4) -> 
A98: 96 | F98: =IF(B98="","",表紙!$B$2) ->  | G98: =IF(B98="","",VLOOKUP(F98,学校データ!A:D,4,FALSE)) ->  | O98: 0 | P98: 0 | Q98: 0 | R98: 0 | S98: 0 | T98: 0000000 | U98: =IF(B98="","",VLOOKUP(H98,競技データ!$B$21:$C$29,2,FALSE)) ->  | X98: =IF(B98="","",表紙!$B$33+選手入力!A98) ->  | AB98: =IF(B98="","",表紙!$B$4) -> 
A99: 97 | F99: =IF(B99="","",表紙!$B$2) ->  | G99: =IF(B99="","",VLOOKUP(F99,学校データ!A:D,4,FALSE)) ->  | O99: 0 | P99: 0 | Q99: 0 | R99: 0 | S99: 0 | T99: 0000000 | U99: =IF(B99="","",VLOOKUP(H99,競技データ!$B$21:$C$29,2,FALSE)) ->  | X99: =IF(B99="","",表紙!$B$33+選手入力!A99) ->  | Z99: =IF(B99="","",C99) ->  | AA99: =IF(E99="","",IF(E99="男子",1,2)) ->  | AB99: =IF(B99="","",表紙!$B$4) ->  | AC99: =IF(B99="","",F99) ->  | AF99: =IF(B99="","",X99) -> 
A100: 98 | F100: =IF(B100="","",表紙!$B$2) ->  | G100: =IF(B100="","",VLOOKUP(F100,学校データ!A:D,4,FALSE)) ->  | O100: 0 | P100: 0 | Q100: 0 | R100: 0 | S100: 0 | T100: 0000000 | U100: =IF(B100="","",VLOOKUP(H100,競技データ!$B$21:$C$29,2,FALSE)) ->  | X100: =IF(B100="","",表紙!$B$33+選手入力!A100) ->  | AB100: =IF(B100="","",表紙!$B$4) -> 
A101: 99 | F101: =IF(B101="","",表紙!$B$2) ->  | G101: =IF(B101="","",VLOOKUP(F101,学校データ!A:D,4,FALSE)) ->  | O101: 0 | P101: 0 | Q101: 0 | R101: 0 | S101: 0 | T101: 0000000 | U101: =IF(B101="","",VLOOKUP(H101,競技データ!$B$21:$C$29,2,FALSE)) ->  | X101: =IF(B101="","",表紙!$B$33+選手入力!A101) ->  | AB101: =IF(B101="","",表紙!$B$4) -> 
A102: 100 | F102: =IF(B102="","",表紙!$B$2) ->  | G102: =IF(B102="","",VLOOKUP(F102,学校データ!A:D,4,FALSE)) ->  | O102: 0 | P102: 0 | Q102: 0 | R102: 0 | S102: 0 | T102: 0000000 | U102: =IF(B102="","",VLOOKUP(H102,競技データ!$B$21:$C$29,2,FALSE)) ->  | X102: =IF(B102="","",表紙!$B$33+選手入力!A102) ->  | AB102: =IF(B102="","",表紙!$B$4) -> 
A103: 101 | F103: =IF(B103="","",表紙!$B$2) ->  | G103: =IF(B103="","",VLOOKUP(F103,学校データ!A:D,4,FALSE)) ->  | O103: 0 | P103: 0 | Q103: 0 | R103: 0 | S103: 0 | T103: 0000000 | U103: =IF(B103="","",VLOOKUP(H103,競技データ!$B$21:$C$29,2,FALSE)) ->  | X103: =IF(B103="","",表紙!$B$33+選手入力!A103) ->  | AB103: =IF(B103="","",表紙!$B$4) -> 
A104: 102 | F104: =IF(B104="","",表紙!$B$2) ->  | G104: =IF(B104="","",VLOOKUP(F104,学校データ!A:D,4,FALSE)) ->  | O104: 0 | P104: 0 | Q104: 0 | R104: 0 | S104: 0 | T104: 0000000 | U104: =IF(B104="","",VLOOKUP(H104,競技データ!$B$21:$C$29,2,FALSE)) ->  | X104: =IF(B104="","",表紙!$B$33+選手入力!A104) ->  | AB104: =IF(B104="","",表紙!$B$4) -> 
A105: 103 | F105: =IF(B105="","",表紙!$B$2) ->  | G105: =IF(B105="","",VLOOKUP(F105,学校データ!A:D,4,FALSE)) ->  | O105: 0 | P105: 0 | Q105: 0 | R105: 0 | S105: 0 | T105: 0000000 | U105: =IF(B105="","",VLOOKUP(H105,競技データ!$B$21:$C$29,2,FALSE)) ->  | X105: =IF(B105="","",表紙!$B$33+選手入力!A105) ->  | AB105: =IF(B105="","",表紙!$B$4) -> 
A106: 104 | F106: =IF(B106="","",表紙!$B$2) ->  | G106: =IF(B106="","",VLOOKUP(F106,学校データ!A:D,4,FALSE)) ->  | O106: 0 | P106: 0 | Q106: 0 | R106: 0 | S106: 0 | T106: 0000000 | U106: =IF(B106="","",VLOOKUP(H106,競技データ!$B$21:$C$29,2,FALSE)) ->  | X106: =IF(B106="","",表紙!$B$33+選手入力!A106) ->  | AB106: =IF(B106="","",表紙!$B$4) -> 
A107: 105 | F107: =IF(B107="","",表紙!$B$2) ->  | G107: =IF(B107="","",VLOOKUP(F107,学校データ!A:D,4,FALSE)) ->  | O107: 0 | P107: 0 | Q107: 0 | R107: 0 | S107: 0 | T107: 0000000 | U107: =IF(B107="","",VLOOKUP(H107,競技データ!$B$21:$C$29,2,FALSE)) ->  | X107: =IF(B107="","",表紙!$B$33+選手入力!A107) ->  | AB107: =IF(B107="","",表紙!$B$4) -> 
A108: 106 | F108: =IF(B108="","",表紙!$B$2) ->  | G108: =IF(B108="","",VLOOKUP(F108,学校データ!A:D,4,FALSE)) ->  | O108: 0 | P108: 0 | Q108: 0 | R108: 0 | S108: 0 | T108: 0000000 | U108: =IF(B108="","",VLOOKUP(H108,競技データ!$B$21:$C$29,2,FALSE)) ->  | X108: =IF(B108="","",表紙!$B$33+選手入力!A108) ->  | AB108: =IF(B108="","",表紙!$B$4) -> 
A109: 107 | F109: =IF(B109="","",表紙!$B$2) ->  | G109: =IF(B109="","",VLOOKUP(F109,学校データ!A:D,4,FALSE)) ->  | O109: 0 | P109: 0 | Q109: 0 | R109: 0 | S109: 0 | T109: 0000000 | U109: =IF(B109="","",VLOOKUP(H109,競技データ!$B$21:$C$29,2,FALSE)) ->  | X109: =IF(B109="","",表紙!$B$33+選手入力!A109) ->  | AB109: =IF(B109="","",表紙!$B$4) -> 
A110: 108 | F110: =IF(B110="","",表紙!$B$2) ->  | G110: =IF(B110="","",VLOOKUP(F110,学校データ!A:D,4,FALSE)) ->  | O110: 0 | P110: 0 | Q110: 0 | R110: 0 | S110: 0 | T110: 0000000 | U110: =IF(B110="","",VLOOKUP(H110,競技データ!$B$21:$C$29,2,FALSE)) ->  | X110: =IF(B110="","",表紙!$B$33+選手入力!A110) ->  | AB110: =IF(B110="","",表紙!$B$4) -> 
A111: 109 | F111: =IF(B111="","",表紙!$B$2) ->  | G111: =IF(B111="","",VLOOKUP(F111,学校データ!A:D,4,FALSE)) ->  | O111: 0 | P111: 0 | Q111: 0 | R111: 0 | S111: 0 | T111: 0000000 | U111: =IF(B111="","",VLOOKUP(H111,競技データ!$B$21:$C$29,2,FALSE)) ->  | X111: =IF(B111="","",表紙!$B$33+選手入力!A111) ->  | AB111: =IF(B111="","",表紙!$B$4) -> 
A112: 110 | F112: =IF(B112="","",表紙!$B$2) ->  | G112: =IF(B112="","",VLOOKUP(F112,学校データ!A:D,4,FALSE)) ->  | O112: 0 | P112: 0 | Q112: 0 | R112: 0 | S112: 0 | T112: 0000000 | U112: =IF(B112="","",VLOOKUP(H112,競技データ!$B$21:$C$29,2,FALSE)) ->  | X112: =IF(B112="","",表紙!$B$33+選手入力!A112) ->  | AB112: =IF(B112="","",表紙!$B$4) -> 
A113: 111 | F113: =IF(B113="","",表紙!$B$2) ->  | G113: =IF(B113="","",VLOOKUP(F113,学校データ!A:D,4,FALSE)) ->  | O113: 0 | P113: 0 | Q113: 0 | R113: 0 | S113: 0 | T113: 0000000 | U113: =IF(B113="","",VLOOKUP(H113,競技データ!$B$21:$C$29,2,FALSE)) ->  | X113: =IF(B113="","",表紙!$B$33+選手入力!A113) ->  | AB113: =IF(B113="","",表紙!$B$4) -> 
A114: 112 | F114: =IF(B114="","",表紙!$B$2) ->  | G114: =IF(B114="","",VLOOKUP(F114,学校データ!A:D,4,FALSE)) ->  | O114: 0 | P114: 0 | Q114: 0 | R114: 0 | S114: 0 | T114: 0000000 | U114: =IF(B114="","",VLOOKUP(H114,競技データ!$B$21:$C$29,2,FALSE)) ->  | X114: =IF(B114="","",表紙!$B$33+選手入力!A114) ->  | AB114: =IF(B114="","",表紙!$B$4) -> 
A115: 113 | F115: =IF(B115="","",表紙!$B$2) ->  | G115: =IF(B115="","",VLOOKUP(F115,学校データ!A:D,4,FALSE)) ->  | O115: 0 | P115: 0 | Q115: 0 | R115: 0 | S115: 0 | T115: 0000000 | U115: =IF(B115="","",VLOOKUP(H115,競技データ!$B$21:$C$29,2,FALSE)) ->  | X115: =IF(B115="","",表紙!$B$33+選手入力!A115) ->  | AB115: =IF(B115="","",表紙!$B$4) -> 
A116: 114 | F116: =IF(B116="","",表紙!$B$2) ->  | G116: =IF(B116="","",VLOOKUP(F116,学校データ!A:D,4,FALSE)) ->  | O116: 0 | P116: 0 | Q116: 0 | R116: 0 | S116: 0 | T116: 0000000 | U116: =IF(B116="","",VLOOKUP(H116,競技データ!$B$21:$C$29,2,FALSE)) ->  | X116: =IF(B116="","",表紙!$B$33+選手入力!A116) ->  | AB116: =IF(B116="","",表紙!$B$4) -> 
A117: 115 | F117: =IF(B117="","",表紙!$B$2) ->  | G117: =IF(B117="","",VLOOKUP(F117,学校データ!A:D,4,FALSE)) ->  | O117: 0 | P117: 0 | Q117: 0 | R117: 0 | S117: 0 | T117: 0000000 | U117: =IF(B117="","",VLOOKUP(H117,競技データ!$B$21:$C$29,2,FALSE)) ->  | X117: =IF(B117="","",表紙!$B$33+選手入力!A117) ->  | AB117: =IF(B117="","",表紙!$B$4) -> 
A118: 116 | F118: =IF(B118="","",表紙!$B$2) ->  | G118: =IF(B118="","",VLOOKUP(F118,学校データ!A:D,4,FALSE)) ->  | O118: 0 | P118: 0 | Q118: 0 | R118: 0 | S118: 0 | T118: 0000000 | U118: =IF(B118="","",VLOOKUP(H118,競技データ!$B$21:$C$29,2,FALSE)) ->  | X118: =IF(B118="","",表紙!$B$33+選手入力!A118) ->  | AB118: =IF(B118="","",表紙!$B$4) -> 
A119: 117 | F119: =IF(B119="","",表紙!$B$2) ->  | G119: =IF(B119="","",VLOOKUP(F119,学校データ!A:D,4,FALSE)) ->  | O119: 0 | P119: 0 | Q119: 0 | R119: 0 | S119: 0 | T119: 0000000 | U119: =IF(B119="","",VLOOKUP(H119,競技データ!$B$21:$C$29,2,FALSE)) ->  | X119: =IF(B119="","",表紙!$B$33+選手入力!A119) ->  | AB119: =IF(B119="","",表紙!$B$4) -> 
A120: 118 | F120: =IF(B120="","",表紙!$B$2) ->  | G120: =IF(B120="","",VLOOKUP(F120,学校データ!A:D,4,FALSE)) ->  | O120: 0 | P120: 0 | Q120: 0 | R120: 0 | S120: 0 | T120: 0000000 | U120: =IF(B120="","",VLOOKUP(H120,競技データ!$B$21:$C$29,2,FALSE)) ->  | X120: =IF(B120="","",表紙!$B$33+選手入力!A120) ->  | AB120: =IF(B120="","",表紙!$B$4) -> 
A121: 119 | F121: =IF(B121="","",表紙!$B$2) ->  | G121: =IF(B121="","",VLOOKUP(F121,学校データ!A:D,4,FALSE)) ->  | O121: 0 | P121: 0 | Q121: 0 | R121: 0 | S121: 0 | T121: 0000000 | U121: =IF(B121="","",VLOOKUP(H121,競技データ!$B$21:$C$29,2,FALSE)) ->  | X121: =IF(B121="","",表紙!$B$33+選手入力!A121) ->  | AB121: =IF(B121="","",表紙!$B$4) -> 
A122: 120 | F122: =IF(B122="","",表紙!$B$2) ->  | G122: =IF(B122="","",VLOOKUP(F122,学校データ!A:D,4,FALSE)) ->  | O122: 0 | P122: 0 | Q122: 0 | R122: 0 | S122: 0 | T122: 0000000 | U122: =IF(B122="","",VLOOKUP(H122,競技データ!$B$21:$C$29,2,FALSE)) ->  | X122: =IF(B122="","",表紙!$B$33+選手入力!A122) ->  | AB122: =IF(B122="","",表紙!$B$4) -> 
A123: 121 | F123: =IF(B123="","",表紙!$B$2) ->  | G123: =IF(B123="","",VLOOKUP(F123,学校データ!A:D,4,FALSE)) ->  | O123: 0 | P123: 0 | Q123: 0 | R123: 0 | S123: 0 | T123: 0000000 | U123: =IF(B123="","",VLOOKUP(H123,競技データ!$B$21:$C$29,2,FALSE)) ->  | X123: =IF(B123="","",表紙!$B$33+選手入力!A123) ->  | AB123: =IF(B123="","",表紙!$B$4) -> 
A124: 122 | F124: =IF(B124="","",表紙!$B$2) ->  | G124: =IF(B124="","",VLOOKUP(F124,学校データ!A:D,4,FALSE)) ->  | O124: 0 | P124: 0 | Q124: 0 | R124: 0 | S124: 0 | T124: 0000000 | U124: =IF(B124="","",VLOOKUP(H124,競技データ!$B$21:$C$29,2,FALSE)) ->  | X124: =IF(B124="","",表紙!$B$33+選手入力!A124) ->  | AB124: =IF(B124="","",表紙!$B$4) -> 
A125: 123 | F125: =IF(B125="","",表紙!$B$2) ->  | G125: =IF(B125="","",VLOOKUP(F125,学校データ!A:D,4,FALSE)) ->  | O125: 0 | P125: 0 | Q125: 0 | R125: 0 | S125: 0 | T125: 0000000 | U125: =IF(B125="","",VLOOKUP(H125,競技データ!$B$21:$C$29,2,FALSE)) ->  | X125: =IF(B125="","",表紙!$B$33+選手入力!A125) ->  | AB125: =IF(B125="","",表紙!$B$4) -> 
A126: 124 | F126: =IF(B126="","",表紙!$B$2) ->  | G126: =IF(B126="","",VLOOKUP(F126,学校データ!A:D,4,FALSE)) ->  | O126: 0 | P126: 0 | Q126: 0 | R126: 0 | S126: 0 | T126: 0000000 | U126: =IF(B126="","",VLOOKUP(H126,競技データ!$B$21:$C$29,2,FALSE)) ->  | X126: =IF(B126="","",表紙!$B$33+選手入力!A126) ->  | AB126: =IF(B126="","",表紙!$B$4) -> 
A127: 125 | F127: =IF(B127="","",表紙!$B$2) ->  | G127: =IF(B127="","",VLOOKUP(F127,学校データ!A:D,4,FALSE)) ->  | O127: 0 | P127: 0 | Q127: 0 | R127: 0 | S127: 0 | T127: 0000000 | U127: =IF(B127="","",VLOOKUP(H127,競技データ!$B$21:$C$29,2,FALSE)) ->  | X127: =IF(B127="","",表紙!$B$33+選手入力!A127) ->  | AB127: =IF(B127="","",表紙!$B$4) -> 
A128: 126 | F128: =IF(B128="","",表紙!$B$2) ->  | G128: =IF(B128="","",VLOOKUP(F128,学校データ!A:D,4,FALSE)) ->  | O128: 0 | P128: 0 | Q128: 0 | R128: 0 | S128: 0 | T128: 0000000 | U128: =IF(B128="","",VLOOKUP(H128,競技データ!$B$21:$C$29,2,FALSE)) ->  | X128: =IF(B128="","",表紙!$B$33+選手入力!A128) ->  | AB128: =IF(B128="","",表紙!$B$4) -> 
A129: 127 | F129: =IF(B129="","",表紙!$B$2) ->  | G129: =IF(B129="","",VLOOKUP(F129,学校データ!A:D,4,FALSE)) ->  | O129: 0 | P129: 0 | Q129: 0 | R129: 0 | S129: 0 | T129: 0000000 | U129: =IF(B129="","",VLOOKUP(H129,競技データ!$B$21:$C$29,2,FALSE)) ->  | X129: =IF(B129="","",表紙!$B$33+選手入力!A129) ->  | AB129: =IF(B129="","",表紙!$B$4) -> 
A130: 128 | F130: =IF(B130="","",表紙!$B$2) ->  | G130: =IF(B130="","",VLOOKUP(F130,学校データ!A:D,4,FALSE)) ->  | O130: 0 | P130: 0 | Q130: 0 | R130: 0 | S130: 0 | T130: 0000000 | U130: =IF(B130="","",VLOOKUP(H130,競技データ!$B$21:$C$29,2,FALSE)) ->  | X130: =IF(B130="","",表紙!$B$33+選手入力!A130) ->  | AB130: =IF(B130="","",表紙!$B$4) -> 
A131: 129 | F131: =IF(B131="","",表紙!$B$2) ->  | G131: =IF(B131="","",VLOOKUP(F131,学校データ!A:D,4,FALSE)) ->  | O131: 0 | P131: =IF(J131="",0,J131) -> 0 | Q131: =IF(K131="",0,K131) -> 0 | R131: =IF(L131="",0,L131) -> 0 | S131: =IF(M131="",0,M131) -> 0 | T131: 0000000 | U131: =IF(B131="","",VLOOKUP(H131,競技データ!$B$21:$C$29,2,FALSE)) ->  | X131: =IF(B131="","",表紙!$B$33+選手入力!A131) ->  | Z131: =IF(B131="","",C131) ->  | AA131: =IF(E131="","",IF(E131="男子",1,2)) ->  | AB131: =IF(B131="","",表紙!$B$4) ->  | AC131: =IF(B131="","",F131) ->  | AF131: =IF(B131="","",X131) -> 
A132: 130 | F132: =IF(B132="","",表紙!$B$2) ->  | G132: =IF(B132="","",VLOOKUP(F132,学校データ!A:D,4,FALSE)) ->  | O132: =IF(I132="",0,I132) -> 0 | P132: 0 | Q132: 0 | R132: 0 | S132: 0 | T132: =CONCATENATE("00",O132,P132,Q132,R132,S132) -> 0000000 | U132: =IF(B132="","",VLOOKUP(H132,競技データ!$B$21:$C$29,2,FALSE)) ->  | V132: =IF(B132="","",IF(H132="100ｍ",CONCATENATE("0",D132),IF(H132="友好100ｍ","07","00"))) ->  | X132: =IF(B132="","",表紙!$B$33+選手入力!A132) ->  | Y132: =IF(B132="","",B132 & "(" &D132&")") ->  | AB132: =IF(B132="","",表紙!$B$4) ->  | AG132: =IF(B132="","",IF(H132="リレーのみ","R99900",CONCATENATE(U132,V132," ",T132))) ->  | AK132: =IF(AG132="","",RIGHT(LEFT(AG132,4),3)) ->  | AL132: =IF(AG132="","",RIGHT(LEFT(AG132,6),2)) ->  | AM132: =IF(AG132="","",CONCATENATE(AK132," ",AA132,AL132)) -> 
A133: 131 | F133: =IF(B133="","",表紙!$B$2) ->  | G133: =IF(B133="","",VLOOKUP(F133,学校データ!A:D,4,FALSE)) ->  | O133: 0 | P133: 0 | Q133: 0 | R133: 0 | S133: 0 | T133: 0000000 | U133: =IF(B133="","",VLOOKUP(H133,競技データ!$B$21:$C$29,2,FALSE)) ->  | X133: =IF(B133="","",表紙!$B$33+選手入力!A133) ->  | AB133: =IF(B133="","",表紙!$B$4) -> 
A134: 132 | F134: =IF(B134="","",表紙!$B$2) ->  | G134: =IF(B134="","",VLOOKUP(F134,学校データ!A:D,4,FALSE)) ->  | O134: 0 | P134: 0 | Q134: 0 | R134: 0 | S134: 0 | T134: 0000000 | U134: =IF(B134="","",VLOOKUP(H134,競技データ!$B$21:$C$29,2,FALSE)) ->  | X134: =IF(B134="","",表紙!$B$33+選手入力!A134) ->  | AB134: =IF(B134="","",表紙!$B$4) -> 
A135: 133 | F135: =IF(B135="","",表紙!$B$2) ->  | G135: =IF(B135="","",VLOOKUP(F135,学校データ!A:D,4,FALSE)) ->  | O135: 0 | P135: 0 | Q135: 0 | R135: 0 | S135: 0 | T135: 0000000 | U135: =IF(B135="","",VLOOKUP(H135,競技データ!$B$21:$C$29,2,FALSE)) ->  | X135: =IF(B135="","",表紙!$B$33+選手入力!A135) ->  | AB135: =IF(B135="","",表紙!$B$4) -> 
A136: 134 | F136: =IF(B136="","",表紙!$B$2) ->  | G136: =IF(B136="","",VLOOKUP(F136,学校データ!A:D,4,FALSE)) ->  | O136: 0 | P136: 0 | Q136: 0 | R136: 0 | S136: 0 | T136: 0000000 | U136: =IF(B136="","",VLOOKUP(H136,競技データ!$B$21:$C$29,2,FALSE)) ->  | X136: =IF(B136="","",表紙!$B$33+選手入力!A136) ->  | AB136: =IF(B136="","",表紙!$B$4) -> 
A137: 135 | F137: =IF(B137="","",表紙!$B$2) ->  | G137: =IF(B137="","",VLOOKUP(F137,学校データ!A:D,4,FALSE)) ->  | O137: 0 | P137: 0 | Q137: 0 | R137: 0 | S137: 0 | T137: 0000000 | U137: =IF(B137="","",VLOOKUP(H137,競技データ!$B$21:$C$29,2,FALSE)) ->  | X137: =IF(B137="","",表紙!$B$33+選手入力!A137) ->  | AB137: =IF(B137="","",表紙!$B$4) -> 
A138: 136 | F138: =IF(B138="","",表紙!$B$2) ->  | G138: =IF(B138="","",VLOOKUP(F138,学校データ!A:D,4,FALSE)) ->  | O138: 0 | P138: 0 | Q138: 0 | R138: 0 | S138: 0 | T138: 0000000 | U138: =IF(B138="","",VLOOKUP(H138,競技データ!$B$21:$C$29,2,FALSE)) ->  | X138: =IF(B138="","",表紙!$B$33+選手入力!A138) ->  | AB138: =IF(B138="","",表紙!$B$4) -> 
A139: 137 | F139: =IF(B139="","",表紙!$B$2) ->  | G139: =IF(B139="","",VLOOKUP(F139,学校データ!A:D,4,FALSE)) ->  | O139: 0 | P139: 0 | Q139: 0 | R139: 0 | S139: 0 | T139: 0000000 | U139: =IF(B139="","",VLOOKUP(H139,競技データ!$B$21:$C$29,2,FALSE)) ->  | X139: =IF(B139="","",表紙!$B$33+選手入力!A139) ->  | AB139: =IF(B139="","",表紙!$B$4) -> 
A140: 138 | F140: =IF(B140="","",表紙!$B$2) ->  | G140: =IF(B140="","",VLOOKUP(F140,学校データ!A:D,4,FALSE)) ->  | O140: 0 | P140: 0 | Q140: 0 | R140: 0 | S140: 0 | T140: 0000000 | U140: =IF(B140="","",VLOOKUP(H140,競技データ!$B$21:$C$29,2,FALSE)) ->  | X140: =IF(B140="","",表紙!$B$33+選手入力!A140) ->  | AB140: =IF(B140="","",表紙!$B$4) -> 
A141: 139 | F141: =IF(B141="","",表紙!$B$2) ->  | G141: =IF(B141="","",VLOOKUP(F141,学校データ!A:D,4,FALSE)) ->  | O141: 0 | P141: 0 | Q141: 0 | R141: 0 | S141: 0 | T141: 0000000 | U141: =IF(B141="","",VLOOKUP(H141,競技データ!$B$21:$C$29,2,FALSE)) ->  | X141: =IF(B141="","",表紙!$B$33+選手入力!A141) ->  | AB141: =IF(B141="","",表紙!$B$4) -> 
A142: 140 | F142: =IF(B142="","",表紙!$B$2) ->  | G142: =IF(B142="","",VLOOKUP(F142,学校データ!A:D,4,FALSE)) ->  | O142: 0 | P142: 0 | Q142: 0 | R142: 0 | S142: 0 | T142: 0000000 | U142: =IF(B142="","",VLOOKUP(H142,競技データ!$B$21:$C$29,2,FALSE)) ->  | X142: =IF(B142="","",表紙!$B$33+選手入力!A142) ->  | AB142: =IF(B142="","",表紙!$B$4) -> 
A143: 141 | F143: =IF(B143="","",表紙!$B$2) ->  | G143: =IF(B143="","",VLOOKUP(F143,学校データ!A:D,4,FALSE)) ->  | O143: 0 | P143: 0 | Q143: 0 | R143: 0 | S143: 0 | T143: 0000000 | U143: =IF(B143="","",VLOOKUP(H143,競技データ!$B$21:$C$29,2,FALSE)) ->  | X143: =IF(B143="","",表紙!$B$33+選手入力!A143) ->  | AB143: =IF(B143="","",表紙!$B$4) -> 
A144: 142 | F144: =IF(B144="","",表紙!$B$2) ->  | G144: =IF(B144="","",VLOOKUP(F144,学校データ!A:D,4,FALSE)) ->  | O144: 0 | P144: 0 | Q144: 0 | R144: 0 | S144: 0 | T144: 0000000 | U144: =IF(B144="","",VLOOKUP(H144,競技データ!$B$21:$C$29,2,FALSE)) ->  | X144: =IF(B144="","",表紙!$B$33+選手入力!A144) ->  | AB144: =IF(B144="","",表紙!$B$4) -> 
A145: 143 | F145: =IF(B145="","",表紙!$B$2) ->  | G145: =IF(B145="","",VLOOKUP(F145,学校データ!A:D,4,FALSE)) ->  | O145: 0 | P145: 0 | Q145: 0 | R145: 0 | S145: 0 | T145: 0000000 | U145: =IF(B145="","",VLOOKUP(H145,競技データ!$B$21:$C$29,2,FALSE)) ->  | X145: =IF(B145="","",表紙!$B$33+選手入力!A145) ->  | AB145: =IF(B145="","",表紙!$B$4) -> 
A146: 144 | F146: =IF(B146="","",表紙!$B$2) ->  | G146: =IF(B146="","",VLOOKUP(F146,学校データ!A:D,4,FALSE)) ->  | O146: 0 | P146: 0 | Q146: 0 | R146: 0 | S146: 0 | T146: 0000000 | U146: =IF(B146="","",VLOOKUP(H146,競技データ!$B$21:$C$29,2,FALSE)) ->  | X146: =IF(B146="","",表紙!$B$33+選手入力!A146) ->  | AB146: =IF(B146="","",表紙!$B$4) -> 
A147: 145 | F147: =IF(B147="","",表紙!$B$2) ->  | G147: =IF(B147="","",VLOOKUP(F147,学校データ!A:D,4,FALSE)) ->  | O147: 0 | P147: 0 | Q147: 0 | R147: 0 | S147: 0 | T147: 0000000 | U147: =IF(B147="","",VLOOKUP(H147,競技データ!$B$21:$C$29,2,FALSE)) ->  | X147: =IF(B147="","",表紙!$B$33+選手入力!A147) ->  | AB147: =IF(B147="","",表紙!$B$4) -> 
A148: 146 | F148: =IF(B148="","",表紙!$B$2) ->  | G148: =IF(B148="","",VLOOKUP(F148,学校データ!A:D,4,FALSE)) ->  | O148: 0 | P148: 0 | Q148: 0 | R148: 0 | S148: 0 | T148: 0000000 | U148: =IF(B148="","",VLOOKUP(H148,競技データ!$B$21:$C$29,2,FALSE)) ->  | X148: =IF(B148="","",表紙!$B$33+選手入力!A148) ->  | AB148: =IF(B148="","",表紙!$B$4) -> 
A149: 147 | F149: =IF(B149="","",表紙!$B$2) ->  | G149: =IF(B149="","",VLOOKUP(F149,学校データ!A:D,4,FALSE)) ->  | O149: 0 | P149: 0 | Q149: 0 | R149: 0 | S149: 0 | T149: 0000000 | U149: =IF(B149="","",VLOOKUP(H149,競技データ!$B$21:$C$29,2,FALSE)) ->  | X149: =IF(B149="","",表紙!$B$33+選手入力!A149) ->  | AB149: =IF(B149="","",表紙!$B$4) -> 
A150: 148 | F150: =IF(B150="","",表紙!$B$2) ->  | G150: =IF(B150="","",VLOOKUP(F150,学校データ!A:D,4,FALSE)) ->  | O150: 0 | P150: 0 | Q150: 0 | R150: 0 | S150: 0 | T150: 0000000 | U150: =IF(B150="","",VLOOKUP(H150,競技データ!$B$21:$C$29,2,FALSE)) ->  | X150: =IF(B150="","",表紙!$B$33+選手入力!A150) ->  | AB150: =IF(B150="","",表紙!$B$4) -> 
A151: 149 | F151: =IF(B151="","",表紙!$B$2) ->  | G151: =IF(B151="","",VLOOKUP(F151,学校データ!A:D,4,FALSE)) ->  | O151: 0 | P151: 0 | Q151: 0 | R151: 0 | S151: 0 | T151: 0000000 | U151: =IF(B151="","",VLOOKUP(H151,競技データ!$B$21:$C$29,2,FALSE)) ->  | X151: =IF(B151="","",表紙!$B$33+選手入力!A151) ->  | AB151: =IF(B151="","",表紙!$B$4) -> 
A152: 150 | F152: =IF(B152="","",表紙!$B$2) ->  | G152: =IF(B152="","",VLOOKUP(F152,学校データ!A:D,4,FALSE)) ->  | O152: 0 | P152: 0 | Q152: 0 | R152: 0 | S152: 0 | T152: 0000000 | U152: =IF(B152="","",VLOOKUP(H152,競技データ!$B$21:$C$29,2,FALSE)) ->  | X152: =IF(B152="","",表紙!$B$33+選手入力!A152) ->  | AB152: =IF(B152="","",表紙!$B$4) -> 
A153: 151 | F153: =IF(B153="","",表紙!$B$2) ->  | G153: =IF(B153="","",VLOOKUP(F153,学校データ!A:D,4,FALSE)) ->  | O153: 0 | P153: 0 | Q153: 0 | R153: 0 | S153: 0 | T153: 0000000 | U153: =IF(B153="","",VLOOKUP(H153,競技データ!$B$21:$C$29,2,FALSE)) ->  | X153: =IF(B153="","",表紙!$B$33+選手入力!A153) ->  | AB153: =IF(B153="","",表紙!$B$4) -> 
A154: 152 | F154: =IF(B154="","",表紙!$B$2) ->  | G154: =IF(B154="","",VLOOKUP(F154,学校データ!A:D,4,FALSE)) ->  | O154: 0 | P154: 0 | Q154: 0 | R154: 0 | S154: 0 | T154: 0000000 | U154: =IF(B154="","",VLOOKUP(H154,競技データ!$B$21:$C$29,2,FALSE)) ->  | X154: =IF(B154="","",表紙!$B$33+選手入力!A154) ->  | AB154: =IF(B154="","",表紙!$B$4) -> 
A155: 153 | F155: =IF(B155="","",表紙!$B$2) ->  | G155: =IF(B155="","",VLOOKUP(F155,学校データ!A:D,4,FALSE)) ->  | O155: 0 | P155: 0 | Q155: 0 | R155: 0 | S155: 0 | T155: 0000000 | U155: =IF(B155="","",VLOOKUP(H155,競技データ!$B$21:$C$29,2,FALSE)) ->  | X155: =IF(B155="","",表紙!$B$33+選手入力!A155) ->  | AB155: =IF(B155="","",表紙!$B$4) -> 
A156: 154 | F156: =IF(B156="","",表紙!$B$2) ->  | G156: =IF(B156="","",VLOOKUP(F156,学校データ!A:D,4,FALSE)) ->  | O156: 0 | P156: 0 | Q156: 0 | R156: 0 | S156: 0 | T156: 0000000 | U156: =IF(B156="","",VLOOKUP(H156,競技データ!$B$21:$C$29,2,FALSE)) ->  | X156: =IF(B156="","",表紙!$B$33+選手入力!A156) ->  | AB156: =IF(B156="","",表紙!$B$4) -> 
A157: 155 | F157: =IF(B157="","",表紙!$B$2) ->  | G157: =IF(B157="","",VLOOKUP(F157,学校データ!A:D,4,FALSE)) ->  | O157: 0 | P157: 0 | Q157: 0 | R157: 0 | S157: 0 | T157: 0000000 | U157: =IF(B157="","",VLOOKUP(H157,競技データ!$B$21:$C$29,2,FALSE)) ->  | X157: =IF(B157="","",表紙!$B$33+選手入力!A157) ->  | AB157: =IF(B157="","",表紙!$B$4) -> 
A158: 156 | F158: =IF(B158="","",表紙!$B$2) ->  | G158: =IF(B158="","",VLOOKUP(F158,学校データ!A:D,4,FALSE)) ->  | O158: 0 | P158: 0 | Q158: 0 | R158: 0 | S158: 0 | T158: 0000000 | U158: =IF(B158="","",VLOOKUP(H158,競技データ!$B$21:$C$29,2,FALSE)) ->  | X158: =IF(B158="","",表紙!$B$33+選手入力!A158) ->  | AB158: =IF(B158="","",表紙!$B$4) -> 
A159: 157 | F159: =IF(B159="","",表紙!$B$2) ->  | G159: =IF(B159="","",VLOOKUP(F159,学校データ!A:D,4,FALSE)) ->  | O159: 0 | P159: 0 | Q159: 0 | R159: 0 | S159: 0 | T159: 0000000 | U159: =IF(B159="","",VLOOKUP(H159,競技データ!$B$21:$C$29,2,FALSE)) ->  | X159: =IF(B159="","",表紙!$B$33+選手入力!A159) ->  | AB159: =IF(B159="","",表紙!$B$4) -> 
A160: 158 | F160: =IF(B160="","",表紙!$B$2) ->  | G160: =IF(B160="","",VLOOKUP(F160,学校データ!A:D,4,FALSE)) ->  | O160: 0 | P160: 0 | Q160: 0 | R160: 0 | S160: 0 | T160: 0000000 | U160: =IF(B160="","",VLOOKUP(H160,競技データ!$B$21:$C$29,2,FALSE)) ->  | X160: =IF(B160="","",表紙!$B$33+選手入力!A160) ->  | AB160: =IF(B160="","",表紙!$B$4) -> 
A161: 159 | F161: =IF(B161="","",表紙!$B$2) ->  | G161: =IF(B161="","",VLOOKUP(F161,学校データ!A:D,4,FALSE)) ->  | O161: 0 | P161: 0 | Q161: 0 | R161: 0 | S161: 0 | T161: 0000000 | U161: =IF(B161="","",VLOOKUP(H161,競技データ!$B$21:$C$29,2,FALSE)) ->  | X161: =IF(B161="","",表紙!$B$33+選手入力!A161) ->  | AB161: =IF(B161="","",表紙!$B$4) -> 
A162: 160 | F162: =IF(B162="","",表紙!$B$2) ->  | G162: =IF(B162="","",VLOOKUP(F162,学校データ!A:D,4,FALSE)) ->  | O162: 0 | P162: 0 | Q162: 0 | R162: 0 | S162: 0 | T162: 0000000 | U162: =IF(B162="","",VLOOKUP(H162,競技データ!$B$21:$C$29,2,FALSE)) ->  | X162: =IF(B162="","",表紙!$B$33+選手入力!A162) ->  | AB162: =IF(B162="","",表紙!$B$4) -> 
A163: 161 | F163: =IF(B163="","",表紙!$B$2) ->  | G163: =IF(B163="","",VLOOKUP(F163,学校データ!A:D,4,FALSE)) ->  | O163: 0 | P163: 0 | Q163: 0 | R163: 0 | S163: 0 | T163: 0000000 | U163: =IF(B163="","",VLOOKUP(H163,競技データ!$B$21:$C$29,2,FALSE)) ->  | X163: =IF(B163="","",表紙!$B$33+選手入力!A163) ->  | Z163: =IF(B163="","",C163) ->  | AA163: =IF(E163="","",IF(E163="男子",1,2)) ->  | AB163: =IF(B163="","",表紙!$B$4) ->  | AC163: =IF(B163="","",F163) ->  | AF163: =IF(B163="","",X163) -> 
A164: 162 | F164: =IF(B164="","",表紙!$B$2) ->  | G164: =IF(B164="","",VLOOKUP(F164,学校データ!A:D,4,FALSE)) ->  | O164: 0 | P164: 0 | Q164: 0 | R164: 0 | S164: 0 | T164: 0000000 | U164: =IF(B164="","",VLOOKUP(H164,競技データ!$B$21:$C$29,2,FALSE)) ->  | X164: =IF(B164="","",表紙!$B$33+選手入力!A164) ->  | AB164: =IF(B164="","",表紙!$B$4) -> 
A165: 163 | F165: =IF(B165="","",表紙!$B$2) ->  | G165: =IF(B165="","",VLOOKUP(F165,学校データ!A:D,4,FALSE)) ->  | O165: 0 | P165: 0 | Q165: 0 | R165: 0 | S165: 0 | T165: 0000000 | U165: =IF(B165="","",VLOOKUP(H165,競技データ!$B$21:$C$29,2,FALSE)) ->  | X165: =IF(B165="","",表紙!$B$33+選手入力!A165) ->  | AB165: =IF(B165="","",表紙!$B$4) -> 
A166: 164 | F166: =IF(B166="","",表紙!$B$2) ->  | G166: =IF(B166="","",VLOOKUP(F166,学校データ!A:D,4,FALSE)) ->  | O166: 0 | P166: 0 | Q166: 0 | R166: 0 | S166: 0 | T166: 0000000 | U166: =IF(B166="","",VLOOKUP(H166,競技データ!$B$21:$C$29,2,FALSE)) ->  | X166: =IF(B166="","",表紙!$B$33+選手入力!A166) ->  | AB166: =IF(B166="","",表紙!$B$4) -> 
A167: 165 | F167: =IF(B167="","",表紙!$B$2) ->  | G167: =IF(B167="","",VLOOKUP(F167,学校データ!A:D,4,FALSE)) ->  | O167: 0 | P167: 0 | Q167: 0 | R167: 0 | S167: 0 | T167: 0000000 | U167: =IF(B167="","",VLOOKUP(H167,競技データ!$B$21:$C$29,2,FALSE)) ->  | X167: =IF(B167="","",表紙!$B$33+選手入力!A167) ->  | AB167: =IF(B167="","",表紙!$B$4) -> 
A168: 166 | F168: =IF(B168="","",表紙!$B$2) ->  | G168: =IF(B168="","",VLOOKUP(F168,学校データ!A:D,4,FALSE)) ->  | O168: 0 | P168: 0 | Q168: 0 | R168: 0 | S168: 0 | T168: 0000000 | U168: =IF(B168="","",VLOOKUP(H168,競技データ!$B$21:$C$29,2,FALSE)) ->  | X168: =IF(B168="","",表紙!$B$33+選手入力!A168) ->  | AB168: =IF(B168="","",表紙!$B$4) -> 
A169: 167 | F169: =IF(B169="","",表紙!$B$2) ->  | G169: =IF(B169="","",VLOOKUP(F169,学校データ!A:D,4,FALSE)) ->  | O169: 0 | P169: 0 | Q169: 0 | R169: 0 | S169: 0 | T169: 0000000 | U169: =IF(B169="","",VLOOKUP(H169,競技データ!$B$21:$C$29,2,FALSE)) ->  | X169: =IF(B169="","",表紙!$B$33+選手入力!A169) ->  | AB169: =IF(B169="","",表紙!$B$4) -> 
A170: 168 | F170: =IF(B170="","",表紙!$B$2) ->  | G170: =IF(B170="","",VLOOKUP(F170,学校データ!A:D,4,FALSE)) ->  | O170: 0 | P170: 0 | Q170: 0 | R170: 0 | S170: 0 | T170: 0000000 | U170: =IF(B170="","",VLOOKUP(H170,競技データ!$B$21:$C$29,2,FALSE)) ->  | X170: =IF(B170="","",表紙!$B$33+選手入力!A170) ->  | AB170: =IF(B170="","",表紙!$B$4) -> 
A171: 169 | F171: =IF(B171="","",表紙!$B$2) ->  | G171: =IF(B171="","",VLOOKUP(F171,学校データ!A:D,4,FALSE)) ->  | O171: 0 | P171: 0 | Q171: 0 | R171: 0 | S171: 0 | T171: 0000000 | U171: =IF(B171="","",VLOOKUP(H171,競技データ!$B$21:$C$29,2,FALSE)) ->  | X171: =IF(B171="","",表紙!$B$33+選手入力!A171) ->  | AB171: =IF(B171="","",表紙!$B$4) -> 
A172: 170 | F172: =IF(B172="","",表紙!$B$2) ->  | G172: =IF(B172="","",VLOOKUP(F172,学校データ!A:D,4,FALSE)) ->  | O172: 0 | P172: 0 | Q172: 0 | R172: 0 | S172: 0 | T172: 0000000 | U172: =IF(B172="","",VLOOKUP(H172,競技データ!$B$21:$C$29,2,FALSE)) ->  | X172: =IF(B172="","",表紙!$B$33+選手入力!A172) ->  | AB172: =IF(B172="","",表紙!$B$4) -> 
A173: 171 | F173: =IF(B173="","",表紙!$B$2) ->  | G173: =IF(B173="","",VLOOKUP(F173,学校データ!A:D,4,FALSE)) ->  | O173: 0 | P173: 0 | Q173: 0 | R173: 0 | S173: 0 | T173: 0000000 | U173: =IF(B173="","",VLOOKUP(H173,競技データ!$B$21:$C$29,2,FALSE)) ->  | X173: =IF(B173="","",表紙!$B$33+選手入力!A173) ->  | AB173: =IF(B173="","",表紙!$B$4) -> 
A174: 172 | F174: =IF(B174="","",表紙!$B$2) ->  | G174: =IF(B174="","",VLOOKUP(F174,学校データ!A:D,4,FALSE)) ->  | O174: 0 | P174: 0 | Q174: 0 | R174: 0 | S174: 0 | T174: 0000000 | U174: =IF(B174="","",VLOOKUP(H174,競技データ!$B$21:$C$29,2,FALSE)) ->  | X174: =IF(B174="","",表紙!$B$33+選手入力!A174) ->  | AB174: =IF(B174="","",表紙!$B$4) -> 
A175: 173 | F175: =IF(B175="","",表紙!$B$2) ->  | G175: =IF(B175="","",VLOOKUP(F175,学校データ!A:D,4,FALSE)) ->  | O175: 0 | P175: 0 | Q175: 0 | R175: 0 | S175: 0 | T175: 0000000 | U175: =IF(B175="","",VLOOKUP(H175,競技データ!$B$21:$C$29,2,FALSE)) ->  | X175: =IF(B175="","",表紙!$B$33+選手入力!A175) ->  | AB175: =IF(B175="","",表紙!$B$4) -> 
A176: 174 | F176: =IF(B176="","",表紙!$B$2) ->  | G176: =IF(B176="","",VLOOKUP(F176,学校データ!A:D,4,FALSE)) ->  | O176: 0 | P176: 0 | Q176: 0 | R176: 0 | S176: 0 | T176: 0000000 | U176: =IF(B176="","",VLOOKUP(H176,競技データ!$B$21:$C$29,2,FALSE)) ->  | X176: =IF(B176="","",表紙!$B$33+選手入力!A176) ->  | AB176: =IF(B176="","",表紙!$B$4) -> 
A177: 175 | F177: =IF(B177="","",表紙!$B$2) ->  | G177: =IF(B177="","",VLOOKUP(F177,学校データ!A:D,4,FALSE)) ->  | O177: 0 | P177: 0 | Q177: 0 | R177: 0 | S177: 0 | T177: 0000000 | U177: =IF(B177="","",VLOOKUP(H177,競技データ!$B$21:$C$29,2,FALSE)) ->  | X177: =IF(B177="","",表紙!$B$33+選手入力!A177) ->  | AB177: =IF(B177="","",表紙!$B$4) -> 
A178: 176 | F178: =IF(B178="","",表紙!$B$2) ->  | G178: =IF(B178="","",VLOOKUP(F178,学校データ!A:D,4,FALSE)) ->  | O178: 0 | P178: 0 | Q178: 0 | R178: 0 | S178: 0 | T178: 0000000 | U178: =IF(B178="","",VLOOKUP(H178,競技データ!$B$21:$C$29,2,FALSE)) ->  | X178: =IF(B178="","",表紙!$B$33+選手入力!A178) ->  | AB178: =IF(B178="","",表紙!$B$4) -> 
A179: 177 | F179: =IF(B179="","",表紙!$B$2) ->  | G179: =IF(B179="","",VLOOKUP(F179,学校データ!A:D,4,FALSE)) ->  | O179: 0 | P179: 0 | Q179: 0 | R179: 0 | S179: 0 | T179: 0000000 | U179: =IF(B179="","",VLOOKUP(H179,競技データ!$B$21:$C$29,2,FALSE)) ->  | X179: =IF(B179="","",表紙!$B$33+選手入力!A179) ->  | AB179: =IF(B179="","",表紙!$B$4) -> 
A180: 178 | F180: =IF(B180="","",表紙!$B$2) ->  | G180: =IF(B180="","",VLOOKUP(F180,学校データ!A:D,4,FALSE)) ->  | O180: 0 | P180: 0 | Q180: 0 | R180: 0 | S180: 0 | T180: 0000000 | U180: =IF(B180="","",VLOOKUP(H180,競技データ!$B$21:$C$29,2,FALSE)) ->  | X180: =IF(B180="","",表紙!$B$33+選手入力!A180) ->  | AB180: =IF(B180="","",表紙!$B$4) -> 
A181: 179 | F181: =IF(B181="","",表紙!$B$2) ->  | G181: =IF(B181="","",VLOOKUP(F181,学校データ!A:D,4,FALSE)) ->  | O181: 0 | P181: 0 | Q181: 0 | R181: 0 | S181: 0 | T181: 0000000 | U181: =IF(B181="","",VLOOKUP(H181,競技データ!$B$21:$C$29,2,FALSE)) ->  | X181: =IF(B181="","",表紙!$B$33+選手入力!A181) ->  | AB181: =IF(B181="","",表紙!$B$4) -> 
A182: 180 | F182: =IF(B182="","",表紙!$B$2) ->  | G182: =IF(B182="","",VLOOKUP(F182,学校データ!A:D,4,FALSE)) ->  | O182: 0 | P182: 0 | Q182: 0 | R182: 0 | S182: 0 | T182: 0000000 | U182: =IF(B182="","",VLOOKUP(H182,競技データ!$B$21:$C$29,2,FALSE)) ->  | X182: =IF(B182="","",表紙!$B$33+選手入力!A182) ->  | AB182: =IF(B182="","",表紙!$B$4) -> 
A183: 181 | F183: =IF(B183="","",表紙!$B$2) ->  | G183: =IF(B183="","",VLOOKUP(F183,学校データ!A:D,4,FALSE)) ->  | O183: 0 | P183: 0 | Q183: 0 | R183: 0 | S183: 0 | T183: 0000000 | U183: =IF(B183="","",VLOOKUP(H183,競技データ!$B$21:$C$29,2,FALSE)) ->  | X183: =IF(B183="","",表紙!$B$33+選手入力!A183) ->  | AB183: =IF(B183="","",表紙!$B$4) -> 
A184: 182 | F184: =IF(B184="","",表紙!$B$2) ->  | G184: =IF(B184="","",VLOOKUP(F184,学校データ!A:D,4,FALSE)) ->  | O184: 0 | P184: 0 | Q184: 0 | R184: 0 | S184: 0 | T184: 0000000 | U184: =IF(B184="","",VLOOKUP(H184,競技データ!$B$21:$C$29,2,FALSE)) ->  | X184: =IF(B184="","",表紙!$B$33+選手入力!A184) ->  | AB184: =IF(B184="","",表紙!$B$4) -> 
A185: 183 | F185: =IF(B185="","",表紙!$B$2) ->  | G185: =IF(B185="","",VLOOKUP(F185,学校データ!A:D,4,FALSE)) ->  | O185: 0 | P185: 0 | Q185: 0 | R185: 0 | S185: 0 | T185: 0000000 | U185: =IF(B185="","",VLOOKUP(H185,競技データ!$B$21:$C$29,2,FALSE)) ->  | X185: =IF(B185="","",表紙!$B$33+選手入力!A185) ->  | AB185: =IF(B185="","",表紙!$B$4) -> 
A186: 184 | F186: =IF(B186="","",表紙!$B$2) ->  | G186: =IF(B186="","",VLOOKUP(F186,学校データ!A:D,4,FALSE)) ->  | O186: 0 | P186: 0 | Q186: 0 | R186: 0 | S186: 0 | T186: 0000000 | U186: =IF(B186="","",VLOOKUP(H186,競技データ!$B$21:$C$29,2,FALSE)) ->  | X186: =IF(B186="","",表紙!$B$33+選手入力!A186) ->  | AB186: =IF(B186="","",表紙!$B$4) -> 
A187: 185 | F187: =IF(B187="","",表紙!$B$2) ->  | G187: =IF(B187="","",VLOOKUP(F187,学校データ!A:D,4,FALSE)) ->  | O187: 0 | P187: 0 | Q187: 0 | R187: 0 | S187: 0 | T187: 0000000 | U187: =IF(B187="","",VLOOKUP(H187,競技データ!$B$21:$C$29,2,FALSE)) ->  | X187: =IF(B187="","",表紙!$B$33+選手入力!A187) ->  | AB187: =IF(B187="","",表紙!$B$4) -> 
A188: 186 | F188: =IF(B188="","",表紙!$B$2) ->  | G188: =IF(B188="","",VLOOKUP(F188,学校データ!A:D,4,FALSE)) ->  | O188: 0 | P188: 0 | Q188: 0 | R188: 0 | S188: 0 | T188: 0000000 | U188: =IF(B188="","",VLOOKUP(H188,競技データ!$B$21:$C$29,2,FALSE)) ->  | X188: =IF(B188="","",表紙!$B$33+選手入力!A188) ->  | AB188: =IF(B188="","",表紙!$B$4) -> 
A189: 187 | F189: =IF(B189="","",表紙!$B$2) ->  | G189: =IF(B189="","",VLOOKUP(F189,学校データ!A:D,4,FALSE)) ->  | O189: 0 | P189: 0 | Q189: 0 | R189: 0 | S189: 0 | T189: 0000000 | U189: =IF(B189="","",VLOOKUP(H189,競技データ!$B$21:$C$29,2,FALSE)) ->  | X189: =IF(B189="","",表紙!$B$33+選手入力!A189) ->  | AB189: =IF(B189="","",表紙!$B$4) -> 
A190: 188 | F190: =IF(B190="","",表紙!$B$2) ->  | G190: =IF(B190="","",VLOOKUP(F190,学校データ!A:D,4,FALSE)) ->  | O190: 0 | P190: 0 | Q190: 0 | R190: 0 | S190: 0 | T190: 0000000 | U190: =IF(B190="","",VLOOKUP(H190,競技データ!$B$21:$C$29,2,FALSE)) ->  | X190: =IF(B190="","",表紙!$B$33+選手入力!A190) ->  | AB190: =IF(B190="","",表紙!$B$4) -> 
A191: 189 | F191: =IF(B191="","",表紙!$B$2) ->  | G191: =IF(B191="","",VLOOKUP(F191,学校データ!A:D,4,FALSE)) ->  | O191: 0 | P191: 0 | Q191: 0 | R191: 0 | S191: 0 | T191: 0000000 | U191: =IF(B191="","",VLOOKUP(H191,競技データ!$B$21:$C$29,2,FALSE)) ->  | X191: =IF(B191="","",表紙!$B$33+選手入力!A191) ->  | AB191: =IF(B191="","",表紙!$B$4) -> 
A192: 190 | F192: =IF(B192="","",表紙!$B$2) ->  | G192: =IF(B192="","",VLOOKUP(F192,学校データ!A:D,4,FALSE)) ->  | O192: 0 | P192: 0 | Q192: 0 | R192: 0 | S192: 0 | T192: 0000000 | U192: =IF(B192="","",VLOOKUP(H192,競技データ!$B$21:$C$29,2,FALSE)) ->  | X192: =IF(B192="","",表紙!$B$33+選手入力!A192) ->  | AB192: =IF(B192="","",表紙!$B$4) -> 
A193: 191 | F193: =IF(B193="","",表紙!$B$2) ->  | G193: =IF(B193="","",VLOOKUP(F193,学校データ!A:D,4,FALSE)) ->  | O193: 0 | P193: 0 | Q193: 0 | R193: 0 | S193: 0 | T193: 0000000 | U193: =IF(B193="","",VLOOKUP(H193,競技データ!$B$21:$C$29,2,FALSE)) ->  | X193: =IF(B193="","",表紙!$B$33+選手入力!A193) ->  | AB193: =IF(B193="","",表紙!$B$4) -> 
A194: 192 | F194: =IF(B194="","",表紙!$B$2) ->  | G194: =IF(B194="","",VLOOKUP(F194,学校データ!A:D,4,FALSE)) ->  | O194: 0 | P194: 0 | Q194: 0 | R194: 0 | S194: 0 | T194: 0000000 | U194: =IF(B194="","",VLOOKUP(H194,競技データ!$B$21:$C$29,2,FALSE)) ->  | X194: =IF(B194="","",表紙!$B$33+選手入力!A194) ->  | AB194: =IF(B194="","",表紙!$B$4) -> 
A195: 193 | F195: =IF(B195="","",表紙!$B$2) ->  | G195: =IF(B195="","",VLOOKUP(F195,学校データ!A:D,4,FALSE)) ->  | O195: 0 | P195: =IF(J195="",0,J195) -> 0 | Q195: =IF(K195="",0,K195) -> 0 | R195: =IF(L195="",0,L195) -> 0 | S195: =IF(M195="",0,M195) -> 0 | T195: 0000000 | U195: =IF(B195="","",VLOOKUP(H195,競技データ!$B$21:$C$29,2,FALSE)) ->  | X195: =IF(B195="","",表紙!$B$33+選手入力!A195) ->  | Z195: =IF(B195="","",C195) ->  | AA195: =IF(E195="","",IF(E195="男子",1,2)) ->  | AB195: =IF(B195="","",表紙!$B$4) ->  | AC195: =IF(B195="","",F195) ->  | AF195: =IF(B195="","",X195) -> 
A196: 194 | F196: =IF(B196="","",表紙!$B$2) ->  | G196: =IF(B196="","",VLOOKUP(F196,学校データ!A:D,4,FALSE)) ->  | O196: =IF(I196="",0,I196) -> 0 | P196: 0 | Q196: 0 | R196: 0 | S196: 0 | T196: =CONCATENATE("00",O196,P196,Q196,R196,S196) -> 0000000 | U196: =IF(B196="","",VLOOKUP(H196,競技データ!$B$21:$C$29,2,FALSE)) ->  | V196: =IF(B196="","",IF(H196="100ｍ",CONCATENATE("0",D196),IF(H196="友好100ｍ","07","00"))) ->  | X196: =IF(B196="","",表紙!$B$33+選手入力!A196) ->  | Y196: =IF(B196="","",B196 & "(" &D196&")") ->  | AB196: =IF(B196="","",表紙!$B$4) ->  | AG196: =IF(B196="","",IF(H196="リレーのみ","R99900",CONCATENATE(U196,V196," ",T196))) ->  | AK196: =IF(AG196="","",RIGHT(LEFT(AG196,4),3)) ->  | AL196: =IF(AG196="","",RIGHT(LEFT(AG196,6),2)) ->  | AM196: =IF(AG196="","",CONCATENATE(AK196," ",AA196,AL196)) -> 
A197: 195 | F197: =IF(B197="","",表紙!$B$2) ->  | G197: =IF(B197="","",VLOOKUP(F197,学校データ!A:D,4,FALSE)) ->  | O197: 0 | P197: 0 | Q197: 0 | R197: 0 | S197: 0 | T197: 0000000 | U197: =IF(B197="","",VLOOKUP(H197,競技データ!$B$21:$C$29,2,FALSE)) ->  | X197: =IF(B197="","",表紙!$B$33+選手入力!A197) ->  | AB197: =IF(B197="","",表紙!$B$4) -> 
A198: 196 | F198: =IF(B198="","",表紙!$B$2) ->  | G198: =IF(B198="","",VLOOKUP(F198,学校データ!A:D,4,FALSE)) ->  | O198: 0 | P198: 0 | Q198: 0 | R198: 0 | S198: 0 | T198: 0000000 | U198: =IF(B198="","",VLOOKUP(H198,競技データ!$B$21:$C$29,2,FALSE)) ->  | X198: =IF(B198="","",表紙!$B$33+選手入力!A198) ->  | AB198: =IF(B198="","",表紙!$B$4) -> 
A199: 197 | F199: =IF(B199="","",表紙!$B$2) ->  | G199: =IF(B199="","",VLOOKUP(F199,学校データ!A:D,4,FALSE)) ->  | O199: 0 | P199: 0 | Q199: 0 | R199: 0 | S199: 0 | T199: 0000000 | U199: =IF(B199="","",VLOOKUP(H199,競技データ!$B$21:$C$29,2,FALSE)) ->  | X199: =IF(B199="","",表紙!$B$33+選手入力!A199) ->  | AB199: =IF(B199="","",表紙!$B$4) -> 
A200: 198 | F200: =IF(B200="","",表紙!$B$2) ->  | G200: =IF(B200="","",VLOOKUP(F200,学校データ!A:D,4,FALSE)) ->  | O200: 0 | P200: 0 | Q200: 0 | R200: 0 | S200: 0 | T200: 0000000 | U200: =IF(B200="","",VLOOKUP(H200,競技データ!$B$21:$C$29,2,FALSE)) ->  | X200: =IF(B200="","",表紙!$B$33+選手入力!A200) ->  | AB200: =IF(B200="","",表紙!$B$4) -> 
... 2 more rows

Sheet リレー入力
A1: =CONCATENATE(表紙!B3,"リレー入力") ->  | F1: 申込みタイム（各位ずつ記入）
A2: 種目名 | B2: 学校NO（自動表示） | C2: 学校名（自動表示） | D2: 分 | F2: 秒 | G2: 1/10 | H2: 1／100 | I2: 1走選手NO | J2: 1走選手名（自動表示） | K2: 2走選手NO | L2: 2走選手名（自動表示） | M2: 3走選手NO | N2: 3走選手名（自動表示） | O2: 4走選手NO | P2: 4走選手名（自動表示） | Q2: 補員選手NO | R2: 補員名（自動表示） | AA2: DB | AB2: ZK | AC2: KC | AD2: N1 | AE2: N2 | AF2: TM | AG2: KM | AH2: LN | AI2: S1 | AJ2: S2 | AK2: S3 | AL2: S4 | AM2: S5 | AN2: S6 | AO2: S7 | AP2: S8
A3: 男子4×100mリレー | B3: =IF(I3="","",表紙!$B$2) ->  | C3: =IF(B3="","",VLOOKUP(リレー入力!B3,学校データ!$A:$E,4,FALSE)) ->  | J3: =IF(I3="","",VLOOKUP(I3,選手入力!$A$2:$B$202,2,FALSE)) ->  | L3: =IF(K3="","",VLOOKUP(K3,選手入力!$A$2:$B$202,2,FALSE)) ->  | N3: =IF(M3="","",VLOOKUP(M3,選手入力!$A$2:$B$202,2,FALSE)) ->  | P3: =IF(O3="","",VLOOKUP(O3,選手入力!$A$2:$B$202,2,FALSE)) ->  | R3: =IF(Q3="","",VLOOKUP(Q3,選手入力!$A$2:$B$202,2,FALSE)) ->  | S3: 1 | T3: =IF(D3="",0,D3) -> 0 | U3: =IF(E3="",0,E3) -> 0 | V3: =IF(F3="",0,F3) -> 0 | W3: =IF(G3="",0,G3) -> 0 | X3: =IF(H3="",0,H3) -> 0 | Y3: =CONCATENATE("00",T3,U3,V3,W3,X3) -> 0000000 | AA3: =IF($B3="","",表紙!$B$34+リレー入力!$S3) ->  | AB3: =IF($B3="","",AA3) ->  | AC3: =IF($B3="","",表紙!$B$4) ->  | AD3: =IF($B3="","",C3) ->  | AF3: =IF($B3="","",Y3) ->  | AI3: =IF(I3="","",VLOOKUP(J3,選手入力!$B$2:$X$202,23,FALSE)) ->  | AJ3: =IF(K3="","",VLOOKUP(L3,選手入力!$B$2:$X$202,23,FALSE)) ->  | AK3: =IF(M3="","",VLOOKUP(N3,選手入力!$B$2:$X$202,23,FALSE)) ->  | AL3: =IF(O3="","",VLOOKUP(P3,選手入力!$B$2:$X$202,23,FALSE)) ->  | AM3: =IF(Q3="","",VLOOKUP(R3,選手入力!$B$2:$X$202,23,FALSE)) -> 
J4: =IF(I4="","",VLOOKUP(I4,選手入力!$A$2:$B$202,2,FALSE)) ->  | L4: =IF(K4="","",VLOOKUP(K4,選手入力!$A$2:$B$202,2,FALSE)) ->  | N4: =IF(M4="","",VLOOKUP(M4,選手入力!$A$2:$B$202,2,FALSE)) ->  | P4: =IF(O4="","",VLOOKUP(O4,選手入力!$A$2:$B$202,2,FALSE)) ->  | R4: =IF(Q4="","",VLOOKUP(Q4,選手入力!$A$2:$B$202,2,FALSE)) ->  | S4: 2 | T4: =IF(D4="",0,D4) -> 0 | U4: 0 | V4: 0 | W4: 0 | X4: 0 | Y4: =CONCATENATE("00",T4,U4,V4,W4,X4) -> 0000000 | AA4: =IF($B4="","",表紙!$B$34+リレー入力!$S4) ->  | AB4: =IF($B4="","",AA4) ->  | AC4: =IF($B4="","",表紙!$B$4) ->  | AD4: =IF($B4="","",C4) ->  | AF4: =IF($B4="","",Y4) ->  | AI4: =IF(I4="","",VLOOKUP(J4,選手入力!$B$2:$X$202,23,FALSE)) ->  | AJ4: =IF(K4="","",VLOOKUP(L4,選手入力!$B$2:$X$202,23,FALSE)) ->  | AK4: =IF(M4="","",VLOOKUP(N4,選手入力!$B$2:$X$202,23,FALSE)) ->  | AL4: =IF(O4="","",VLOOKUP(P4,選手入力!$B$2:$X$202,23,FALSE)) ->  | AM4: =IF(Q4="","",VLOOKUP(R4,選手入力!$B$2:$X$202,23,FALSE)) -> 
J5: =IF(I5="","",VLOOKUP(I5,選手入力!$A$2:$B$202,2,FALSE)) ->  | L5: =IF(K5="","",VLOOKUP(K5,選手入力!$A$2:$B$202,2,FALSE)) ->  | N5: =IF(M5="","",VLOOKUP(M5,選手入力!$A$2:$B$202,2,FALSE)) ->  | P5: =IF(O5="","",VLOOKUP(O5,選手入力!$A$2:$B$202,2,FALSE)) ->  | R5: =IF(Q5="","",VLOOKUP(Q5,選手入力!$A$2:$B$202,2,FALSE)) ->  | S5: 3 | T5: 0 | U5: 0 | V5: 0 | W5: 0 | X5: 0 | Y5: 0000000 | AA5: =IF($B5="","",表紙!$B$34+リレー入力!$S5) ->  | AC5: =IF($B5="","",表紙!$B$4) ->  | AI5: =IF(I5="","",VLOOKUP(J5,選手入力!$B$2:$X$202,23,FALSE)) ->  | AJ5: =IF(K5="","",VLOOKUP(L5,選手入力!$B$2:$X$202,23,FALSE)) ->  | AK5: =IF(M5="","",VLOOKUP(N5,選手入力!$B$2:$X$202,23,FALSE)) ->  | AL5: =IF(O5="","",VLOOKUP(P5,選手入力!$B$2:$X$202,23,FALSE)) ->  | AM5: =IF(Q5="","",VLOOKUP(R5,選手入力!$B$2:$X$202,23,FALSE)) -> 
J6: =IF(I6="","",VLOOKUP(I6,選手入力!$A$2:$B$202,2,FALSE)) ->  | L6: =IF(K6="","",VLOOKUP(K6,選手入力!$A$2:$B$202,2,FALSE)) ->  | N6: =IF(M6="","",VLOOKUP(M6,選手入力!$A$2:$B$202,2,FALSE)) ->  | P6: =IF(O6="","",VLOOKUP(O6,選手入力!$A$2:$B$202,2,FALSE)) ->  | R6: =IF(Q6="","",VLOOKUP(Q6,選手入力!$A$2:$B$202,2,FALSE)) ->  | S6: 4 | T6: 0 | U6: 0 | V6: 0 | W6: 0 | X6: 0 | Y6: 0000000 | AA6: =IF($B6="","",表紙!$B$34+リレー入力!$S6) ->  | AC6: =IF($B6="","",表紙!$B$4) ->  | AI6: =IF(I6="","",VLOOKUP(J6,選手入力!$B$2:$X$202,23,FALSE)) ->  | AJ6: =IF(K6="","",VLOOKUP(L6,選手入力!$B$2:$X$202,23,FALSE)) ->  | AK6: =IF(M6="","",VLOOKUP(N6,選手入力!$B$2:$X$202,23,FALSE)) ->  | AL6: =IF(O6="","",VLOOKUP(P6,選手入力!$B$2:$X$202,23,FALSE)) ->  | AM6: =IF(Q6="","",VLOOKUP(R6,選手入力!$B$2:$X$202,23,FALSE)) -> 
J7: =IF(I7="","",VLOOKUP(I7,選手入力!$A$2:$B$202,2,FALSE)) ->  | L7: =IF(K7="","",VLOOKUP(K7,選手入力!$A$2:$B$202,2,FALSE)) ->  | N7: =IF(M7="","",VLOOKUP(M7,選手入力!$A$2:$B$202,2,FALSE)) ->  | P7: =IF(O7="","",VLOOKUP(O7,選手入力!$A$2:$B$202,2,FALSE)) ->  | R7: =IF(Q7="","",VLOOKUP(Q7,選手入力!$A$2:$B$202,2,FALSE)) ->  | S7: 5 | T7: 0 | U7: 0 | V7: 0 | W7: 0 | X7: 0 | Y7: 0000000 | AA7: =IF($B7="","",表紙!$B$34+リレー入力!$S7) ->  | AC7: =IF($B7="","",表紙!$B$4) ->  | AI7: =IF(I7="","",VLOOKUP(J7,選手入力!$B$2:$X$202,23,FALSE)) ->  | AJ7: =IF(K7="","",VLOOKUP(L7,選手入力!$B$2:$X$202,23,FALSE)) ->  | AK7: =IF(M7="","",VLOOKUP(N7,選手入力!$B$2:$X$202,23,FALSE)) ->  | AL7: =IF(O7="","",VLOOKUP(P7,選手入力!$B$2:$X$202,23,FALSE)) ->  | AM7: =IF(Q7="","",VLOOKUP(R7,選手入力!$B$2:$X$202,23,FALSE)) -> 
J8: =IF(I8="","",VLOOKUP(I8,選手入力!$A$2:$B$202,2,FALSE)) ->  | L8: =IF(K8="","",VLOOKUP(K8,選手入力!$A$2:$B$202,2,FALSE)) ->  | N8: =IF(M8="","",VLOOKUP(M8,選手入力!$A$2:$B$202,2,FALSE)) ->  | P8: =IF(O8="","",VLOOKUP(O8,選手入力!$A$2:$B$202,2,FALSE)) ->  | R8: =IF(Q8="","",VLOOKUP(Q8,選手入力!$A$2:$B$202,2,FALSE)) ->  | S8: 6 | T8: 0 | U8: 0 | V8: 0 | W8: 0 | X8: 0 | Y8: 0000000 | AA8: =IF($B8="","",表紙!$B$34+リレー入力!$S8) ->  | AC8: =IF($B8="","",表紙!$B$4) ->  | AI8: =IF(I8="","",VLOOKUP(J8,選手入力!$B$2:$X$202,23,FALSE)) ->  | AJ8: =IF(K8="","",VLOOKUP(L8,選手入力!$B$2:$X$202,23,FALSE)) ->  | AK8: =IF(M8="","",VLOOKUP(N8,選手入力!$B$2:$X$202,23,FALSE)) ->  | AL8: =IF(O8="","",VLOOKUP(P8,選手入力!$B$2:$X$202,23,FALSE)) ->  | AM8: =IF(Q8="","",VLOOKUP(R8,選手入力!$B$2:$X$202,23,FALSE)) -> 
J9: =IF(I9="","",VLOOKUP(I9,選手入力!$A$2:$B$202,2,FALSE)) ->  | L9: =IF(K9="","",VLOOKUP(K9,選手入力!$A$2:$B$202,2,FALSE)) ->  | N9: =IF(M9="","",VLOOKUP(M9,選手入力!$A$2:$B$202,2,FALSE)) ->  | P9: =IF(O9="","",VLOOKUP(O9,選手入力!$A$2:$B$202,2,FALSE)) ->  | R9: =IF(Q9="","",VLOOKUP(Q9,選手入力!$A$2:$B$202,2,FALSE)) ->  | S9: 7 | T9: 0 | U9: 0 | V9: 0 | W9: 0 | X9: 0 | Y9: 0000000 | AA9: =IF($B9="","",表紙!$B$34+リレー入力!$S9) ->  | AC9: =IF($B9="","",表紙!$B$4) ->  | AI9: =IF(I9="","",VLOOKUP(J9,選手入力!$B$2:$X$202,23,FALSE)) ->  | AJ9: =IF(K9="","",VLOOKUP(L9,選手入力!$B$2:$X$202,23,FALSE)) ->  | AK9: =IF(M9="","",VLOOKUP(N9,選手入力!$B$2:$X$202,23,FALSE)) ->  | AL9: =IF(O9="","",VLOOKUP(P9,選手入力!$B$2:$X$202,23,FALSE)) ->  | AM9: =IF(Q9="","",VLOOKUP(R9,選手入力!$B$2:$X$202,23,FALSE)) -> 
J10: =IF(I10="","",VLOOKUP(I10,選手入力!$A$2:$B$202,2,FALSE)) ->  | L10: =IF(K10="","",VLOOKUP(K10,選手入力!$A$2:$B$202,2,FALSE)) ->  | N10: =IF(M10="","",VLOOKUP(M10,選手入力!$A$2:$B$202,2,FALSE)) ->  | P10: =IF(O10="","",VLOOKUP(O10,選手入力!$A$2:$B$202,2,FALSE)) ->  | R10: =IF(Q10="","",VLOOKUP(Q10,選手入力!$A$2:$B$202,2,FALSE)) ->  | S10: 8 | T10: 0 | U10: 0 | V10: 0 | W10: 0 | X10: 0 | Y10: 0000000 | AA10: =IF($B10="","",表紙!$B$34+リレー入力!$S10) ->  | AC10: =IF($B10="","",表紙!$B$4) ->  | AI10: =IF(I10="","",VLOOKUP(J10,選手入力!$B$2:$X$202,23,FALSE)) ->  | AJ10: =IF(K10="","",VLOOKUP(L10,選手入力!$B$2:$X$202,23,FALSE)) ->  | AK10: =IF(M10="","",VLOOKUP(N10,選手入力!$B$2:$X$202,23,FALSE)) ->  | AL10: =IF(O10="","",VLOOKUP(P10,選手入力!$B$2:$X$202,23,FALSE)) ->  | AM10: =IF(Q10="","",VLOOKUP(R10,選手入力!$B$2:$X$202,23,FALSE)) -> 
J11: =IF(I11="","",VLOOKUP(I11,選手入力!$A$2:$B$202,2,FALSE)) ->  | L11: =IF(K11="","",VLOOKUP(K11,選手入力!$A$2:$B$202,2,FALSE)) ->  | N11: =IF(M11="","",VLOOKUP(M11,選手入力!$A$2:$B$202,2,FALSE)) ->  | P11: =IF(O11="","",VLOOKUP(O11,選手入力!$A$2:$B$202,2,FALSE)) ->  | R11: =IF(Q11="","",VLOOKUP(Q11,選手入力!$A$2:$B$202,2,FALSE)) ->  | S11: 9 | T11: 0 | U11: 0 | V11: 0 | W11: 0 | X11: 0 | Y11: 0000000 | AA11: =IF($B11="","",表紙!$B$34+リレー入力!$S11) ->  | AC11: =IF($B11="","",表紙!$B$4) ->  | AI11: =IF(I11="","",VLOOKUP(J11,選手入力!$B$2:$X$202,23,FALSE)) ->  | AJ11: =IF(K11="","",VLOOKUP(L11,選手入力!$B$2:$X$202,23,FALSE)) ->  | AK11: =IF(M11="","",VLOOKUP(N11,選手入力!$B$2:$X$202,23,FALSE)) ->  | AL11: =IF(O11="","",VLOOKUP(P11,選手入力!$B$2:$X$202,23,FALSE)) ->  | AM11: =IF(Q11="","",VLOOKUP(R11,選手入力!$B$2:$X$202,23,FALSE)) -> 
J12: =IF(I12="","",VLOOKUP(I12,選手入力!$A$2:$B$202,2,FALSE)) ->  | L12: =IF(K12="","",VLOOKUP(K12,選手入力!$A$2:$B$202,2,FALSE)) ->  | N12: =IF(M12="","",VLOOKUP(M12,選手入力!$A$2:$B$202,2,FALSE)) ->  | P12: =IF(O12="","",VLOOKUP(O12,選手入力!$A$2:$B$202,2,FALSE)) ->  | R12: =IF(Q12="","",VLOOKUP(Q12,選手入力!$A$2:$B$202,2,FALSE)) ->  | S12: 10 | T12: 0 | U12: 0 | V12: 0 | W12: 0 | X12: 0 | Y12: 0000000 | AA12: =IF($B12="","",表紙!$B$34+リレー入力!$S12) ->  | AC12: =IF($B12="","",表紙!$B$4) ->  | AI12: =IF(I12="","",VLOOKUP(J12,選手入力!$B$2:$X$202,23,FALSE)) ->  | AJ12: =IF(K12="","",VLOOKUP(L12,選手入力!$B$2:$X$202,23,FALSE)) ->  | AK12: =IF(M12="","",VLOOKUP(N12,選手入力!$B$2:$X$202,23,FALSE)) ->  | AL12: =IF(O12="","",VLOOKUP(P12,選手入力!$B$2:$X$202,23,FALSE)) ->  | AM12: =IF(Q12="","",VLOOKUP(R12,選手入力!$B$2:$X$202,23,FALSE)) -> 
J13: =IF(I13="","",VLOOKUP(I13,選手入力!$A$2:$B$202,2,FALSE)) ->  | L13: =IF(K13="","",VLOOKUP(K13,選手入力!$A$2:$B$202,2,FALSE)) ->  | N13: =IF(M13="","",VLOOKUP(M13,選手入力!$A$2:$B$202,2,FALSE)) ->  | P13: =IF(O13="","",VLOOKUP(O13,選手入力!$A$2:$B$202,2,FALSE)) ->  | R13: =IF(Q13="","",VLOOKUP(Q13,選手入力!$A$2:$B$202,2,FALSE)) ->  | S13: 11 | T13: 0 | U13: 0 | V13: 0 | W13: 0 | X13: 0 | Y13: 0000000 | AA13: =IF($B13="","",表紙!$B$34+リレー入力!$S13) ->  | AC13: =IF($B13="","",表紙!$B$4) ->  | AI13: =IF(I13="","",VLOOKUP(J13,選手入力!$B$2:$X$202,23,FALSE)) ->  | AJ13: =IF(K13="","",VLOOKUP(L13,選手入力!$B$2:$X$202,23,FALSE)) ->  | AK13: =IF(M13="","",VLOOKUP(N13,選手入力!$B$2:$X$202,23,FALSE)) ->  | AL13: =IF(O13="","",VLOOKUP(P13,選手入力!$B$2:$X$202,23,FALSE)) ->  | AM13: =IF(Q13="","",VLOOKUP(R13,選手入力!$B$2:$X$202,23,FALSE)) -> 
J14: =IF(I14="","",VLOOKUP(I14,選手入力!$A$2:$B$202,2,FALSE)) ->  | L14: =IF(K14="","",VLOOKUP(K14,選手入力!$A$2:$B$202,2,FALSE)) ->  | N14: =IF(M14="","",VLOOKUP(M14,選手入力!$A$2:$B$202,2,FALSE)) ->  | P14: =IF(O14="","",VLOOKUP(O14,選手入力!$A$2:$B$202,2,FALSE)) ->  | R14: =IF(Q14="","",VLOOKUP(Q14,選手入力!$A$2:$B$202,2,FALSE)) ->  | S14: 12 | T14: 0 | U14: 0 | V14: 0 | W14: 0 | X14: 0 | Y14: 0000000 | AA14: =IF($B14="","",表紙!$B$34+リレー入力!$S14) ->  | AC14: =IF($B14="","",表紙!$B$4) ->  | AI14: =IF(I14="","",VLOOKUP(J14,選手入力!$B$2:$X$202,23,FALSE)) ->  | AJ14: =IF(K14="","",VLOOKUP(L14,選手入力!$B$2:$X$202,23,FALSE)) ->  | AK14: =IF(M14="","",VLOOKUP(N14,選手入力!$B$2:$X$202,23,FALSE)) ->  | AL14: =IF(O14="","",VLOOKUP(P14,選手入力!$B$2:$X$202,23,FALSE)) ->  | AM14: =IF(Q14="","",VLOOKUP(R14,選手入力!$B$2:$X$202,23,FALSE)) -> 
J15: =IF(I15="","",VLOOKUP(I15,選手入力!$A$2:$B$202,2,FALSE)) ->  | L15: =IF(K15="","",VLOOKUP(K15,選手入力!$A$2:$B$202,2,FALSE)) ->  | N15: =IF(M15="","",VLOOKUP(M15,選手入力!$A$2:$B$202,2,FALSE)) ->  | P15: =IF(O15="","",VLOOKUP(O15,選手入力!$A$2:$B$202,2,FALSE)) ->  | R15: =IF(Q15="","",VLOOKUP(Q15,選手入力!$A$2:$B$202,2,FALSE)) ->  | S15: 13 | T15: 0 | U15: 0 | V15: 0 | W15: 0 | X15: 0 | Y15: 0000000 | AA15: =IF($B15="","",表紙!$B$34+リレー入力!$S15) ->  | AC15: =IF($B15="","",表紙!$B$4) ->  | AI15: =IF(I15="","",VLOOKUP(J15,選手入力!$B$2:$X$202,23,FALSE)) ->  | AJ15: =IF(K15="","",VLOOKUP(L15,選手入力!$B$2:$X$202,23,FALSE)) ->  | AK15: =IF(M15="","",VLOOKUP(N15,選手入力!$B$2:$X$202,23,FALSE)) ->  | AL15: =IF(O15="","",VLOOKUP(P15,選手入力!$B$2:$X$202,23,FALSE)) ->  | AM15: =IF(Q15="","",VLOOKUP(R15,選手入力!$B$2:$X$202,23,FALSE)) -> 
J16: =IF(I16="","",VLOOKUP(I16,選手入力!$A$2:$B$202,2,FALSE)) ->  | L16: =IF(K16="","",VLOOKUP(K16,選手入力!$A$2:$B$202,2,FALSE)) ->  | N16: =IF(M16="","",VLOOKUP(M16,選手入力!$A$2:$B$202,2,FALSE)) ->  | P16: =IF(O16="","",VLOOKUP(O16,選手入力!$A$2:$B$202,2,FALSE)) ->  | R16: =IF(Q16="","",VLOOKUP(Q16,選手入力!$A$2:$B$202,2,FALSE)) ->  | S16: 14 | T16: 0 | U16: 0 | V16: 0 | W16: 0 | X16: 0 | Y16: 0000000 | AA16: =IF($B16="","",表紙!$B$34+リレー入力!$S16) ->  | AC16: =IF($B16="","",表紙!$B$4) ->  | AI16: =IF(I16="","",VLOOKUP(J16,選手入力!$B$2:$X$202,23,FALSE)) ->  | AJ16: =IF(K16="","",VLOOKUP(L16,選手入力!$B$2:$X$202,23,FALSE)) ->  | AK16: =IF(M16="","",VLOOKUP(N16,選手入力!$B$2:$X$202,23,FALSE)) ->  | AL16: =IF(O16="","",VLOOKUP(P16,選手入力!$B$2:$X$202,23,FALSE)) ->  | AM16: =IF(Q16="","",VLOOKUP(R16,選手入力!$B$2:$X$202,23,FALSE)) -> 
J17: =IF(I17="","",VLOOKUP(I17,選手入力!$A$2:$B$202,2,FALSE)) ->  | L17: =IF(K17="","",VLOOKUP(K17,選手入力!$A$2:$B$202,2,FALSE)) ->  | N17: =IF(M17="","",VLOOKUP(M17,選手入力!$A$2:$B$202,2,FALSE)) ->  | P17: =IF(O17="","",VLOOKUP(O17,選手入力!$A$2:$B$202,2,FALSE)) ->  | R17: =IF(Q17="","",VLOOKUP(Q17,選手入力!$A$2:$B$202,2,FALSE)) ->  | S17: 15 | T17: 0 | U17: 0 | V17: 0 | W17: 0 | X17: 0 | Y17: 0000000 | AA17: =IF($B17="","",表紙!$B$34+リレー入力!$S17) ->  | AC17: =IF($B17="","",表紙!$B$4) ->  | AI17: =IF(I17="","",VLOOKUP(J17,選手入力!$B$2:$X$202,23,FALSE)) ->  | AJ17: =IF(K17="","",VLOOKUP(L17,選手入力!$B$2:$X$202,23,FALSE)) ->  | AK17: =IF(M17="","",VLOOKUP(N17,選手入力!$B$2:$X$202,23,FALSE)) ->  | AL17: =IF(O17="","",VLOOKUP(P17,選手入力!$B$2:$X$202,23,FALSE)) ->  | AM17: =IF(Q17="","",VLOOKUP(R17,選手入力!$B$2:$X$202,23,FALSE)) -> 
J18: =IF(I18="","",VLOOKUP(I18,選手入力!$A$2:$B$202,2,FALSE)) ->  | L18: =IF(K18="","",VLOOKUP(K18,選手入力!$A$2:$B$202,2,FALSE)) ->  | N18: =IF(M18="","",VLOOKUP(M18,選手入力!$A$2:$B$202,2,FALSE)) ->  | P18: =IF(O18="","",VLOOKUP(O18,選手入力!$A$2:$B$202,2,FALSE)) ->  | R18: =IF(Q18="","",VLOOKUP(Q18,選手入力!$A$2:$B$202,2,FALSE)) ->  | S18: 16 | T18: 0 | U18: 0 | V18: 0 | W18: 0 | X18: 0 | Y18: 0000000 | AA18: =IF($B18="","",表紙!$B$34+リレー入力!$S18) ->  | AC18: =IF($B18="","",表紙!$B$4) ->  | AI18: =IF(I18="","",VLOOKUP(J18,選手入力!$B$2:$X$202,23,FALSE)) ->  | AJ18: =IF(K18="","",VLOOKUP(L18,選手入力!$B$2:$X$202,23,FALSE)) ->  | AK18: =IF(M18="","",VLOOKUP(N18,選手入力!$B$2:$X$202,23,FALSE)) ->  | AL18: =IF(O18="","",VLOOKUP(P18,選手入力!$B$2:$X$202,23,FALSE)) ->  | AM18: =IF(Q18="","",VLOOKUP(R18,選手入力!$B$2:$X$202,23,FALSE)) -> 
J19: =IF(I19="","",VLOOKUP(I19,選手入力!$A$2:$B$202,2,FALSE)) ->  | L19: =IF(K19="","",VLOOKUP(K19,選手入力!$A$2:$B$202,2,FALSE)) ->  | N19: =IF(M19="","",VLOOKUP(M19,選手入力!$A$2:$B$202,2,FALSE)) ->  | P19: =IF(O19="","",VLOOKUP(O19,選手入力!$A$2:$B$202,2,FALSE)) ->  | R19: =IF(Q19="","",VLOOKUP(Q19,選手入力!$A$2:$B$202,2,FALSE)) ->  | S19: 17 | T19: 0 | U19: 0 | V19: 0 | W19: 0 | X19: 0 | Y19: 0000000 | AA19: =IF($B19="","",表紙!$B$34+リレー入力!$S19) ->  | AC19: =IF($B19="","",表紙!$B$4) ->  | AI19: =IF(I19="","",VLOOKUP(J19,選手入力!$B$2:$X$202,23,FALSE)) ->  | AJ19: =IF(K19="","",VLOOKUP(L19,選手入力!$B$2:$X$202,23,FALSE)) ->  | AK19: =IF(M19="","",VLOOKUP(N19,選手入力!$B$2:$X$202,23,FALSE)) ->  | AL19: =IF(O19="","",VLOOKUP(P19,選手入力!$B$2:$X$202,23,FALSE)) ->  | AM19: =IF(Q19="","",VLOOKUP(R19,選手入力!$B$2:$X$202,23,FALSE)) -> 
J20: =IF(I20="","",VLOOKUP(I20,選手入力!$A$2:$B$202,2,FALSE)) ->  | L20: =IF(K20="","",VLOOKUP(K20,選手入力!$A$2:$B$202,2,FALSE)) ->  | N20: =IF(M20="","",VLOOKUP(M20,選手入力!$A$2:$B$202,2,FALSE)) ->  | P20: =IF(O20="","",VLOOKUP(O20,選手入力!$A$2:$B$202,2,FALSE)) ->  | R20: =IF(Q20="","",VLOOKUP(Q20,選手入力!$A$2:$B$202,2,FALSE)) ->  | S20: 18 | T20: 0 | U20: 0 | V20: 0 | W20: 0 | X20: 0 | Y20: 0000000 | AA20: =IF($B20="","",表紙!$B$34+リレー入力!$S20) ->  | AC20: =IF($B20="","",表紙!$B$4) ->  | AI20: =IF(I20="","",VLOOKUP(J20,選手入力!$B$2:$X$202,23,FALSE)) ->  | AJ20: =IF(K20="","",VLOOKUP(L20,選手入力!$B$2:$X$202,23,FALSE)) ->  | AK20: =IF(M20="","",VLOOKUP(N20,選手入力!$B$2:$X$202,23,FALSE)) ->  | AL20: =IF(O20="","",VLOOKUP(P20,選手入力!$B$2:$X$202,23,FALSE)) ->  | AM20: =IF(Q20="","",VLOOKUP(R20,選手入力!$B$2:$X$202,23,FALSE)) -> 
J21: =IF(I21="","",VLOOKUP(I21,選手入力!$A$2:$B$202,2,FALSE)) ->  | L21: =IF(K21="","",VLOOKUP(K21,選手入力!$A$2:$B$202,2,FALSE)) ->  | N21: =IF(M21="","",VLOOKUP(M21,選手入力!$A$2:$B$202,2,FALSE)) ->  | P21: =IF(O21="","",VLOOKUP(O21,選手入力!$A$2:$B$202,2,FALSE)) ->  | R21: =IF(Q21="","",VLOOKUP(Q21,選手入力!$A$2:$B$202,2,FALSE)) ->  | S21: 19 | T21: 0 | U21: 0 | V21: 0 | W21: 0 | X21: 0 | Y21: 0000000 | AA21: =IF($B21="","",表紙!$B$34+リレー入力!$S21) ->  | AC21: =IF($B21="","",表紙!$B$4) ->  | AI21: =IF(I21="","",VLOOKUP(J21,選手入力!$B$2:$X$202,23,FALSE)) ->  | AJ21: =IF(K21="","",VLOOKUP(L21,選手入力!$B$2:$X$202,23,FALSE)) ->  | AK21: =IF(M21="","",VLOOKUP(N21,選手入力!$B$2:$X$202,23,FALSE)) ->  | AL21: =IF(O21="","",VLOOKUP(P21,選手入力!$B$2:$X$202,23,FALSE)) ->  | AM21: =IF(Q21="","",VLOOKUP(R21,選手入力!$B$2:$X$202,23,FALSE)) -> 
J22: =IF(I22="","",VLOOKUP(I22,選手入力!$A$2:$B$202,2,FALSE)) ->  | L22: =IF(K22="","",VLOOKUP(K22,選手入力!$A$2:$B$202,2,FALSE)) ->  | N22: =IF(M22="","",VLOOKUP(M22,選手入力!$A$2:$B$202,2,FALSE)) ->  | P22: =IF(O22="","",VLOOKUP(O22,選手入力!$A$2:$B$202,2,FALSE)) ->  | R22: =IF(Q22="","",VLOOKUP(Q22,選手入力!$A$2:$B$202,2,FALSE)) ->  | S22: 20 | T22: 0 | U22: 0 | V22: 0 | W22: 0 | X22: 0 | Y22: 0000000 | AA22: =IF($B22="","",表紙!$B$34+リレー入力!$S22) ->  | AC22: =IF($B22="","",表紙!$B$4) ->  | AI22: =IF(I22="","",VLOOKUP(J22,選手入力!$B$2:$X$202,23,FALSE)) ->  | AJ22: =IF(K22="","",VLOOKUP(L22,選手入力!$B$2:$X$202,23,FALSE)) ->  | AK22: =IF(M22="","",VLOOKUP(N22,選手入力!$B$2:$X$202,23,FALSE)) ->  | AL22: =IF(O22="","",VLOOKUP(P22,選手入力!$B$2:$X$202,23,FALSE)) ->  | AM22: =IF(Q22="","",VLOOKUP(R22,選手入力!$B$2:$X$202,23,FALSE)) -> 
J23: =IF(I23="","",VLOOKUP(I23,選手入力!$A$2:$B$202,2,FALSE)) ->  | L23: =IF(K23="","",VLOOKUP(K23,選手入力!$A$2:$B$202,2,FALSE)) ->  | N23: =IF(M23="","",VLOOKUP(M23,選手入力!$A$2:$B$202,2,FALSE)) ->  | P23: =IF(O23="","",VLOOKUP(O23,選手入力!$A$2:$B$202,2,FALSE)) ->  | R23: =IF(Q23="","",VLOOKUP(Q23,選手入力!$A$2:$B$202,2,FALSE)) ->  | S23: 21 | T23: 0 | U23: 0 | V23: 0 | W23: 0 | X23: 0 | Y23: 0000000 | AA23: =IF($B23="","",表紙!$B$34+リレー入力!$S23) ->  | AC23: =IF($B23="","",表紙!$B$4) ->  | AI23: =IF(I23="","",VLOOKUP(J23,選手入力!$B$2:$X$202,23,FALSE)) ->  | AJ23: =IF(K23="","",VLOOKUP(L23,選手入力!$B$2:$X$202,23,FALSE)) ->  | AK23: =IF(M23="","",VLOOKUP(N23,選手入力!$B$2:$X$202,23,FALSE)) ->  | AL23: =IF(O23="","",VLOOKUP(P23,選手入力!$B$2:$X$202,23,FALSE)) ->  | AM23: =IF(Q23="","",VLOOKUP(R23,選手入力!$B$2:$X$202,23,FALSE)) -> 
J24: =IF(I24="","",VLOOKUP(I24,選手入力!$A$2:$B$202,2,FALSE)) ->  | L24: =IF(K24="","",VLOOKUP(K24,選手入力!$A$2:$B$202,2,FALSE)) ->  | N24: =IF(M24="","",VLOOKUP(M24,選手入力!$A$2:$B$202,2,FALSE)) ->  | P24: =IF(O24="","",VLOOKUP(O24,選手入力!$A$2:$B$202,2,FALSE)) ->  | R24: =IF(Q24="","",VLOOKUP(Q24,選手入力!$A$2:$B$202,2,FALSE)) ->  | S24: 22 | T24: 0 | U24: 0 | V24: 0 | W24: 0 | X24: 0 | Y24: 0000000 | AA24: =IF($B24="","",表紙!$B$34+リレー入力!$S24) ->  | AC24: =IF($B24="","",表紙!$B$4) ->  | AI24: =IF(I24="","",VLOOKUP(J24,選手入力!$B$2:$X$202,23,FALSE)) ->  | AJ24: =IF(K24="","",VLOOKUP(L24,選手入力!$B$2:$X$202,23,FALSE)) ->  | AK24: =IF(M24="","",VLOOKUP(N24,選手入力!$B$2:$X$202,23,FALSE)) ->  | AL24: =IF(O24="","",VLOOKUP(P24,選手入力!$B$2:$X$202,23,FALSE)) ->  | AM24: =IF(Q24="","",VLOOKUP(R24,選手入力!$B$2:$X$202,23,FALSE)) -> 
J25: =IF(I25="","",VLOOKUP(I25,選手入力!$A$2:$B$202,2,FALSE)) ->  | L25: =IF(K25="","",VLOOKUP(K25,選手入力!$A$2:$B$202,2,FALSE)) ->  | N25: =IF(M25="","",VLOOKUP(M25,選手入力!$A$2:$B$202,2,FALSE)) ->  | P25: =IF(O25="","",VLOOKUP(O25,選手入力!$A$2:$B$202,2,FALSE)) ->  | R25: =IF(Q25="","",VLOOKUP(Q25,選手入力!$A$2:$B$202,2,FALSE)) ->  | S25: 23 | T25: 0 | U25: 0 | V25: 0 | W25: 0 | X25: 0 | Y25: 0000000 | AA25: =IF($B25="","",表紙!$B$34+リレー入力!$S25) ->  | AC25: =IF($B25="","",表紙!$B$4) ->  | AI25: =IF(I25="","",VLOOKUP(J25,選手入力!$B$2:$X$202,23,FALSE)) ->  | AJ25: =IF(K25="","",VLOOKUP(L25,選手入力!$B$2:$X$202,23,FALSE)) ->  | AK25: =IF(M25="","",VLOOKUP(N25,選手入力!$B$2:$X$202,23,FALSE)) ->  | AL25: =IF(O25="","",VLOOKUP(P25,選手入力!$B$2:$X$202,23,FALSE)) ->  | AM25: =IF(Q25="","",VLOOKUP(R25,選手入力!$B$2:$X$202,23,FALSE)) -> 
J26: =IF(I26="","",VLOOKUP(I26,選手入力!$A$2:$B$202,2,FALSE)) ->  | L26: =IF(K26="","",VLOOKUP(K26,選手入力!$A$2:$B$202,2,FALSE)) ->  | N26: =IF(M26="","",VLOOKUP(M26,選手入力!$A$2:$B$202,2,FALSE)) ->  | P26: =IF(O26="","",VLOOKUP(O26,選手入力!$A$2:$B$202,2,FALSE)) ->  | R26: =IF(Q26="","",VLOOKUP(Q26,選手入力!$A$2:$B$202,2,FALSE)) ->  | S26: 24 | T26: 0 | U26: 0 | V26: 0 | W26: 0 | X26: 0 | Y26: 0000000 | AA26: =IF($B26="","",表紙!$B$34+リレー入力!$S26) ->  | AC26: =IF($B26="","",表紙!$B$4) ->  | AI26: =IF(I26="","",VLOOKUP(J26,選手入力!$B$2:$X$202,23,FALSE)) ->  | AJ26: =IF(K26="","",VLOOKUP(L26,選手入力!$B$2:$X$202,23,FALSE)) ->  | AK26: =IF(M26="","",VLOOKUP(N26,選手入力!$B$2:$X$202,23,FALSE)) ->  | AL26: =IF(O26="","",VLOOKUP(P26,選手入力!$B$2:$X$202,23,FALSE)) ->  | AM26: =IF(Q26="","",VLOOKUP(R26,選手入力!$B$2:$X$202,23,FALSE)) -> 
J27: =IF(I27="","",VLOOKUP(I27,選手入力!$A$2:$B$202,2,FALSE)) ->  | L27: =IF(K27="","",VLOOKUP(K27,選手入力!$A$2:$B$202,2,FALSE)) ->  | N27: =IF(M27="","",VLOOKUP(M27,選手入力!$A$2:$B$202,2,FALSE)) ->  | P27: =IF(O27="","",VLOOKUP(O27,選手入力!$A$2:$B$202,2,FALSE)) ->  | R27: =IF(Q27="","",VLOOKUP(Q27,選手入力!$A$2:$B$202,2,FALSE)) ->  | S27: 25 | T27: 0 | U27: 0 | V27: 0 | W27: 0 | X27: 0 | Y27: 0000000 | AA27: =IF($B27="","",表紙!$B$34+リレー入力!$S27) ->  | AC27: =IF($B27="","",表紙!$B$4) ->  | AI27: =IF(I27="","",VLOOKUP(J27,選手入力!$B$2:$X$202,23,FALSE)) ->  | AJ27: =IF(K27="","",VLOOKUP(L27,選手入力!$B$2:$X$202,23,FALSE)) ->  | AK27: =IF(M27="","",VLOOKUP(N27,選手入力!$B$2:$X$202,23,FALSE)) ->  | AL27: =IF(O27="","",VLOOKUP(P27,選手入力!$B$2:$X$202,23,FALSE)) ->  | AM27: =IF(Q27="","",VLOOKUP(R27,選手入力!$B$2:$X$202,23,FALSE)) -> 
J28: =IF(I28="","",VLOOKUP(I28,選手入力!$A$2:$B$202,2,FALSE)) ->  | L28: =IF(K28="","",VLOOKUP(K28,選手入力!$A$2:$B$202,2,FALSE)) ->  | N28: =IF(M28="","",VLOOKUP(M28,選手入力!$A$2:$B$202,2,FALSE)) ->  | P28: =IF(O28="","",VLOOKUP(O28,選手入力!$A$2:$B$202,2,FALSE)) ->  | R28: =IF(Q28="","",VLOOKUP(Q28,選手入力!$A$2:$B$202,2,FALSE)) ->  | S28: 26 | T28: 0 | U28: 0 | V28: 0 | W28: 0 | X28: 0 | Y28: 0000000 | AA28: =IF($B28="","",表紙!$B$34+リレー入力!$S28) ->  | AC28: =IF($B28="","",表紙!$B$4) ->  | AI28: =IF(I28="","",VLOOKUP(J28,選手入力!$B$2:$X$202,23,FALSE)) ->  | AJ28: =IF(K28="","",VLOOKUP(L28,選手入力!$B$2:$X$202,23,FALSE)) ->  | AK28: =IF(M28="","",VLOOKUP(N28,選手入力!$B$2:$X$202,23,FALSE)) ->  | AL28: =IF(O28="","",VLOOKUP(P28,選手入力!$B$2:$X$202,23,FALSE)) ->  | AM28: =IF(Q28="","",VLOOKUP(R28,選手入力!$B$2:$X$202,23,FALSE)) -> 
J29: =IF(I29="","",VLOOKUP(I29,選手入力!$A$2:$B$202,2,FALSE)) ->  | L29: =IF(K29="","",VLOOKUP(K29,選手入力!$A$2:$B$202,2,FALSE)) ->  | N29: =IF(M29="","",VLOOKUP(M29,選手入力!$A$2:$B$202,2,FALSE)) ->  | P29: =IF(O29="","",VLOOKUP(O29,選手入力!$A$2:$B$202,2,FALSE)) ->  | R29: =IF(Q29="","",VLOOKUP(Q29,選手入力!$A$2:$B$202,2,FALSE)) ->  | S29: 27 | T29: 0 | U29: 0 | V29: 0 | W29: 0 | X29: 0 | Y29: 0000000 | AA29: =IF($B29="","",表紙!$B$34+リレー入力!$S29) ->  | AC29: =IF($B29="","",表紙!$B$4) ->  | AI29: =IF(I29="","",VLOOKUP(J29,選手入力!$B$2:$X$202,23,FALSE)) ->  | AJ29: =IF(K29="","",VLOOKUP(L29,選手入力!$B$2:$X$202,23,FALSE)) ->  | AK29: =IF(M29="","",VLOOKUP(N29,選手入力!$B$2:$X$202,23,FALSE)) ->  | AL29: =IF(O29="","",VLOOKUP(P29,選手入力!$B$2:$X$202,23,FALSE)) ->  | AM29: =IF(Q29="","",VLOOKUP(R29,選手入力!$B$2:$X$202,23,FALSE)) -> 
J30: =IF(I30="","",VLOOKUP(I30,選手入力!$A$2:$B$202,2,FALSE)) ->  | L30: =IF(K30="","",VLOOKUP(K30,選手入力!$A$2:$B$202,2,FALSE)) ->  | N30: =IF(M30="","",VLOOKUP(M30,選手入力!$A$2:$B$202,2,FALSE)) ->  | P30: =IF(O30="","",VLOOKUP(O30,選手入力!$A$2:$B$202,2,FALSE)) ->  | R30: =IF(Q30="","",VLOOKUP(Q30,選手入力!$A$2:$B$202,2,FALSE)) ->  | S30: 28 | T30: 0 | U30: 0 | V30: 0 | W30: 0 | X30: 0 | Y30: 0000000 | AA30: =IF($B30="","",表紙!$B$34+リレー入力!$S30) ->  | AC30: =IF($B30="","",表紙!$B$4) ->  | AI30: =IF(I30="","",VLOOKUP(J30,選手入力!$B$2:$X$202,23,FALSE)) ->  | AJ30: =IF(K30="","",VLOOKUP(L30,選手入力!$B$2:$X$202,23,FALSE)) ->  | AK30: =IF(M30="","",VLOOKUP(N30,選手入力!$B$2:$X$202,23,FALSE)) ->  | AL30: =IF(O30="","",VLOOKUP(P30,選手入力!$B$2:$X$202,23,FALSE)) ->  | AM30: =IF(Q30="","",VLOOKUP(R30,選手入力!$B$2:$X$202,23,FALSE)) -> 
J31: =IF(I31="","",VLOOKUP(I31,選手入力!$A$2:$B$202,2,FALSE)) ->  | L31: =IF(K31="","",VLOOKUP(K31,選手入力!$A$2:$B$202,2,FALSE)) ->  | N31: =IF(M31="","",VLOOKUP(M31,選手入力!$A$2:$B$202,2,FALSE)) ->  | P31: =IF(O31="","",VLOOKUP(O31,選手入力!$A$2:$B$202,2,FALSE)) ->  | R31: =IF(Q31="","",VLOOKUP(Q31,選手入力!$A$2:$B$202,2,FALSE)) ->  | S31: 29 | T31: 0 | U31: 0 | V31: 0 | W31: 0 | X31: 0 | Y31: 0000000 | AA31: =IF($B31="","",表紙!$B$34+リレー入力!$S31) ->  | AC31: =IF($B31="","",表紙!$B$4) ->  | AI31: =IF(I31="","",VLOOKUP(J31,選手入力!$B$2:$X$202,23,FALSE)) ->  | AJ31: =IF(K31="","",VLOOKUP(L31,選手入力!$B$2:$X$202,23,FALSE)) ->  | AK31: =IF(M31="","",VLOOKUP(N31,選手入力!$B$2:$X$202,23,FALSE)) ->  | AL31: =IF(O31="","",VLOOKUP(P31,選手入力!$B$2:$X$202,23,FALSE)) ->  | AM31: =IF(Q31="","",VLOOKUP(R31,選手入力!$B$2:$X$202,23,FALSE)) -> 
J32: =IF(I32="","",VLOOKUP(I32,選手入力!$A$2:$B$202,2,FALSE)) ->  | L32: =IF(K32="","",VLOOKUP(K32,選手入力!$A$2:$B$202,2,FALSE)) ->  | N32: =IF(M32="","",VLOOKUP(M32,選手入力!$A$2:$B$202,2,FALSE)) ->  | P32: =IF(O32="","",VLOOKUP(O32,選手入力!$A$2:$B$202,2,FALSE)) ->  | R32: =IF(Q32="","",VLOOKUP(Q32,選手入力!$A$2:$B$202,2,FALSE)) ->  | S32: 30 | T32: 0 | U32: 0 | V32: 0 | W32: 0 | X32: 0 | Y32: 0000000 | AA32: =IF($B32="","",表紙!$B$34+リレー入力!$S32) ->  | AC32: =IF($B32="","",表紙!$B$4) ->  | AI32: =IF(I32="","",VLOOKUP(J32,選手入力!$B$2:$X$202,23,FALSE)) ->  | AJ32: =IF(K32="","",VLOOKUP(L32,選手入力!$B$2:$X$202,23,FALSE)) ->  | AK32: =IF(M32="","",VLOOKUP(N32,選手入力!$B$2:$X$202,23,FALSE)) ->  | AL32: =IF(O32="","",VLOOKUP(P32,選手入力!$B$2:$X$202,23,FALSE)) ->  | AM32: =IF(Q32="","",VLOOKUP(R32,選手入力!$B$2:$X$202,23,FALSE)) -> 
J33: =IF(I33="","",VLOOKUP(I33,選手入力!$A$2:$B$202,2,FALSE)) ->  | L33: =IF(K33="","",VLOOKUP(K33,選手入力!$A$2:$B$202,2,FALSE)) ->  | N33: =IF(M33="","",VLOOKUP(M33,選手入力!$A$2:$B$202,2,FALSE)) ->  | P33: =IF(O33="","",VLOOKUP(O33,選手入力!$A$2:$B$202,2,FALSE)) ->  | R33: =IF(Q33="","",VLOOKUP(Q33,選手入力!$A$2:$B$202,2,FALSE)) ->  | S33: 31 | T33: 0 | U33: 0 | V33: 0 | W33: 0 | X33: 0 | Y33: 0000000 | AA33: =IF($B33="","",表紙!$B$34+リレー入力!$S33) ->  | AC33: =IF($B33="","",表紙!$B$4) ->  | AI33: =IF(I33="","",VLOOKUP(J33,選手入力!$B$2:$X$202,23,FALSE)) ->  | AJ33: =IF(K33="","",VLOOKUP(L33,選手入力!$B$2:$X$202,23,FALSE)) ->  | AK33: =IF(M33="","",VLOOKUP(N33,選手入力!$B$2:$X$202,23,FALSE)) ->  | AL33: =IF(O33="","",VLOOKUP(P33,選手入力!$B$2:$X$202,23,FALSE)) ->  | AM33: =IF(Q33="","",VLOOKUP(R33,選手入力!$B$2:$X$202,23,FALSE)) -> 
J34: =IF(I34="","",VLOOKUP(I34,選手入力!$A$2:$B$202,2,FALSE)) ->  | L34: =IF(K34="","",VLOOKUP(K34,選手入力!$A$2:$B$202,2,FALSE)) ->  | N34: =IF(M34="","",VLOOKUP(M34,選手入力!$A$2:$B$202,2,FALSE)) ->  | P34: =IF(O34="","",VLOOKUP(O34,選手入力!$A$2:$B$202,2,FALSE)) ->  | R34: =IF(Q34="","",VLOOKUP(Q34,選手入力!$A$2:$B$202,2,FALSE)) ->  | S34: 32 | T34: 0 | U34: 0 | V34: 0 | W34: 0 | X34: 0 | Y34: 0000000 | AA34: =IF($B34="","",表紙!$B$34+リレー入力!$S34) ->  | AC34: =IF($B34="","",表紙!$B$4) ->  | AI34: =IF(I34="","",VLOOKUP(J34,選手入力!$B$2:$X$202,23,FALSE)) ->  | AJ34: =IF(K34="","",VLOOKUP(L34,選手入力!$B$2:$X$202,23,FALSE)) ->  | AK34: =IF(M34="","",VLOOKUP(N34,選手入力!$B$2:$X$202,23,FALSE)) ->  | AL34: =IF(O34="","",VLOOKUP(P34,選手入力!$B$2:$X$202,23,FALSE)) ->  | AM34: =IF(Q34="","",VLOOKUP(R34,選手入力!$B$2:$X$202,23,FALSE)) -> 
J35: =IF(I35="","",VLOOKUP(I35,選手入力!$A$2:$B$202,2,FALSE)) ->  | L35: =IF(K35="","",VLOOKUP(K35,選手入力!$A$2:$B$202,2,FALSE)) ->  | N35: =IF(M35="","",VLOOKUP(M35,選手入力!$A$2:$B$202,2,FALSE)) ->  | P35: =IF(O35="","",VLOOKUP(O35,選手入力!$A$2:$B$202,2,FALSE)) ->  | R35: =IF(Q35="","",VLOOKUP(Q35,選手入力!$A$2:$B$202,2,FALSE)) ->  | S35: 33 | T35: 0 | U35: 0 | V35: 0 | W35: 0 | X35: 0 | Y35: 0000000 | AA35: =IF($B35="","",表紙!$B$34+リレー入力!$S35) ->  | AC35: =IF($B35="","",表紙!$B$4) ->  | AI35: =IF(I35="","",VLOOKUP(J35,選手入力!$B$2:$X$202,23,FALSE)) ->  | AJ35: =IF(K35="","",VLOOKUP(L35,選手入力!$B$2:$X$202,23,FALSE)) ->  | AK35: =IF(M35="","",VLOOKUP(N35,選手入力!$B$2:$X$202,23,FALSE)) ->  | AL35: =IF(O35="","",VLOOKUP(P35,選手入力!$B$2:$X$202,23,FALSE)) ->  | AM35: =IF(Q35="","",VLOOKUP(R35,選手入力!$B$2:$X$202,23,FALSE)) -> 
J36: =IF(I36="","",VLOOKUP(I36,選手入力!$A$2:$B$202,2,FALSE)) ->  | L36: =IF(K36="","",VLOOKUP(K36,選手入力!$A$2:$B$202,2,FALSE)) ->  | N36: =IF(M36="","",VLOOKUP(M36,選手入力!$A$2:$B$202,2,FALSE)) ->  | P36: =IF(O36="","",VLOOKUP(O36,選手入力!$A$2:$B$202,2,FALSE)) ->  | R36: =IF(Q36="","",VLOOKUP(Q36,選手入力!$A$2:$B$202,2,FALSE)) ->  | S36: 34 | T36: 0 | U36: 0 | V36: 0 | W36: 0 | X36: 0 | Y36: 0000000 | AA36: =IF($B36="","",表紙!$B$34+リレー入力!$S36) ->  | AC36: =IF($B36="","",表紙!$B$4) ->  | AI36: =IF(I36="","",VLOOKUP(J36,選手入力!$B$2:$X$202,23,FALSE)) ->  | AJ36: =IF(K36="","",VLOOKUP(L36,選手入力!$B$2:$X$202,23,FALSE)) ->  | AK36: =IF(M36="","",VLOOKUP(N36,選手入力!$B$2:$X$202,23,FALSE)) ->  | AL36: =IF(O36="","",VLOOKUP(P36,選手入力!$B$2:$X$202,23,FALSE)) ->  | AM36: =IF(Q36="","",VLOOKUP(R36,選手入力!$B$2:$X$202,23,FALSE)) -> 
J37: =IF(I37="","",VLOOKUP(I37,選手入力!$A$2:$B$202,2,FALSE)) ->  | L37: =IF(K37="","",VLOOKUP(K37,選手入力!$A$2:$B$202,2,FALSE)) ->  | N37: =IF(M37="","",VLOOKUP(M37,選手入力!$A$2:$B$202,2,FALSE)) ->  | P37: =IF(O37="","",VLOOKUP(O37,選手入力!$A$2:$B$202,2,FALSE)) ->  | R37: =IF(Q37="","",VLOOKUP(Q37,選手入力!$A$2:$B$202,2,FALSE)) ->  | S37: 35 | T37: 0 | U37: 0 | V37: 0 | W37: 0 | X37: 0 | Y37: 0000000 | AA37: =IF($B37="","",表紙!$B$34+リレー入力!$S37) ->  | AC37: =IF($B37="","",表紙!$B$4) ->  | AI37: =IF(I37="","",VLOOKUP(J37,選手入力!$B$2:$X$202,23,FALSE)) ->  | AJ37: =IF(K37="","",VLOOKUP(L37,選手入力!$B$2:$X$202,23,FALSE)) ->  | AK37: =IF(M37="","",VLOOKUP(N37,選手入力!$B$2:$X$202,23,FALSE)) ->  | AL37: =IF(O37="","",VLOOKUP(P37,選手入力!$B$2:$X$202,23,FALSE)) ->  | AM37: =IF(Q37="","",VLOOKUP(R37,選手入力!$B$2:$X$202,23,FALSE)) -> 
J38: =IF(I38="","",VLOOKUP(I38,選手入力!$A$2:$B$202,2,FALSE)) ->  | L38: =IF(K38="","",VLOOKUP(K38,選手入力!$A$2:$B$202,2,FALSE)) ->  | N38: =IF(M38="","",VLOOKUP(M38,選手入力!$A$2:$B$202,2,FALSE)) ->  | P38: =IF(O38="","",VLOOKUP(O38,選手入力!$A$2:$B$202,2,FALSE)) ->  | R38: =IF(Q38="","",VLOOKUP(Q38,選手入力!$A$2:$B$202,2,FALSE)) ->  | S38: 36 | T38: 0 | U38: 0 | V38: 0 | W38: 0 | X38: 0 | Y38: 0000000 | AA38: =IF($B38="","",表紙!$B$34+リレー入力!$S38) ->  | AC38: =IF($B38="","",表紙!$B$4) ->  | AI38: =IF(I38="","",VLOOKUP(J38,選手入力!$B$2:$X$202,23,FALSE)) ->  | AJ38: =IF(K38="","",VLOOKUP(L38,選手入力!$B$2:$X$202,23,FALSE)) ->  | AK38: =IF(M38="","",VLOOKUP(N38,選手入力!$B$2:$X$202,23,FALSE)) ->  | AL38: =IF(O38="","",VLOOKUP(P38,選手入力!$B$2:$X$202,23,FALSE)) ->  | AM38: =IF(Q38="","",VLOOKUP(R38,選手入力!$B$2:$X$202,23,FALSE)) -> 
J39: =IF(I39="","",VLOOKUP(I39,選手入力!$A$2:$B$202,2,FALSE)) ->  | L39: =IF(K39="","",VLOOKUP(K39,選手入力!$A$2:$B$202,2,FALSE)) ->  | N39: =IF(M39="","",VLOOKUP(M39,選手入力!$A$2:$B$202,2,FALSE)) ->  | P39: =IF(O39="","",VLOOKUP(O39,選手入力!$A$2:$B$202,2,FALSE)) ->  | R39: =IF(Q39="","",VLOOKUP(Q39,選手入力!$A$2:$B$202,2,FALSE)) ->  | S39: 37 | T39: 0 | U39: 0 | V39: 0 | W39: 0 | X39: 0 | Y39: 0000000 | AA39: =IF($B39="","",表紙!$B$34+リレー入力!$S39) ->  | AC39: =IF($B39="","",表紙!$B$4) ->  | AI39: =IF(I39="","",VLOOKUP(J39,選手入力!$B$2:$X$202,23,FALSE)) ->  | AJ39: =IF(K39="","",VLOOKUP(L39,選手入力!$B$2:$X$202,23,FALSE)) ->  | AK39: =IF(M39="","",VLOOKUP(N39,選手入力!$B$2:$X$202,23,FALSE)) ->  | AL39: =IF(O39="","",VLOOKUP(P39,選手入力!$B$2:$X$202,23,FALSE)) ->  | AM39: =IF(Q39="","",VLOOKUP(R39,選手入力!$B$2:$X$202,23,FALSE)) -> 
J40: =IF(I40="","",VLOOKUP(I40,選手入力!$A$2:$B$202,2,FALSE)) ->  | L40: =IF(K40="","",VLOOKUP(K40,選手入力!$A$2:$B$202,2,FALSE)) ->  | N40: =IF(M40="","",VLOOKUP(M40,選手入力!$A$2:$B$202,2,FALSE)) ->  | P40: =IF(O40="","",VLOOKUP(O40,選手入力!$A$2:$B$202,2,FALSE)) ->  | R40: =IF(Q40="","",VLOOKUP(Q40,選手入力!$A$2:$B$202,2,FALSE)) ->  | S40: 38 | T40: 0 | U40: 0 | V40: 0 | W40: 0 | X40: 0 | Y40: 0000000 | AA40: =IF($B40="","",表紙!$B$34+リレー入力!$S40) ->  | AC40: =IF($B40="","",表紙!$B$4) ->  | AI40: =IF(I40="","",VLOOKUP(J40,選手入力!$B$2:$X$202,23,FALSE)) ->  | AJ40: =IF(K40="","",VLOOKUP(L40,選手入力!$B$2:$X$202,23,FALSE)) ->  | AK40: =IF(M40="","",VLOOKUP(N40,選手入力!$B$2:$X$202,23,FALSE)) ->  | AL40: =IF(O40="","",VLOOKUP(P40,選手入力!$B$2:$X$202,23,FALSE)) ->  | AM40: =IF(Q40="","",VLOOKUP(R40,選手入力!$B$2:$X$202,23,FALSE)) -> 
J41: =IF(I41="","",VLOOKUP(I41,選手入力!$A$2:$B$202,2,FALSE)) ->  | L41: =IF(K41="","",VLOOKUP(K41,選手入力!$A$2:$B$202,2,FALSE)) ->  | N41: =IF(M41="","",VLOOKUP(M41,選手入力!$A$2:$B$202,2,FALSE)) ->  | P41: =IF(O41="","",VLOOKUP(O41,選手入力!$A$2:$B$202,2,FALSE)) ->  | R41: =IF(Q41="","",VLOOKUP(Q41,選手入力!$A$2:$B$202,2,FALSE)) ->  | S41: 39 | T41: 0 | U41: 0 | V41: 0 | W41: 0 | X41: 0 | Y41: 0000000 | AA41: =IF($B41="","",表紙!$B$34+リレー入力!$S41) ->  | AC41: =IF($B41="","",表紙!$B$4) ->  | AI41: =IF(I41="","",VLOOKUP(J41,選手入力!$B$2:$X$202,23,FALSE)) ->  | AJ41: =IF(K41="","",VLOOKUP(L41,選手入力!$B$2:$X$202,23,FALSE)) ->  | AK41: =IF(M41="","",VLOOKUP(N41,選手入力!$B$2:$X$202,23,FALSE)) ->  | AL41: =IF(O41="","",VLOOKUP(P41,選手入力!$B$2:$X$202,23,FALSE)) ->  | AM41: =IF(Q41="","",VLOOKUP(R41,選手入力!$B$2:$X$202,23,FALSE)) -> 
J42: =IF(I42="","",VLOOKUP(I42,選手入力!$A$2:$B$202,2,FALSE)) ->  | L42: =IF(K42="","",VLOOKUP(K42,選手入力!$A$2:$B$202,2,FALSE)) ->  | N42: =IF(M42="","",VLOOKUP(M42,選手入力!$A$2:$B$202,2,FALSE)) ->  | P42: =IF(O42="","",VLOOKUP(O42,選手入力!$A$2:$B$202,2,FALSE)) ->  | R42: =IF(Q42="","",VLOOKUP(Q42,選手入力!$A$2:$B$202,2,FALSE)) ->  | S42: 40 | T42: 0 | U42: 0 | V42: 0 | W42: 0 | X42: 0 | Y42: 0000000 | AA42: =IF($B42="","",表紙!$B$34+リレー入力!$S42) ->  | AC42: =IF($B42="","",表紙!$B$4) ->  | AI42: =IF(I42="","",VLOOKUP(J42,選手入力!$B$2:$X$202,23,FALSE)) ->  | AJ42: =IF(K42="","",VLOOKUP(L42,選手入力!$B$2:$X$202,23,FALSE)) ->  | AK42: =IF(M42="","",VLOOKUP(N42,選手入力!$B$2:$X$202,23,FALSE)) ->  | AL42: =IF(O42="","",VLOOKUP(P42,選手入力!$B$2:$X$202,23,FALSE)) ->  | AM42: =IF(Q42="","",VLOOKUP(R42,選手入力!$B$2:$X$202,23,FALSE)) -> 
A43: 女子4×100mリレー | B43: =IF(I43="","",表紙!$B$2) ->  | C43: =IF(B43="","",VLOOKUP(リレー入力!B43,学校データ!$A:$E,4,FALSE)) ->  | J43: =IF(I43="","",VLOOKUP(I43,選手入力!$A$2:$B$202,2,FALSE)) ->  | L43: =IF(K43="","",VLOOKUP(K43,選手入力!$A$2:$B$202,2,FALSE)) ->  | N43: =IF(M43="","",VLOOKUP(M43,選手入力!$A$2:$B$202,2,FALSE)) ->  | P43: =IF(O43="","",VLOOKUP(O43,選手入力!$A$2:$B$202,2,FALSE)) ->  | R43: =IF(Q43="","",VLOOKUP(Q43,選手入力!$A$2:$B$202,2,FALSE)) ->  | S43: 41 | T43: 0 | U43: 0 | V43: 0 | W43: 0 | X43: 0 | Y43: 0000000 | AA43: =IF($B43="","",表紙!$B$34+リレー入力!$S43) ->  | AC43: =IF($B43="","",表紙!$B$4) ->  | AI43: =IF(I43="","",VLOOKUP(J43,選手入力!$B$2:$X$202,23,FALSE)) ->  | AJ43: =IF(K43="","",VLOOKUP(L43,選手入力!$B$2:$X$202,23,FALSE)) ->  | AK43: =IF(M43="","",VLOOKUP(N43,選手入力!$B$2:$X$202,23,FALSE)) ->  | AL43: =IF(O43="","",VLOOKUP(P43,選手入力!$B$2:$X$202,23,FALSE)) ->  | AM43: =IF(Q43="","",VLOOKUP(R43,選手入力!$B$2:$X$202,23,FALSE)) -> 
J44: =IF(I44="","",VLOOKUP(I44,選手入力!$A$2:$B$202,2,FALSE)) ->  | L44: =IF(K44="","",VLOOKUP(K44,選手入力!$A$2:$B$202,2,FALSE)) ->  | N44: =IF(M44="","",VLOOKUP(M44,選手入力!$A$2:$B$202,2,FALSE)) ->  | P44: =IF(O44="","",VLOOKUP(O44,選手入力!$A$2:$B$202,2,FALSE)) ->  | R44: =IF(Q44="","",VLOOKUP(Q44,選手入力!$A$2:$B$202,2,FALSE)) ->  | S44: 42 | T44: 0 | U44: 0 | V44: 0 | W44: 0 | X44: 0 | Y44: 0000000 | AA44: =IF($B44="","",表紙!$B$34+リレー入力!$S44) ->  | AC44: =IF($B44="","",表紙!$B$4) ->  | AI44: =IF(I44="","",VLOOKUP(J44,選手入力!$B$2:$X$202,23,FALSE)) ->  | AJ44: =IF(K44="","",VLOOKUP(L44,選手入力!$B$2:$X$202,23,FALSE)) ->  | AK44: =IF(M44="","",VLOOKUP(N44,選手入力!$B$2:$X$202,23,FALSE)) ->  | AL44: =IF(O44="","",VLOOKUP(P44,選手入力!$B$2:$X$202,23,FALSE)) ->  | AM44: =IF(Q44="","",VLOOKUP(R44,選手入力!$B$2:$X$202,23,FALSE)) -> 
J45: =IF(I45="","",VLOOKUP(I45,選手入力!$A$2:$B$202,2,FALSE)) ->  | L45: =IF(K45="","",VLOOKUP(K45,選手入力!$A$2:$B$202,2,FALSE)) ->  | N45: =IF(M45="","",VLOOKUP(M45,選手入力!$A$2:$B$202,2,FALSE)) ->  | P45: =IF(O45="","",VLOOKUP(O45,選手入力!$A$2:$B$202,2,FALSE)) ->  | R45: =IF(Q45="","",VLOOKUP(Q45,選手入力!$A$2:$B$202,2,FALSE)) ->  | S45: 43 | T45: 0 | U45: 0 | V45: 0 | W45: 0 | X45: 0 | Y45: 0000000 | AA45: =IF($B45="","",表紙!$B$34+リレー入力!$S45) ->  | AC45: =IF($B45="","",表紙!$B$4) ->  | AI45: =IF(I45="","",VLOOKUP(J45,選手入力!$B$2:$X$202,23,FALSE)) ->  | AJ45: =IF(K45="","",VLOOKUP(L45,選手入力!$B$2:$X$202,23,FALSE)) ->  | AK45: =IF(M45="","",VLOOKUP(N45,選手入力!$B$2:$X$202,23,FALSE)) ->  | AL45: =IF(O45="","",VLOOKUP(P45,選手入力!$B$2:$X$202,23,FALSE)) ->  | AM45: =IF(Q45="","",VLOOKUP(R45,選手入力!$B$2:$X$202,23,FALSE)) -> 
J46: =IF(I46="","",VLOOKUP(I46,選手入力!$A$2:$B$202,2,FALSE)) ->  | L46: =IF(K46="","",VLOOKUP(K46,選手入力!$A$2:$B$202,2,FALSE)) ->  | N46: =IF(M46="","",VLOOKUP(M46,選手入力!$A$2:$B$202,2,FALSE)) ->  | P46: =IF(O46="","",VLOOKUP(O46,選手入力!$A$2:$B$202,2,FALSE)) ->  | R46: =IF(Q46="","",VLOOKUP(Q46,選手入力!$A$2:$B$202,2,FALSE)) ->  | S46: 44 | T46: 0 | U46: 0 | V46: 0 | W46: 0 | X46: 0 | Y46: 0000000 | AA46: =IF($B46="","",表紙!$B$34+リレー入力!$S46) ->  | AC46: =IF($B46="","",表紙!$B$4) ->  | AI46: =IF(I46="","",VLOOKUP(J46,選手入力!$B$2:$X$202,23,FALSE)) ->  | AJ46: =IF(K46="","",VLOOKUP(L46,選手入力!$B$2:$X$202,23,FALSE)) ->  | AK46: =IF(M46="","",VLOOKUP(N46,選手入力!$B$2:$X$202,23,FALSE)) ->  | AL46: =IF(O46="","",VLOOKUP(P46,選手入力!$B$2:$X$202,23,FALSE)) ->  | AM46: =IF(Q46="","",VLOOKUP(R46,選手入力!$B$2:$X$202,23,FALSE)) -> 
J47: =IF(I47="","",VLOOKUP(I47,選手入力!$A$2:$B$202,2,FALSE)) ->  | L47: =IF(K47="","",VLOOKUP(K47,選手入力!$A$2:$B$202,2,FALSE)) ->  | N47: =IF(M47="","",VLOOKUP(M47,選手入力!$A$2:$B$202,2,FALSE)) ->  | P47: =IF(O47="","",VLOOKUP(O47,選手入力!$A$2:$B$202,2,FALSE)) ->  | R47: =IF(Q47="","",VLOOKUP(Q47,選手入力!$A$2:$B$202,2,FALSE)) ->  | S47: 45 | T47: 0 | U47: 0 | V47: 0 | W47: 0 | X47: 0 | Y47: 0000000 | AA47: =IF($B47="","",表紙!$B$34+リレー入力!$S47) ->  | AC47: =IF($B47="","",表紙!$B$4) ->  | AI47: =IF(I47="","",VLOOKUP(J47,選手入力!$B$2:$X$202,23,FALSE)) ->  | AJ47: =IF(K47="","",VLOOKUP(L47,選手入力!$B$2:$X$202,23,FALSE)) ->  | AK47: =IF(M47="","",VLOOKUP(N47,選手入力!$B$2:$X$202,23,FALSE)) ->  | AL47: =IF(O47="","",VLOOKUP(P47,選手入力!$B$2:$X$202,23,FALSE)) ->  | AM47: =IF(Q47="","",VLOOKUP(R47,選手入力!$B$2:$X$202,23,FALSE)) -> 
J48: =IF(I48="","",VLOOKUP(I48,選手入力!$A$2:$B$202,2,FALSE)) ->  | L48: =IF(K48="","",VLOOKUP(K48,選手入力!$A$2:$B$202,2,FALSE)) ->  | N48: =IF(M48="","",VLOOKUP(M48,選手入力!$A$2:$B$202,2,FALSE)) ->  | P48: =IF(O48="","",VLOOKUP(O48,選手入力!$A$2:$B$202,2,FALSE)) ->  | R48: =IF(Q48="","",VLOOKUP(Q48,選手入力!$A$2:$B$202,2,FALSE)) ->  | S48: 46 | T48: 0 | U48: 0 | V48: 0 | W48: 0 | X48: 0 | Y48: 0000000 | AA48: =IF($B48="","",表紙!$B$34+リレー入力!$S48) ->  | AC48: =IF($B48="","",表紙!$B$4) ->  | AI48: =IF(I48="","",VLOOKUP(J48,選手入力!$B$2:$X$202,23,FALSE)) ->  | AJ48: =IF(K48="","",VLOOKUP(L48,選手入力!$B$2:$X$202,23,FALSE)) ->  | AK48: =IF(M48="","",VLOOKUP(N48,選手入力!$B$2:$X$202,23,FALSE)) ->  | AL48: =IF(O48="","",VLOOKUP(P48,選手入力!$B$2:$X$202,23,FALSE)) ->  | AM48: =IF(Q48="","",VLOOKUP(R48,選手入力!$B$2:$X$202,23,FALSE)) -> 
J49: =IF(I49="","",VLOOKUP(I49,選手入力!$A$2:$B$202,2,FALSE)) ->  | L49: =IF(K49="","",VLOOKUP(K49,選手入力!$A$2:$B$202,2,FALSE)) ->  | N49: =IF(M49="","",VLOOKUP(M49,選手入力!$A$2:$B$202,2,FALSE)) ->  | P49: =IF(O49="","",VLOOKUP(O49,選手入力!$A$2:$B$202,2,FALSE)) ->  | R49: =IF(Q49="","",VLOOKUP(Q49,選手入力!$A$2:$B$202,2,FALSE)) ->  | S49: 47 | T49: 0 | U49: 0 | V49: 0 | W49: 0 | X49: 0 | Y49: 0000000 | AA49: =IF($B49="","",表紙!$B$34+リレー入力!$S49) ->  | AC49: =IF($B49="","",表紙!$B$4) ->  | AI49: =IF(I49="","",VLOOKUP(J49,選手入力!$B$2:$X$202,23,FALSE)) ->  | AJ49: =IF(K49="","",VLOOKUP(L49,選手入力!$B$2:$X$202,23,FALSE)) ->  | AK49: =IF(M49="","",VLOOKUP(N49,選手入力!$B$2:$X$202,23,FALSE)) ->  | AL49: =IF(O49="","",VLOOKUP(P49,選手入力!$B$2:$X$202,23,FALSE)) ->  | AM49: =IF(Q49="","",VLOOKUP(R49,選手入力!$B$2:$X$202,23,FALSE)) -> 
J50: =IF(I50="","",VLOOKUP(I50,選手入力!$A$2:$B$202,2,FALSE)) ->  | L50: =IF(K50="","",VLOOKUP(K50,選手入力!$A$2:$B$202,2,FALSE)) ->  | N50: =IF(M50="","",VLOOKUP(M50,選手入力!$A$2:$B$202,2,FALSE)) ->  | P50: =IF(O50="","",VLOOKUP(O50,選手入力!$A$2:$B$202,2,FALSE)) ->  | R50: =IF(Q50="","",VLOOKUP(Q50,選手入力!$A$2:$B$202,2,FALSE)) ->  | S50: 48 | T50: 0 | U50: 0 | V50: 0 | W50: 0 | X50: 0 | Y50: 0000000 | AA50: =IF($B50="","",表紙!$B$34+リレー入力!$S50) ->  | AC50: =IF($B50="","",表紙!$B$4) ->  | AI50: =IF(I50="","",VLOOKUP(J50,選手入力!$B$2:$X$202,23,FALSE)) ->  | AJ50: =IF(K50="","",VLOOKUP(L50,選手入力!$B$2:$X$202,23,FALSE)) ->  | AK50: =IF(M50="","",VLOOKUP(N50,選手入力!$B$2:$X$202,23,FALSE)) ->  | AL50: =IF(O50="","",VLOOKUP(P50,選手入力!$B$2:$X$202,23,FALSE)) ->  | AM50: =IF(Q50="","",VLOOKUP(R50,選手入力!$B$2:$X$202,23,FALSE)) -> 
J51: =IF(I51="","",VLOOKUP(I51,選手入力!$A$2:$B$202,2,FALSE)) ->  | L51: =IF(K51="","",VLOOKUP(K51,選手入力!$A$2:$B$202,2,FALSE)) ->  | N51: =IF(M51="","",VLOOKUP(M51,選手入力!$A$2:$B$202,2,FALSE)) ->  | P51: =IF(O51="","",VLOOKUP(O51,選手入力!$A$2:$B$202,2,FALSE)) ->  | R51: =IF(Q51="","",VLOOKUP(Q51,選手入力!$A$2:$B$202,2,FALSE)) ->  | S51: 49 | T51: 0 | U51: 0 | V51: 0 | W51: 0 | X51: 0 | Y51: 0000000 | AA51: =IF($B51="","",表紙!$B$34+リレー入力!$S51) ->  | AC51: =IF($B51="","",表紙!$B$4) ->  | AI51: =IF(I51="","",VLOOKUP(J51,選手入力!$B$2:$X$202,23,FALSE)) ->  | AJ51: =IF(K51="","",VLOOKUP(L51,選手入力!$B$2:$X$202,23,FALSE)) ->  | AK51: =IF(M51="","",VLOOKUP(N51,選手入力!$B$2:$X$202,23,FALSE)) ->  | AL51: =IF(O51="","",VLOOKUP(P51,選手入力!$B$2:$X$202,23,FALSE)) ->  | AM51: =IF(Q51="","",VLOOKUP(R51,選手入力!$B$2:$X$202,23,FALSE)) -> 
J52: =IF(I52="","",VLOOKUP(I52,選手入力!$A$2:$B$202,2,FALSE)) ->  | L52: =IF(K52="","",VLOOKUP(K52,選手入力!$A$2:$B$202,2,FALSE)) ->  | N52: =IF(M52="","",VLOOKUP(M52,選手入力!$A$2:$B$202,2,FALSE)) ->  | P52: =IF(O52="","",VLOOKUP(O52,選手入力!$A$2:$B$202,2,FALSE)) ->  | R52: =IF(Q52="","",VLOOKUP(Q52,選手入力!$A$2:$B$202,2,FALSE)) ->  | S52: 50 | T52: 0 | U52: 0 | V52: 0 | W52: 0 | X52: 0 | Y52: 0000000 | AA52: =IF($B52="","",表紙!$B$34+リレー入力!$S52) ->  | AC52: =IF($B52="","",表紙!$B$4) ->  | AI52: =IF(I52="","",VLOOKUP(J52,選手入力!$B$2:$X$202,23,FALSE)) ->  | AJ52: =IF(K52="","",VLOOKUP(L52,選手入力!$B$2:$X$202,23,FALSE)) ->  | AK52: =IF(M52="","",VLOOKUP(N52,選手入力!$B$2:$X$202,23,FALSE)) ->  | AL52: =IF(O52="","",VLOOKUP(P52,選手入力!$B$2:$X$202,23,FALSE)) ->  | AM52: =IF(Q52="","",VLOOKUP(R52,選手入力!$B$2:$X$202,23,FALSE)) -> 
J53: =IF(I53="","",VLOOKUP(I53,選手入力!$A$2:$B$202,2,FALSE)) ->  | L53: =IF(K53="","",VLOOKUP(K53,選手入力!$A$2:$B$202,2,FALSE)) ->  | N53: =IF(M53="","",VLOOKUP(M53,選手入力!$A$2:$B$202,2,FALSE)) ->  | P53: =IF(O53="","",VLOOKUP(O53,選手入力!$A$2:$B$202,2,FALSE)) ->  | R53: =IF(Q53="","",VLOOKUP(Q53,選手入力!$A$2:$B$202,2,FALSE)) ->  | S53: 51 | T53: 0 | U53: 0 | V53: 0 | W53: 0 | X53: 0 | Y53: 0000000 | AA53: =IF($B53="","",表紙!$B$34+リレー入力!$S53) ->  | AC53: =IF($B53="","",表紙!$B$4) ->  | AI53: =IF(I53="","",VLOOKUP(J53,選手入力!$B$2:$X$202,23,FALSE)) ->  | AJ53: =IF(K53="","",VLOOKUP(L53,選手入力!$B$2:$X$202,23,FALSE)) ->  | AK53: =IF(M53="","",VLOOKUP(N53,選手入力!$B$2:$X$202,23,FALSE)) ->  | AL53: =IF(O53="","",VLOOKUP(P53,選手入力!$B$2:$X$202,23,FALSE)) ->  | AM53: =IF(Q53="","",VLOOKUP(R53,選手入力!$B$2:$X$202,23,FALSE)) -> 
J54: =IF(I54="","",VLOOKUP(I54,選手入力!$A$2:$B$202,2,FALSE)) ->  | L54: =IF(K54="","",VLOOKUP(K54,選手入力!$A$2:$B$202,2,FALSE)) ->  | N54: =IF(M54="","",VLOOKUP(M54,選手入力!$A$2:$B$202,2,FALSE)) ->  | P54: =IF(O54="","",VLOOKUP(O54,選手入力!$A$2:$B$202,2,FALSE)) ->  | R54: =IF(Q54="","",VLOOKUP(Q54,選手入力!$A$2:$B$202,2,FALSE)) ->  | S54: 52 | T54: 0 | U54: 0 | V54: 0 | W54: 0 | X54: 0 | Y54: 0000000 | AA54: =IF($B54="","",表紙!$B$34+リレー入力!$S54) ->  | AC54: =IF($B54="","",表紙!$B$4) ->  | AI54: =IF(I54="","",VLOOKUP(J54,選手入力!$B$2:$X$202,23,FALSE)) ->  | AJ54: =IF(K54="","",VLOOKUP(L54,選手入力!$B$2:$X$202,23,FALSE)) ->  | AK54: =IF(M54="","",VLOOKUP(N54,選手入力!$B$2:$X$202,23,FALSE)) ->  | AL54: =IF(O54="","",VLOOKUP(P54,選手入力!$B$2:$X$202,23,FALSE)) ->  | AM54: =IF(Q54="","",VLOOKUP(R54,選手入力!$B$2:$X$202,23,FALSE)) -> 
J55: =IF(I55="","",VLOOKUP(I55,選手入力!$A$2:$B$202,2,FALSE)) ->  | L55: =IF(K55="","",VLOOKUP(K55,選手入力!$A$2:$B$202,2,FALSE)) ->  | N55: =IF(M55="","",VLOOKUP(M55,選手入力!$A$2:$B$202,2,FALSE)) ->  | P55: =IF(O55="","",VLOOKUP(O55,選手入力!$A$2:$B$202,2,FALSE)) ->  | R55: =IF(Q55="","",VLOOKUP(Q55,選手入力!$A$2:$B$202,2,FALSE)) ->  | S55: 53 | T55: 0 | U55: 0 | V55: 0 | W55: 0 | X55: 0 | Y55: 0000000 | AA55: =IF($B55="","",表紙!$B$34+リレー入力!$S55) ->  | AC55: =IF($B55="","",表紙!$B$4) ->  | AI55: =IF(I55="","",VLOOKUP(J55,選手入力!$B$2:$X$202,23,FALSE)) ->  | AJ55: =IF(K55="","",VLOOKUP(L55,選手入力!$B$2:$X$202,23,FALSE)) ->  | AK55: =IF(M55="","",VLOOKUP(N55,選手入力!$B$2:$X$202,23,FALSE)) ->  | AL55: =IF(O55="","",VLOOKUP(P55,選手入力!$B$2:$X$202,23,FALSE)) ->  | AM55: =IF(Q55="","",VLOOKUP(R55,選手入力!$B$2:$X$202,23,FALSE)) -> 
J56: =IF(I56="","",VLOOKUP(I56,選手入力!$A$2:$B$202,2,FALSE)) ->  | L56: =IF(K56="","",VLOOKUP(K56,選手入力!$A$2:$B$202,2,FALSE)) ->  | N56: =IF(M56="","",VLOOKUP(M56,選手入力!$A$2:$B$202,2,FALSE)) ->  | P56: =IF(O56="","",VLOOKUP(O56,選手入力!$A$2:$B$202,2,FALSE)) ->  | R56: =IF(Q56="","",VLOOKUP(Q56,選手入力!$A$2:$B$202,2,FALSE)) ->  | S56: 54 | T56: 0 | U56: 0 | V56: 0 | W56: 0 | X56: 0 | Y56: 0000000 | AA56: =IF($B56="","",表紙!$B$34+リレー入力!$S56) ->  | AC56: =IF($B56="","",表紙!$B$4) ->  | AI56: =IF(I56="","",VLOOKUP(J56,選手入力!$B$2:$X$202,23,FALSE)) ->  | AJ56: =IF(K56="","",VLOOKUP(L56,選手入力!$B$2:$X$202,23,FALSE)) ->  | AK56: =IF(M56="","",VLOOKUP(N56,選手入力!$B$2:$X$202,23,FALSE)) ->  | AL56: =IF(O56="","",VLOOKUP(P56,選手入力!$B$2:$X$202,23,FALSE)) ->  | AM56: =IF(Q56="","",VLOOKUP(R56,選手入力!$B$2:$X$202,23,FALSE)) -> 
J57: =IF(I57="","",VLOOKUP(I57,選手入力!$A$2:$B$202,2,FALSE)) ->  | L57: =IF(K57="","",VLOOKUP(K57,選手入力!$A$2:$B$202,2,FALSE)) ->  | N57: =IF(M57="","",VLOOKUP(M57,選手入力!$A$2:$B$202,2,FALSE)) ->  | P57: =IF(O57="","",VLOOKUP(O57,選手入力!$A$2:$B$202,2,FALSE)) ->  | R57: =IF(Q57="","",VLOOKUP(Q57,選手入力!$A$2:$B$202,2,FALSE)) ->  | S57: 55 | T57: 0 | U57: 0 | V57: 0 | W57: 0 | X57: 0 | Y57: 0000000 | AA57: =IF($B57="","",表紙!$B$34+リレー入力!$S57) ->  | AC57: =IF($B57="","",表紙!$B$4) ->  | AI57: =IF(I57="","",VLOOKUP(J57,選手入力!$B$2:$X$202,23,FALSE)) ->  | AJ57: =IF(K57="","",VLOOKUP(L57,選手入力!$B$2:$X$202,23,FALSE)) ->  | AK57: =IF(M57="","",VLOOKUP(N57,選手入力!$B$2:$X$202,23,FALSE)) ->  | AL57: =IF(O57="","",VLOOKUP(P57,選手入力!$B$2:$X$202,23,FALSE)) ->  | AM57: =IF(Q57="","",VLOOKUP(R57,選手入力!$B$2:$X$202,23,FALSE)) -> 
J58: =IF(I58="","",VLOOKUP(I58,選手入力!$A$2:$B$202,2,FALSE)) ->  | L58: =IF(K58="","",VLOOKUP(K58,選手入力!$A$2:$B$202,2,FALSE)) ->  | N58: =IF(M58="","",VLOOKUP(M58,選手入力!$A$2:$B$202,2,FALSE)) ->  | P58: =IF(O58="","",VLOOKUP(O58,選手入力!$A$2:$B$202,2,FALSE)) ->  | R58: =IF(Q58="","",VLOOKUP(Q58,選手入力!$A$2:$B$202,2,FALSE)) ->  | S58: 56 | T58: 0 | U58: 0 | V58: 0 | W58: 0 | X58: 0 | Y58: 0000000 | AA58: =IF($B58="","",表紙!$B$34+リレー入力!$S58) ->  | AC58: =IF($B58="","",表紙!$B$4) ->  | AI58: =IF(I58="","",VLOOKUP(J58,選手入力!$B$2:$X$202,23,FALSE)) ->  | AJ58: =IF(K58="","",VLOOKUP(L58,選手入力!$B$2:$X$202,23,FALSE)) ->  | AK58: =IF(M58="","",VLOOKUP(N58,選手入力!$B$2:$X$202,23,FALSE)) ->  | AL58: =IF(O58="","",VLOOKUP(P58,選手入力!$B$2:$X$202,23,FALSE)) ->  | AM58: =IF(Q58="","",VLOOKUP(R58,選手入力!$B$2:$X$202,23,FALSE)) -> 
J59: =IF(I59="","",VLOOKUP(I59,選手入力!$A$2:$B$202,2,FALSE)) ->  | L59: =IF(K59="","",VLOOKUP(K59,選手入力!$A$2:$B$202,2,FALSE)) ->  | N59: =IF(M59="","",VLOOKUP(M59,選手入力!$A$2:$B$202,2,FALSE)) ->  | P59: =IF(O59="","",VLOOKUP(O59,選手入力!$A$2:$B$202,2,FALSE)) ->  | R59: =IF(Q59="","",VLOOKUP(Q59,選手入力!$A$2:$B$202,2,FALSE)) ->  | S59: 57 | T59: 0 | U59: 0 | V59: 0 | W59: 0 | X59: 0 | Y59: 0000000 | AA59: =IF($B59="","",表紙!$B$34+リレー入力!$S59) ->  | AC59: =IF($B59="","",表紙!$B$4) ->  | AI59: =IF(I59="","",VLOOKUP(J59,選手入力!$B$2:$X$202,23,FALSE)) ->  | AJ59: =IF(K59="","",VLOOKUP(L59,選手入力!$B$2:$X$202,23,FALSE)) ->  | AK59: =IF(M59="","",VLOOKUP(N59,選手入力!$B$2:$X$202,23,FALSE)) ->  | AL59: =IF(O59="","",VLOOKUP(P59,選手入力!$B$2:$X$202,23,FALSE)) ->  | AM59: =IF(Q59="","",VLOOKUP(R59,選手入力!$B$2:$X$202,23,FALSE)) -> 
J60: =IF(I60="","",VLOOKUP(I60,選手入力!$A$2:$B$202,2,FALSE)) ->  | L60: =IF(K60="","",VLOOKUP(K60,選手入力!$A$2:$B$202,2,FALSE)) ->  | N60: =IF(M60="","",VLOOKUP(M60,選手入力!$A$2:$B$202,2,FALSE)) ->  | P60: =IF(O60="","",VLOOKUP(O60,選手入力!$A$2:$B$202,2,FALSE)) ->  | R60: =IF(Q60="","",VLOOKUP(Q60,選手入力!$A$2:$B$202,2,FALSE)) ->  | S60: 58 | T60: 0 | U60: 0 | V60: 0 | W60: 0 | X60: 0 | Y60: 0000000 | AA60: =IF($B60="","",表紙!$B$34+リレー入力!$S60) ->  | AC60: =IF($B60="","",表紙!$B$4) ->  | AI60: =IF(I60="","",VLOOKUP(J60,選手入力!$B$2:$X$202,23,FALSE)) ->  | AJ60: =IF(K60="","",VLOOKUP(L60,選手入力!$B$2:$X$202,23,FALSE)) ->  | AK60: =IF(M60="","",VLOOKUP(N60,選手入力!$B$2:$X$202,23,FALSE)) ->  | AL60: =IF(O60="","",VLOOKUP(P60,選手入力!$B$2:$X$202,23,FALSE)) ->  | AM60: =IF(Q60="","",VLOOKUP(R60,選手入力!$B$2:$X$202,23,FALSE)) -> 
J61: =IF(I61="","",VLOOKUP(I61,選手入力!$A$2:$B$202,2,FALSE)) ->  | L61: =IF(K61="","",VLOOKUP(K61,選手入力!$A$2:$B$202,2,FALSE)) ->  | N61: =IF(M61="","",VLOOKUP(M61,選手入力!$A$2:$B$202,2,FALSE)) ->  | P61: =IF(O61="","",VLOOKUP(O61,選手入力!$A$2:$B$202,2,FALSE)) ->  | R61: =IF(Q61="","",VLOOKUP(Q61,選手入力!$A$2:$B$202,2,FALSE)) ->  | S61: 59 | T61: 0 | U61: 0 | V61: 0 | W61: 0 | X61: 0 | Y61: 0000000 | AA61: =IF($B61="","",表紙!$B$34+リレー入力!$S61) ->  | AC61: =IF($B61="","",表紙!$B$4) ->  | AI61: =IF(I61="","",VLOOKUP(J61,選手入力!$B$2:$X$202,23,FALSE)) ->  | AJ61: =IF(K61="","",VLOOKUP(L61,選手入力!$B$2:$X$202,23,FALSE)) ->  | AK61: =IF(M61="","",VLOOKUP(N61,選手入力!$B$2:$X$202,23,FALSE)) ->  | AL61: =IF(O61="","",VLOOKUP(P61,選手入力!$B$2:$X$202,23,FALSE)) ->  | AM61: =IF(Q61="","",VLOOKUP(R61,選手入力!$B$2:$X$202,23,FALSE)) -> 
J62: =IF(I62="","",VLOOKUP(I62,選手入力!$A$2:$B$202,2,FALSE)) ->  | L62: =IF(K62="","",VLOOKUP(K62,選手入力!$A$2:$B$202,2,FALSE)) ->  | N62: =IF(M62="","",VLOOKUP(M62,選手入力!$A$2:$B$202,2,FALSE)) ->  | P62: =IF(O62="","",VLOOKUP(O62,選手入力!$A$2:$B$202,2,FALSE)) ->  | R62: =IF(Q62="","",VLOOKUP(Q62,選手入力!$A$2:$B$202,2,FALSE)) ->  | S62: 60 | T62: 0 | U62: 0 | V62: 0 | W62: 0 | X62: 0 | Y62: 0000000 | AA62: =IF($B62="","",表紙!$B$34+リレー入力!$S62) ->  | AC62: =IF($B62="","",表紙!$B$4) ->  | AI62: =IF(I62="","",VLOOKUP(J62,選手入力!$B$2:$X$202,23,FALSE)) ->  | AJ62: =IF(K62="","",VLOOKUP(L62,選手入力!$B$2:$X$202,23,FALSE)) ->  | AK62: =IF(M62="","",VLOOKUP(N62,選手入力!$B$2:$X$202,23,FALSE)) ->  | AL62: =IF(O62="","",VLOOKUP(P62,選手入力!$B$2:$X$202,23,FALSE)) ->  | AM62: =IF(Q62="","",VLOOKUP(R62,選手入力!$B$2:$X$202,23,FALSE)) -> 
J63: =IF(I63="","",VLOOKUP(I63,選手入力!$A$2:$B$202,2,FALSE)) ->  | L63: =IF(K63="","",VLOOKUP(K63,選手入力!$A$2:$B$202,2,FALSE)) ->  | N63: =IF(M63="","",VLOOKUP(M63,選手入力!$A$2:$B$202,2,FALSE)) ->  | P63: =IF(O63="","",VLOOKUP(O63,選手入力!$A$2:$B$202,2,FALSE)) ->  | R63: =IF(Q63="","",VLOOKUP(Q63,選手入力!$A$2:$B$202,2,FALSE)) ->  | S63: 61 | T63: 0 | U63: 0 | V63: 0 | W63: 0 | X63: 0 | Y63: 0000000 | AA63: =IF($B63="","",表紙!$B$34+リレー入力!$S63) ->  | AC63: =IF($B63="","",表紙!$B$4) ->  | AI63: =IF(I63="","",VLOOKUP(J63,選手入力!$B$2:$X$202,23,FALSE)) ->  | AJ63: =IF(K63="","",VLOOKUP(L63,選手入力!$B$2:$X$202,23,FALSE)) ->  | AK63: =IF(M63="","",VLOOKUP(N63,選手入力!$B$2:$X$202,23,FALSE)) ->  | AL63: =IF(O63="","",VLOOKUP(P63,選手入力!$B$2:$X$202,23,FALSE)) ->  | AM63: =IF(Q63="","",VLOOKUP(R63,選手入力!$B$2:$X$202,23,FALSE)) -> 
J64: =IF(I64="","",VLOOKUP(I64,選手入力!$A$2:$B$202,2,FALSE)) ->  | L64: =IF(K64="","",VLOOKUP(K64,選手入力!$A$2:$B$202,2,FALSE)) ->  | N64: =IF(M64="","",VLOOKUP(M64,選手入力!$A$2:$B$202,2,FALSE)) ->  | P64: =IF(O64="","",VLOOKUP(O64,選手入力!$A$2:$B$202,2,FALSE)) ->  | R64: =IF(Q64="","",VLOOKUP(Q64,選手入力!$A$2:$B$202,2,FALSE)) ->  | S64: 62 | T64: 0 | U64: 0 | V64: 0 | W64: 0 | X64: 0 | Y64: 0000000 | AA64: =IF($B64="","",表紙!$B$34+リレー入力!$S64) ->  | AC64: =IF($B64="","",表紙!$B$4) ->  | AI64: =IF(I64="","",VLOOKUP(J64,選手入力!$B$2:$X$202,23,FALSE)) ->  | AJ64: =IF(K64="","",VLOOKUP(L64,選手入力!$B$2:$X$202,23,FALSE)) ->  | AK64: =IF(M64="","",VLOOKUP(N64,選手入力!$B$2:$X$202,23,FALSE)) ->  | AL64: =IF(O64="","",VLOOKUP(P64,選手入力!$B$2:$X$202,23,FALSE)) ->  | AM64: =IF(Q64="","",VLOOKUP(R64,選手入力!$B$2:$X$202,23,FALSE)) -> 
J65: =IF(I65="","",VLOOKUP(I65,選手入力!$A$2:$B$202,2,FALSE)) ->  | L65: =IF(K65="","",VLOOKUP(K65,選手入力!$A$2:$B$202,2,FALSE)) ->  | N65: =IF(M65="","",VLOOKUP(M65,選手入力!$A$2:$B$202,2,FALSE)) ->  | P65: =IF(O65="","",VLOOKUP(O65,選手入力!$A$2:$B$202,2,FALSE)) ->  | R65: =IF(Q65="","",VLOOKUP(Q65,選手入力!$A$2:$B$202,2,FALSE)) ->  | S65: 63 | T65: 0 | U65: 0 | V65: 0 | W65: 0 | X65: 0 | Y65: 0000000 | AA65: =IF($B65="","",表紙!$B$34+リレー入力!$S65) ->  | AC65: =IF($B65="","",表紙!$B$4) ->  | AI65: =IF(I65="","",VLOOKUP(J65,選手入力!$B$2:$X$202,23,FALSE)) ->  | AJ65: =IF(K65="","",VLOOKUP(L65,選手入力!$B$2:$X$202,23,FALSE)) ->  | AK65: =IF(M65="","",VLOOKUP(N65,選手入力!$B$2:$X$202,23,FALSE)) ->  | AL65: =IF(O65="","",VLOOKUP(P65,選手入力!$B$2:$X$202,23,FALSE)) ->  | AM65: =IF(Q65="","",VLOOKUP(R65,選手入力!$B$2:$X$202,23,FALSE)) -> 
J66: =IF(I66="","",VLOOKUP(I66,選手入力!$A$2:$B$202,2,FALSE)) ->  | L66: =IF(K66="","",VLOOKUP(K66,選手入力!$A$2:$B$202,2,FALSE)) ->  | N66: =IF(M66="","",VLOOKUP(M66,選手入力!$A$2:$B$202,2,FALSE)) ->  | P66: =IF(O66="","",VLOOKUP(O66,選手入力!$A$2:$B$202,2,FALSE)) ->  | R66: =IF(Q66="","",VLOOKUP(Q66,選手入力!$A$2:$B$202,2,FALSE)) ->  | S66: 64 | T66: 0 | U66: 0 | V66: 0 | W66: 0 | X66: 0 | Y66: 0000000 | AA66: =IF($B66="","",表紙!$B$34+リレー入力!$S66) ->  | AC66: =IF($B66="","",表紙!$B$4) ->  | AI66: =IF(I66="","",VLOOKUP(J66,選手入力!$B$2:$X$202,23,FALSE)) ->  | AJ66: =IF(K66="","",VLOOKUP(L66,選手入力!$B$2:$X$202,23,FALSE)) ->  | AK66: =IF(M66="","",VLOOKUP(N66,選手入力!$B$2:$X$202,23,FALSE)) ->  | AL66: =IF(O66="","",VLOOKUP(P66,選手入力!$B$2:$X$202,23,FALSE)) ->  | AM66: =IF(Q66="","",VLOOKUP(R66,選手入力!$B$2:$X$202,23,FALSE)) -> 
J67: =IF(I67="","",VLOOKUP(I67,選手入力!$A$2:$B$202,2,FALSE)) ->  | L67: =IF(K67="","",VLOOKUP(K67,選手入力!$A$2:$B$202,2,FALSE)) ->  | N67: =IF(M67="","",VLOOKUP(M67,選手入力!$A$2:$B$202,2,FALSE)) ->  | P67: =IF(O67="","",VLOOKUP(O67,選手入力!$A$2:$B$202,2,FALSE)) ->  | R67: =IF(Q67="","",VLOOKUP(Q67,選手入力!$A$2:$B$202,2,FALSE)) ->  | S67: 65 | T67: 0 | U67: =IF(E67="",0,E67) -> 0 | V67: =IF(F67="",0,F67) -> 0 | W67: =IF(G67="",0,G67) -> 0 | X67: =IF(H67="",0,H67) -> 0 | Y67: 0000000 | AA67: =IF($B67="","",表紙!$B$34+リレー入力!$S67) ->  | AC67: =IF($B67="","",表紙!$B$4) ->  | AI67: =IF(I67="","",VLOOKUP(J67,選手入力!$B$2:$X$202,23,FALSE)) ->  | AJ67: =IF(K67="","",VLOOKUP(L67,選手入力!$B$2:$X$202,23,FALSE)) ->  | AK67: =IF(M67="","",VLOOKUP(N67,選手入力!$B$2:$X$202,23,FALSE)) ->  | AL67: =IF(O67="","",VLOOKUP(P67,選手入力!$B$2:$X$202,23,FALSE)) ->  | AM67: =IF(Q67="","",VLOOKUP(R67,選手入力!$B$2:$X$202,23,FALSE)) -> 
J68: =IF(I68="","",VLOOKUP(I68,選手入力!$A$2:$B$202,2,FALSE)) ->  | L68: =IF(K68="","",VLOOKUP(K68,選手入力!$A$2:$B$202,2,FALSE)) ->  | N68: =IF(M68="","",VLOOKUP(M68,選手入力!$A$2:$B$202,2,FALSE)) ->  | P68: =IF(O68="","",VLOOKUP(O68,選手入力!$A$2:$B$202,2,FALSE)) ->  | R68: =IF(Q68="","",VLOOKUP(Q68,選手入力!$A$2:$B$202,2,FALSE)) ->  | S68: 66 | T68: =IF(D68="",0,D68) -> 0 | U68: 0 | V68: 0 | W68: 0 | X68: 0 | Y68: =CONCATENATE("00",T68,U68,V68,W68,X68) -> 0000000 | AA68: =IF($B68="","",表紙!$B$34+リレー入力!$S68) ->  | AB68: =IF($B68="","",AA68) ->  | AC68: =IF($B68="","",表紙!$B$4) ->  | AD68: =IF($B68="","",C68) ->  | AF68: =IF($B68="","",Y68) ->  | AI68: =IF(I68="","",VLOOKUP(J68,選手入力!$B$2:$X$202,23,FALSE)) ->  | AJ68: =IF(K68="","",VLOOKUP(L68,選手入力!$B$2:$X$202,23,FALSE)) ->  | AK68: =IF(M68="","",VLOOKUP(N68,選手入力!$B$2:$X$202,23,FALSE)) ->  | AL68: =IF(O68="","",VLOOKUP(P68,選手入力!$B$2:$X$202,23,FALSE)) ->  | AM68: =IF(Q68="","",VLOOKUP(R68,選手入力!$B$2:$X$202,23,FALSE)) -> 
J69: =IF(I69="","",VLOOKUP(I69,選手入力!$A$2:$B$202,2,FALSE)) ->  | L69: =IF(K69="","",VLOOKUP(K69,選手入力!$A$2:$B$202,2,FALSE)) ->  | N69: =IF(M69="","",VLOOKUP(M69,選手入力!$A$2:$B$202,2,FALSE)) ->  | P69: =IF(O69="","",VLOOKUP(O69,選手入力!$A$2:$B$202,2,FALSE)) ->  | R69: =IF(Q69="","",VLOOKUP(Q69,選手入力!$A$2:$B$202,2,FALSE)) ->  | S69: 67 | T69: 0 | U69: 0 | V69: 0 | W69: 0 | X69: 0 | Y69: 0000000 | AA69: =IF($B69="","",表紙!$B$34+リレー入力!$S69) ->  | AC69: =IF($B69="","",表紙!$B$4) ->  | AI69: =IF(I69="","",VLOOKUP(J69,選手入力!$B$2:$X$202,23,FALSE)) ->  | AJ69: =IF(K69="","",VLOOKUP(L69,選手入力!$B$2:$X$202,23,FALSE)) ->  | AK69: =IF(M69="","",VLOOKUP(N69,選手入力!$B$2:$X$202,23,FALSE)) ->  | AL69: =IF(O69="","",VLOOKUP(P69,選手入力!$B$2:$X$202,23,FALSE)) ->  | AM69: =IF(Q69="","",VLOOKUP(R69,選手入力!$B$2:$X$202,23,FALSE)) -> 
J70: =IF(I70="","",VLOOKUP(I70,選手入力!$A$2:$B$202,2,FALSE)) ->  | L70: =IF(K70="","",VLOOKUP(K70,選手入力!$A$2:$B$202,2,FALSE)) ->  | N70: =IF(M70="","",VLOOKUP(M70,選手入力!$A$2:$B$202,2,FALSE)) ->  | P70: =IF(O70="","",VLOOKUP(O70,選手入力!$A$2:$B$202,2,FALSE)) ->  | R70: =IF(Q70="","",VLOOKUP(Q70,選手入力!$A$2:$B$202,2,FALSE)) ->  | S70: 68 | T70: 0 | U70: 0 | V70: 0 | W70: 0 | X70: 0 | Y70: 0000000 | AA70: =IF($B70="","",表紙!$B$34+リレー入力!$S70) ->  | AC70: =IF($B70="","",表紙!$B$4) ->  | AI70: =IF(I70="","",VLOOKUP(J70,選手入力!$B$2:$X$202,23,FALSE)) ->  | AJ70: =IF(K70="","",VLOOKUP(L70,選手入力!$B$2:$X$202,23,FALSE)) ->  | AK70: =IF(M70="","",VLOOKUP(N70,選手入力!$B$2:$X$202,23,FALSE)) ->  | AL70: =IF(O70="","",VLOOKUP(P70,選手入力!$B$2:$X$202,23,FALSE)) ->  | AM70: =IF(Q70="","",VLOOKUP(R70,選手入力!$B$2:$X$202,23,FALSE)) -> 
J71: =IF(I71="","",VLOOKUP(I71,選手入力!$A$2:$B$202,2,FALSE)) ->  | L71: =IF(K71="","",VLOOKUP(K71,選手入力!$A$2:$B$202,2,FALSE)) ->  | N71: =IF(M71="","",VLOOKUP(M71,選手入力!$A$2:$B$202,2,FALSE)) ->  | P71: =IF(O71="","",VLOOKUP(O71,選手入力!$A$2:$B$202,2,FALSE)) ->  | R71: =IF(Q71="","",VLOOKUP(Q71,選手入力!$A$2:$B$202,2,FALSE)) ->  | S71: 69 | T71: 0 | U71: 0 | V71: 0 | W71: 0 | X71: 0 | Y71: 0000000 | AA71: =IF($B71="","",表紙!$B$34+リレー入力!$S71) ->  | AC71: =IF($B71="","",表紙!$B$4) ->  | AI71: =IF(I71="","",VLOOKUP(J71,選手入力!$B$2:$X$202,23,FALSE)) ->  | AJ71: =IF(K71="","",VLOOKUP(L71,選手入力!$B$2:$X$202,23,FALSE)) ->  | AK71: =IF(M71="","",VLOOKUP(N71,選手入力!$B$2:$X$202,23,FALSE)) ->  | AL71: =IF(O71="","",VLOOKUP(P71,選手入力!$B$2:$X$202,23,FALSE)) ->  | AM71: =IF(Q71="","",VLOOKUP(R71,選手入力!$B$2:$X$202,23,FALSE)) -> 
J72: =IF(I72="","",VLOOKUP(I72,選手入力!$A$2:$B$202,2,FALSE)) ->  | L72: =IF(K72="","",VLOOKUP(K72,選手入力!$A$2:$B$202,2,FALSE)) ->  | N72: =IF(M72="","",VLOOKUP(M72,選手入力!$A$2:$B$202,2,FALSE)) ->  | P72: =IF(O72="","",VLOOKUP(O72,選手入力!$A$2:$B$202,2,FALSE)) ->  | R72: =IF(Q72="","",VLOOKUP(Q72,選手入力!$A$2:$B$202,2,FALSE)) ->  | S72: 70 | T72: 0 | U72: 0 | V72: 0 | W72: 0 | X72: 0 | Y72: 0000000 | AA72: =IF($B72="","",表紙!$B$34+リレー入力!$S72) ->  | AC72: =IF($B72="","",表紙!$B$4) ->  | AI72: =IF(I72="","",VLOOKUP(J72,選手入力!$B$2:$X$202,23,FALSE)) ->  | AJ72: =IF(K72="","",VLOOKUP(L72,選手入力!$B$2:$X$202,23,FALSE)) ->  | AK72: =IF(M72="","",VLOOKUP(N72,選手入力!$B$2:$X$202,23,FALSE)) ->  | AL72: =IF(O72="","",VLOOKUP(P72,選手入力!$B$2:$X$202,23,FALSE)) ->  | AM72: =IF(Q72="","",VLOOKUP(R72,選手入力!$B$2:$X$202,23,FALSE)) -> 
J73: =IF(I73="","",VLOOKUP(I73,選手入力!$A$2:$B$202,2,FALSE)) ->  | L73: =IF(K73="","",VLOOKUP(K73,選手入力!$A$2:$B$202,2,FALSE)) ->  | N73: =IF(M73="","",VLOOKUP(M73,選手入力!$A$2:$B$202,2,FALSE)) ->  | P73: =IF(O73="","",VLOOKUP(O73,選手入力!$A$2:$B$202,2,FALSE)) ->  | R73: =IF(Q73="","",VLOOKUP(Q73,選手入力!$A$2:$B$202,2,FALSE)) ->  | S73: 71 | T73: 0 | U73: 0 | V73: 0 | W73: 0 | X73: 0 | Y73: 0000000 | AA73: =IF($B73="","",表紙!$B$34+リレー入力!$S73) ->  | AC73: =IF($B73="","",表紙!$B$4) ->  | AI73: =IF(I73="","",VLOOKUP(J73,選手入力!$B$2:$X$202,23,FALSE)) ->  | AJ73: =IF(K73="","",VLOOKUP(L73,選手入力!$B$2:$X$202,23,FALSE)) ->  | AK73: =IF(M73="","",VLOOKUP(N73,選手入力!$B$2:$X$202,23,FALSE)) ->  | AL73: =IF(O73="","",VLOOKUP(P73,選手入力!$B$2:$X$202,23,FALSE)) ->  | AM73: =IF(Q73="","",VLOOKUP(R73,選手入力!$B$2:$X$202,23,FALSE)) -> 
J74: =IF(I74="","",VLOOKUP(I74,選手入力!$A$2:$B$202,2,FALSE)) ->  | L74: =IF(K74="","",VLOOKUP(K74,選手入力!$A$2:$B$202,2,FALSE)) ->  | N74: =IF(M74="","",VLOOKUP(M74,選手入力!$A$2:$B$202,2,FALSE)) ->  | P74: =IF(O74="","",VLOOKUP(O74,選手入力!$A$2:$B$202,2,FALSE)) ->  | R74: =IF(Q74="","",VLOOKUP(Q74,選手入力!$A$2:$B$202,2,FALSE)) ->  | S74: 72 | T74: 0 | U74: 0 | V74: 0 | W74: 0 | X74: 0 | Y74: 0000000 | AA74: =IF($B74="","",表紙!$B$34+リレー入力!$S74) ->  | AC74: =IF($B74="","",表紙!$B$4) ->  | AI74: =IF(I74="","",VLOOKUP(J74,選手入力!$B$2:$X$202,23,FALSE)) ->  | AJ74: =IF(K74="","",VLOOKUP(L74,選手入力!$B$2:$X$202,23,FALSE)) ->  | AK74: =IF(M74="","",VLOOKUP(N74,選手入力!$B$2:$X$202,23,FALSE)) ->  | AL74: =IF(O74="","",VLOOKUP(P74,選手入力!$B$2:$X$202,23,FALSE)) ->  | AM74: =IF(Q74="","",VLOOKUP(R74,選手入力!$B$2:$X$202,23,FALSE)) -> 
J75: =IF(I75="","",VLOOKUP(I75,選手入力!$A$2:$B$202,2,FALSE)) ->  | L75: =IF(K75="","",VLOOKUP(K75,選手入力!$A$2:$B$202,2,FALSE)) ->  | N75: =IF(M75="","",VLOOKUP(M75,選手入力!$A$2:$B$202,2,FALSE)) ->  | P75: =IF(O75="","",VLOOKUP(O75,選手入力!$A$2:$B$202,2,FALSE)) ->  | R75: =IF(Q75="","",VLOOKUP(Q75,選手入力!$A$2:$B$202,2,FALSE)) ->  | S75: 73 | T75: 0 | U75: 0 | V75: 0 | W75: 0 | X75: 0 | Y75: 0000000 | AA75: =IF($B75="","",表紙!$B$34+リレー入力!$S75) ->  | AC75: =IF($B75="","",表紙!$B$4) ->  | AI75: =IF(I75="","",VLOOKUP(J75,選手入力!$B$2:$X$202,23,FALSE)) ->  | AJ75: =IF(K75="","",VLOOKUP(L75,選手入力!$B$2:$X$202,23,FALSE)) ->  | AK75: =IF(M75="","",VLOOKUP(N75,選手入力!$B$2:$X$202,23,FALSE)) ->  | AL75: =IF(O75="","",VLOOKUP(P75,選手入力!$B$2:$X$202,23,FALSE)) ->  | AM75: =IF(Q75="","",VLOOKUP(R75,選手入力!$B$2:$X$202,23,FALSE)) -> 
J76: =IF(I76="","",VLOOKUP(I76,選手入力!$A$2:$B$202,2,FALSE)) ->  | L76: =IF(K76="","",VLOOKUP(K76,選手入力!$A$2:$B$202,2,FALSE)) ->  | N76: =IF(M76="","",VLOOKUP(M76,選手入力!$A$2:$B$202,2,FALSE)) ->  | P76: =IF(O76="","",VLOOKUP(O76,選手入力!$A$2:$B$202,2,FALSE)) ->  | R76: =IF(Q76="","",VLOOKUP(Q76,選手入力!$A$2:$B$202,2,FALSE)) ->  | S76: 74 | T76: 0 | U76: 0 | V76: 0 | W76: 0 | X76: 0 | Y76: 0000000 | AA76: =IF($B76="","",表紙!$B$34+リレー入力!$S76) ->  | AC76: =IF($B76="","",表紙!$B$4) ->  | AI76: =IF(I76="","",VLOOKUP(J76,選手入力!$B$2:$X$202,23,FALSE)) ->  | AJ76: =IF(K76="","",VLOOKUP(L76,選手入力!$B$2:$X$202,23,FALSE)) ->  | AK76: =IF(M76="","",VLOOKUP(N76,選手入力!$B$2:$X$202,23,FALSE)) ->  | AL76: =IF(O76="","",VLOOKUP(P76,選手入力!$B$2:$X$202,23,FALSE)) ->  | AM76: =IF(Q76="","",VLOOKUP(R76,選手入力!$B$2:$X$202,23,FALSE)) -> 
J77: =IF(I77="","",VLOOKUP(I77,選手入力!$A$2:$B$202,2,FALSE)) ->  | L77: =IF(K77="","",VLOOKUP(K77,選手入力!$A$2:$B$202,2,FALSE)) ->  | N77: =IF(M77="","",VLOOKUP(M77,選手入力!$A$2:$B$202,2,FALSE)) ->  | P77: =IF(O77="","",VLOOKUP(O77,選手入力!$A$2:$B$202,2,FALSE)) ->  | R77: =IF(Q77="","",VLOOKUP(Q77,選手入力!$A$2:$B$202,2,FALSE)) ->  | S77: 75 | T77: 0 | U77: 0 | V77: 0 | W77: 0 | X77: 0 | Y77: 0000000 | AA77: =IF($B77="","",表紙!$B$34+リレー入力!$S77) ->  | AC77: =IF($B77="","",表紙!$B$4) ->  | AI77: =IF(I77="","",VLOOKUP(J77,選手入力!$B$2:$X$202,23,FALSE)) ->  | AJ77: =IF(K77="","",VLOOKUP(L77,選手入力!$B$2:$X$202,23,FALSE)) ->  | AK77: =IF(M77="","",VLOOKUP(N77,選手入力!$B$2:$X$202,23,FALSE)) ->  | AL77: =IF(O77="","",VLOOKUP(P77,選手入力!$B$2:$X$202,23,FALSE)) ->  | AM77: =IF(Q77="","",VLOOKUP(R77,選手入力!$B$2:$X$202,23,FALSE)) -> 
J78: =IF(I78="","",VLOOKUP(I78,選手入力!$A$2:$B$202,2,FALSE)) ->  | L78: =IF(K78="","",VLOOKUP(K78,選手入力!$A$2:$B$202,2,FALSE)) ->  | N78: =IF(M78="","",VLOOKUP(M78,選手入力!$A$2:$B$202,2,FALSE)) ->  | P78: =IF(O78="","",VLOOKUP(O78,選手入力!$A$2:$B$202,2,FALSE)) ->  | R78: =IF(Q78="","",VLOOKUP(Q78,選手入力!$A$2:$B$202,2,FALSE)) ->  | S78: 76 | T78: 0 | U78: 0 | V78: 0 | W78: 0 | X78: 0 | Y78: 0000000 | AA78: =IF($B78="","",表紙!$B$34+リレー入力!$S78) ->  | AC78: =IF($B78="","",表紙!$B$4) ->  | AI78: =IF(I78="","",VLOOKUP(J78,選手入力!$B$2:$X$202,23,FALSE)) ->  | AJ78: =IF(K78="","",VLOOKUP(L78,選手入力!$B$2:$X$202,23,FALSE)) ->  | AK78: =IF(M78="","",VLOOKUP(N78,選手入力!$B$2:$X$202,23,FALSE)) ->  | AL78: =IF(O78="","",VLOOKUP(P78,選手入力!$B$2:$X$202,23,FALSE)) ->  | AM78: =IF(Q78="","",VLOOKUP(R78,選手入力!$B$2:$X$202,23,FALSE)) -> 
J79: =IF(I79="","",VLOOKUP(I79,選手入力!$A$2:$B$202,2,FALSE)) ->  | L79: =IF(K79="","",VLOOKUP(K79,選手入力!$A$2:$B$202,2,FALSE)) ->  | N79: =IF(M79="","",VLOOKUP(M79,選手入力!$A$2:$B$202,2,FALSE)) ->  | P79: =IF(O79="","",VLOOKUP(O79,選手入力!$A$2:$B$202,2,FALSE)) ->  | R79: =IF(Q79="","",VLOOKUP(Q79,選手入力!$A$2:$B$202,2,FALSE)) ->  | S79: 77 | T79: 0 | U79: 0 | V79: 0 | W79: 0 | X79: 0 | Y79: 0000000 | AA79: =IF($B79="","",表紙!$B$34+リレー入力!$S79) ->  | AC79: =IF($B79="","",表紙!$B$4) ->  | AI79: =IF(I79="","",VLOOKUP(J79,選手入力!$B$2:$X$202,23,FALSE)) ->  | AJ79: =IF(K79="","",VLOOKUP(L79,選手入力!$B$2:$X$202,23,FALSE)) ->  | AK79: =IF(M79="","",VLOOKUP(N79,選手入力!$B$2:$X$202,23,FALSE)) ->  | AL79: =IF(O79="","",VLOOKUP(P79,選手入力!$B$2:$X$202,23,FALSE)) ->  | AM79: =IF(Q79="","",VLOOKUP(R79,選手入力!$B$2:$X$202,23,FALSE)) -> 
J80: =IF(I80="","",VLOOKUP(I80,選手入力!$A$2:$B$202,2,FALSE)) ->  | L80: =IF(K80="","",VLOOKUP(K80,選手入力!$A$2:$B$202,2,FALSE)) ->  | N80: =IF(M80="","",VLOOKUP(M80,選手入力!$A$2:$B$202,2,FALSE)) ->  | P80: =IF(O80="","",VLOOKUP(O80,選手入力!$A$2:$B$202,2,FALSE)) ->  | R80: =IF(Q80="","",VLOOKUP(Q80,選手入力!$A$2:$B$202,2,FALSE)) ->  | S80: 78 | T80: 0 | U80: 0 | V80: 0 | W80: 0 | X80: 0 | Y80: 0000000 | AA80: =IF($B80="","",表紙!$B$34+リレー入力!$S80) ->  | AC80: =IF($B80="","",表紙!$B$4) ->  | AI80: =IF(I80="","",VLOOKUP(J80,選手入力!$B$2:$X$202,23,FALSE)) ->  | AJ80: =IF(K80="","",VLOOKUP(L80,選手入力!$B$2:$X$202,23,FALSE)) ->  | AK80: =IF(M80="","",VLOOKUP(N80,選手入力!$B$2:$X$202,23,FALSE)) ->  | AL80: =IF(O80="","",VLOOKUP(P80,選手入力!$B$2:$X$202,23,FALSE)) ->  | AM80: =IF(Q80="","",VLOOKUP(R80,選手入力!$B$2:$X$202,23,FALSE)) -> 
J81: =IF(I81="","",VLOOKUP(I81,選手入力!$A$2:$B$202,2,FALSE)) ->  | L81: =IF(K81="","",VLOOKUP(K81,選手入力!$A$2:$B$202,2,FALSE)) ->  | N81: =IF(M81="","",VLOOKUP(M81,選手入力!$A$2:$B$202,2,FALSE)) ->  | P81: =IF(O81="","",VLOOKUP(O81,選手入力!$A$2:$B$202,2,FALSE)) ->  | R81: =IF(Q81="","",VLOOKUP(Q81,選手入力!$A$2:$B$202,2,FALSE)) ->  | S81: 79 | T81: 0 | U81: 0 | V81: 0 | W81: 0 | X81: 0 | Y81: 0000000 | AA81: =IF($B81="","",表紙!$B$34+リレー入力!$S81) ->  | AC81: =IF($B81="","",表紙!$B$4) ->  | AI81: =IF(I81="","",VLOOKUP(J81,選手入力!$B$2:$X$202,23,FALSE)) ->  | AJ81: =IF(K81="","",VLOOKUP(L81,選手入力!$B$2:$X$202,23,FALSE)) ->  | AK81: =IF(M81="","",VLOOKUP(N81,選手入力!$B$2:$X$202,23,FALSE)) ->  | AL81: =IF(O81="","",VLOOKUP(P81,選手入力!$B$2:$X$202,23,FALSE)) ->  | AM81: =IF(Q81="","",VLOOKUP(R81,選手入力!$B$2:$X$202,23,FALSE)) -> 
J82: =IF(I82="","",VLOOKUP(I82,選手入力!$A$2:$B$202,2,FALSE)) ->  | L82: =IF(K82="","",VLOOKUP(K82,選手入力!$A$2:$B$202,2,FALSE)) ->  | N82: =IF(M82="","",VLOOKUP(M82,選手入力!$A$2:$B$202,2,FALSE)) ->  | P82: =IF(O82="","",VLOOKUP(O82,選手入力!$A$2:$B$202,2,FALSE)) ->  | R82: =IF(Q82="","",VLOOKUP(Q82,選手入力!$A$2:$B$202,2,FALSE)) ->  | S82: 80 | T82: 0 | U82: 0 | V82: 0 | W82: 0 | X82: 0 | Y82: 0000000 | AA82: =IF($B82="","",表紙!$B$34+リレー入力!$S82) ->  | AC82: =IF($B82="","",表紙!$B$4) ->  | AI82: =IF(I82="","",VLOOKUP(J82,選手入力!$B$2:$X$202,23,FALSE)) ->  | AJ82: =IF(K82="","",VLOOKUP(L82,選手入力!$B$2:$X$202,23,FALSE)) ->  | AK82: =IF(M82="","",VLOOKUP(N82,選手入力!$B$2:$X$202,23,FALSE)) ->  | AL82: =IF(O82="","",VLOOKUP(P82,選手入力!$B$2:$X$202,23,FALSE)) ->  | AM82: =IF(Q82="","",VLOOKUP(R82,選手入力!$B$2:$X$202,23,FALSE)) -> 

Sheet 学校データ
A1: 学校コード | B1: N1 | C1: N2 | D1: N3 | E1: KC | G1: 選手初期NO | H1: リレー初期NO
A2: 101 | B2: ﾏｴﾊﾞｼ.ﾓﾓﾉｲ | C2: 前橋市立桃井小学校 | D2: 前・桃井 | E2: 1 | F2: 1 | G2: =F2*1000 -> 1000 | H2: =F2*10 -> 10
A3: 102 | B3: ﾏｴﾊﾞｼ.ﾅｶｶﾞﾜ | C3: 前橋市立中川小学校 | D3: 前・中川 | E3: 1 | F3: 2 | G3: =F3*1000 -> 2000 | H3: =F3*10 -> 20
A4: 103 | B4: ﾏｴﾊﾞｼ.ｼｷｼﾏ | C4: 前橋市立敷島小学校 | D4: 前・敷島 | E4: 1 | F4: 3 | G4: 3000 | H4: 30
A5: 104 | B5: ﾏｴﾊﾞｼ.ｼﾞｮｳﾅﾝ | C5: 前橋市立城南小学校 | D5: 前・城南 | E5: 1 | F5: 4 | G5: 4000 | H5: 40
A6: 105 | B6: ﾏｴﾊﾞｼ.ｼﾞｮｳﾄｳ | C6: 前橋市立城東小学校 | D6: 前・城東 | E6: 1 | F6: 5 | G6: 5000 | H6: 50
A7: 106 | B7: ﾏｴﾊﾞｼ.ﾜｶﾐﾔ | C7: 前橋市立若宮小学校 | D7: 前・若宮 | E7: 1 | F7: 6 | G7: 6000 | H7: 60
A8: 107 | B8: ﾏｴﾊﾞｼ.ｱﾏｶﾞﾜ | C8: 前橋市立天川小学校 | D8: 前・天川 | E8: 1 | F8: 7 | G8: 7000 | H8: 70
A9: 108 | B9: ﾏｴﾊﾞｼ.ｲﾜｶﾞﾐ | C9: 前橋市立岩神小学校 | D9: 前・岩神 | E9: 1 | F9: 8 | G9: 8000 | H9: 80
A10: 110 | B10: ﾏｴﾊﾞｼ.ﾋﾛｾ | C10: 前橋市立広瀬小学校 | D10: 前・広瀬 | E10: 1 | F10: 9 | G10: 9000 | H10: 90
A11: 111 | B11: ﾏｴﾊﾞｼ.ｻﾝﾉｳ | C11: 前橋市立山王小学校 | D11: 前・山王 | E11: 1 | F11: 10 | G11: 10000 | H11: 100
A12: 112 | B12: ﾏｴﾊﾞｼ.ﾜｶﾊﾞ | C12: 前橋市立わかば小学校 | D12: 前・わかば | E12: 1 | F12: 11 | G12: 11000 | H12: 110
A13: 114 | B13: ﾏｴﾊﾞｼ.ｶﾐｶﾜﾌﾁ | C13: 前橋市立上川淵小学校 | D13: 前・上川淵 | E13: 1 | F13: 12 | G13: 12000 | H13: 120
A14: 115 | B14: ﾏｴﾊﾞｼ.ｼﾓｶﾜﾌﾁ | C14: 前橋市立下川淵小学校 | D14: 前・下川淵 | E14: 1 | F14: 13 | G14: 13000 | H14: 130
A15: 116 | B15: ﾏｴﾊﾞｼ.ｶｲｶﾞﾔ | C15: 前橋市立桂萱小学校 | D15: 前・桂萱 | E15: 1 | F15: 14 | G15: 14000 | H15: 140
A16: 117 | B16: ﾏｴﾊﾞｼ.ﾓﾓﾉｷ | C16: 前橋市立桃木小学校 | D16: 前・桃木 | E16: 1 | F16: 15 | G16: 15000 | H16: 150
A17: 118 | B17: ﾏｴﾊﾞｼ.ｶｲｶﾞﾔﾋｶﾞｼ | C17: 前橋市立桂萱東小学校 | D17: 前・桂萱東 | E17: 1 | F17: 16 | G17: 16000 | H17: 160
A18: 119 | B18: ﾏｴﾊﾞｼ.ﾓﾓﾉｾ | C18: 前橋市立桃瀬小学校 | D18: 前・桃瀬 | E18: 1 | F18: 17 | G18: 17000 | H18: 170
A19: 120 | B19: ﾏｴﾊﾞｼ.ﾊｶﾞ | C19: 前橋市立芳賀小学校 | D19: 前・芳賀 | E19: 1 | F19: 18 | G19: 18000 | H19: 180
A20: 122 | B20: ﾏｴﾊﾞｼ.ｿｳｼﾞｬ | C20: 前橋市立総社小学校 | D20: 前・総社 | E20: 1 | F20: 19 | G20: 19000 | H20: 190
A21: 123 | B21: ﾏｴﾊﾞｼ.ｶﾂﾔﾏ | C21: 前橋市立勝山小学校 | D21: 前・勝山 | E21: 1 | F21: 20 | G21: 20000 | H21: 200
A22: 124 | B22: ﾏｴﾊﾞｼ.ﾓﾄｿｳｼﾞｬ | C22: 前橋市立元総社小学校 | D22: 前・元総社 | E22: 1 | F22: 21 | G22: 21000 | H22: 210
A23: 125 | B23: ﾏｴﾊﾞｼﾓﾄｿｳｼﾞｬﾐﾅﾐ | C23: 前橋市立元総社南小学校 | D23: 前・元総社南 | E23: 1 | F23: 22 | G23: 22000 | H23: 220
A24: 126 | B24: ﾏｴﾊﾞｼ.ﾓﾄｿｳｼﾞｬｷﾀ | C24: 前橋市立元総社北小学校 | D24: 前・元総社北 | E24: 1 | F24: 23 | G24: 23000 | H24: 230
A25: 127 | B25: ﾏｴﾊﾞｼ.ｱｽﾞﾏ | C25: 前橋市立東小学校 | D25: 前・東 | E25: 1 | F25: 24 | G25: 24000 | H25: 240
A26: 128 | B26: ﾏｴﾊﾞｼ.ｵｵﾄﾈ | C26: 前橋市立大利根小学校 | D26: 前・大利根 | E26: 1 | F26: 25 | G26: 25000 | H26: 250
A27: 129 | B27: ﾏｴﾊﾞｼ.ｼﾝﾃﾞﾝ | C27: 前橋市立新田小学校 | D27: 前・新田 | E27: 1 | F27: 26 | G27: 26000 | H27: 260
A28: 130 | B28: ﾏｴﾊﾞｼ.ﾎｿｲ | C28: 前橋市立細井小学校 | D28: 前・細井 | E28: 1 | F28: 27 | G28: 27000 | H28: 270
A29: 131 | B29: ﾏｴﾊﾞｼ.ﾓﾓｶﾜ | C29: 前橋市立桃川小学校 | D29: 前・桃川 | E29: 1 | F29: 28 | G29: 28000 | H29: 280
A30: 132 | B30: ﾏｴﾊﾞｼ.ｱﾗﾏｷ | C30: 前橋市立荒牧小学校 | D30: 前・荒牧 | E30: 1 | F30: 29 | G30: 29000 | H30: 290
A31: 133 | B31: ﾏｴﾊﾞｼ.ｷﾖｻﾄ | C31: 前橋市立清里小学校 | D31: 前・清里 | E31: 1 | F31: 30 | G31: 30000 | H31: 300
A32: 134 | B32: ﾏｴﾊﾞｼ.ｴｲﾒｲ | C32: 前橋市立永明小学校 | D32: 前・永明 | E32: 1 | F32: 31 | G32: 31000 | H32: 310
A33: 135 | B33: ﾏｴﾊﾞｼ.ｺﾏｶﾞﾀ | C33: 前橋市立駒形小学校 | D33: 前・駒形 | E33: 1 | F33: 32 | G33: 32000 | H33: 320
A34: 136 | B34: ﾏｴﾊﾞｼ.ｱﾗｺ | C34: 前橋市立荒子小学校 | D34: 前・荒子 | E34: 1 | F34: 33 | G34: 33000 | H34: 330
A35: 137 | B35: ﾏｴﾊﾞｼ.ｵｵﾑﾛ | C35: 前橋市立大室小学校 | D35: 前・大室 | E35: 1 | F35: 34 | G35: 34000 | H35: 340
A36: 138 | B36: ﾏｴﾊﾞｼ.ﾆﾉﾐﾔ | C36: 前橋市立二之宮小学校 | D36: 前・二之宮 | E36: 1 | F36: 35 | G36: 35000 | H36: 350
A37: 139 | B37: ﾏｴﾊﾞｼ.ｳﾂﾎﾞｲ | C37: 前橋市立笂井小学校 | D37: 前・笂井 | E37: 1 | F37: 36 | G37: 36000 | H37: 360
A38: 140 | B38: ﾏｴﾊﾞｼ.ｵｵｺﾞ | C38: 前橋市立大胡小学校 | D38: 前・大胡 | E38: 1 | F38: 37 | G38: 37000 | H38: 370
A39: 141 | B39: ﾏｴﾊﾞｼ.ﾀｷｸﾎﾞ | C39: 前橋市立滝窪小学校 | D39: 前・滝窪 | E39: 1 | F39: 38 | G39: 38000 | H39: 380
A40: 142 | B40: ﾏｴﾊﾞｼ.ｵｵｺﾞﾋｶﾞｼ | C40: 前橋市立大胡東小学校 | D40: 前・大胡東 | E40: 1 | F40: 39 | G40: 39000 | H40: 390
A41: 143 | B41: ﾏｴﾊﾞｼ.ﾐﾔｷﾞ | C41: 前橋市立宮城小学校 | D41: 前・宮城 | E41: 1 | F41: 40 | G41: 40000 | H41: 400
A42: 144 | B42: ﾏｴﾊﾞｼ.ｶｽｶﾜ | C42: 前橋市立粕川小学校 | D42: 前・粕川 | E42: 1 | F42: 41 | G42: 41000 | H42: 410
A43: 145 | B43: ﾏｴﾊﾞｼ.ﾂｷﾀﾞ | C43: 前橋市立月田小学校 | D43: 前・月田 | E43: 1 | F43: 42 | G43: 42000 | H43: 420
A44: 146 | B44: ﾏｴﾊﾞｼ.ﾊﾗ | C44: 前橋市立原小学校 | D44: 前・原 | E44: 1 | F44: 43 | G44: 43000 | H44: 430
A45: 147 | B45: ﾏｴﾊﾞｼ.ｲｼｲ | C45: 前橋市立石井小学校 | D45: 前・石井 | E45: 1 | F45: 44 | G45: 44000 | H45: 440
A46: 148 | B46: ﾏｴﾊﾞｼ.ﾄｷｻﾞﾜ | C46: 前橋市立時沢小学校 | D46: 前・時沢 | E46: 1 | F46: 45 | G46: 45000 | H46: 450
A47: 149 | B47: ﾏｴﾊﾞｼ.ｼﾗｶﾜ | C47: 前橋市立白川小学校 | D47: 前・白川 | E47: 1 | F47: 46 | G47: 46000 | H47: 460
A48: 150 | B48: ｸﾞﾝﾀﾞｲﾌｿﾞｸ | C48: 群馬大学附属小学校 | D48: 前・群大附属 | E48: 1 | F48: 47 | G48: 47000 | H48: 470
A49: 151 | B49: ｹﾝﾘﾂﾛｳｶﾞｯｺｳ | C49: 群馬県立聾学校小学部 | D49: 前・県聾 | E49: 1 | F49: 48 | G49: 48000 | H49: 480
A50: 152 | B50: ﾏｴﾊﾞｼ.ｷｮｳｱｲ | C50: 共愛学園小学校 | D50: 前・共愛 | E50: 1 | F50: 49 | G50: 49000 | H50: 490
A51: 201 | B51: ｲｾｻｷ.ｷﾀ | C51: 伊勢崎市立北小学校 | D51: 伊・北 | E51: 2 | F51: 50 | G51: 50000 | H51: 500
A52: 202 | B52: ｲｾｻｷ.ﾐﾅﾐ | C52: 伊勢崎市立南小学校 | D52: 伊・南 | E52: 2 | F52: 51 | G52: 51000 | H52: 510
A53: 203 | B53: ｲｾｻｷ.ｳｴﾊｽ | C53: 伊勢崎市立殖蓮小学校 | D53: 伊・殖蓮 | E53: 2 | F53: 52 | G53: 52000 | H53: 520
A54: 204 | B54: ｲｾｻｷ.ﾓﾛ | C54: 伊勢崎市立茂呂小学校 | D54: 伊・茂呂 | E54: 2 | F54: 53 | G54: 53000 | H54: 530
A55: 205 | B55: ｲｾｻｷ.ﾐｻﾄ | C55: 伊勢崎市立三郷小学校 | D55: 伊・三郷 | E55: 2 | F55: 54 | G55: 54000 | H55: 540
A56: 206 | B56: ｲｾｻｷ.ﾐﾔｺﾞｳ | C56: 伊勢崎市立宮郷小学校 | D56: 伊・宮郷 | E56: 2 | F56: 55 | G56: 55000 | H56: 550
A57: 207 | B57: ｲｾｻｷ.ﾅﾜ | C57: 伊勢崎市立名和小学校 | D57: 伊・名和 | E57: 2 | F57: 56 | G57: 56000 | H57: 560
A58: 208 | B58: ｲｾｻｷ.ﾄﾖｳｹ | C58: 伊勢崎市立豊受小学校 | D58: 伊・豊受 | E58: 2 | F58: 57 | G58: 57000 | H58: 570
A59: 209 | B59: ｲｾｻｷ.ｷﾀﾀﾞｲﾆ | C59: 伊勢崎市立北第二小学校 | D59: 伊・北第二 | E59: 2 | F59: 58 | G59: 58000 | H59: 580
A60: 210 | B60: ｲｾｻｷ.ｳｴﾊｽﾀﾞｲﾆ | C60: 伊勢崎市立殖蓮第二小学校 | D60: 伊・殖蓮第二 | E60: 2 | F60: 59 | G60: 59000 | H60: 590
A61: 211 | B61: ｲｾｻｷ.ﾋﾛｾ | C61: 伊勢崎市立広瀬小学校 | D61: 伊・広瀬 | E61: 2 | F61: 60 | G61: 60000 | H61: 600
A62: 212 | B62: ｲｾｻｷ.ﾊﾞﾝﾄﾞｳ | C62: 伊勢崎市立坂東小学校 | D62: 伊・坂東 | E62: 2 | F62: 61 | G62: 61000 | H62: 610
A63: 213 | B63: ｲｾｻｷ.ﾐﾔｺﾞｳﾀﾞｲﾆ | C63: 伊勢崎市立宮郷第二小学校 | D63: 伊・宮郷第二 | E63: 2 | F63: 62 | G63: 62000 | H63: 620
A64: 214 | B64: ｲｾｻｷ.ｱｶﾎﾞﾘ | C64: 伊勢崎市立赤堀小学校 | D64: 伊・赤堀 | E64: 2 | F64: 63 | G64: 63000 | H64: 630
A65: 215 | B65: ｲｾｻｷ.ｱｶﾎﾞﾘﾐﾅﾐ | C65: 伊勢崎市立赤堀南小学校 | D65: 伊・赤堀南 | E65: 2 | F65: 64 | G65: 64000 | H65: 640
A66: 216 | B66: ｲｾｻｷ.ｱｶﾎﾞﾘﾋｶﾞｼ | C66: 伊勢崎市立赤堀東小学校 | D66: 伊・赤堀東 | E66: 2 | F66: 65 | G66: 65000 | H66: 650
A67: 217 | B67: ｲｾｻｷ.ｱｽﾞﾏ | C67: 伊勢崎市立あずま小学校 | D67: 伊・あずま | E67: 2 | F67: 66 | G67: =F67*1000 -> 66000 | H67: =F67*10 -> 660
A68: 218 | B68: ｲｾｻｷ.ｱｽﾞﾏﾐﾅﾐ | C68: 伊勢崎市立あずま南小学校 | D68: 伊・あずま南 | E68: 2 | F68: 67 | G68: 67000 | H68: 670
A69: 219 | B69: ｲｾｻｷ.ｱｽﾞﾏｷﾀ | C69: 伊勢崎市立あずま北小学校 | D69: 伊・あずま北 | E69: 2 | F69: 68 | G69: 68000 | H69: 680
A70: 220 | B70: ｲｾｻｷ.ｻｶｲ | C70: 伊勢崎市立境小学校 | D70: 伊・境 | E70: 2 | F70: 69 | G70: 69000 | H70: 690
A71: 221 | B71: ｲｾｻｷ.ｻｶｲｳﾈﾒ | C71: 伊勢崎市立境采女小学校 | D71: 伊・境采女 | E71: 2 | F71: 70 | G71: 70000 | H71: 700
A72: 222 | B72: ｲｾｻｷ.ｻｶｲｺﾞｳｼ | C72: 伊勢崎市立境剛志小学校 | D72: 伊・境剛志 | E72: 2 | F72: 71 | G72: 71000 | H72: 710
A73: 224 | B73: ｲｾｻｷ.ｻｶｲﾋｶﾞｼ | C73: 伊勢崎市立境東小学校 | D73: 伊・境東 | E73: 2 | F73: 72 | G73: 72000 | H73: 720
A74: 301 | B74: ﾀﾏﾑﾗ.ﾀﾏﾑﾗ | C74: 玉村町立玉村小学校 | D74: 佐・玉村 | E74: 3 | F74: 73 | G74: 73000 | H74: 730
A75: 302 | B75: ﾀﾏﾑﾗ.ｼﾞｮｳﾖｳ | C75: 玉村町立上陽小学校 | D75: 佐・上陽 | E75: 3 | F75: 74 | G75: 74000 | H75: 740
A76: 303 | B76: ﾀﾏﾑﾗ.ｼﾊﾞﾈ | C76: 玉村町立芝根小学校 | D76: 佐・芝根 | E76: 3 | F76: 75 | G76: 75000 | H76: 750
A77: 304 | B77: ﾀﾏﾑﾗ.ﾁｭｳｵｳ | C77: 玉村町立中央小学校 | D77: 佐・玉村中央 | E77: 3 | F77: 76 | G77: 76000 | H77: 760
A78: 305 | B78: ﾀﾏﾑﾗ.ﾐﾅﾐ | C78: 玉村町立南小学校 | D78: 佐・玉村南 | E78: 3 | F78: 77 | G78: 77000 | H78: 770
A79: 306 | B79: ﾌｪﾘｰﾁｪﾀﾏﾑﾗｺｸｻｲ | C79: フェリーチェ玉村国際小学校 | D79: 佐・ﾌｪﾘｰﾁｪ | E79: 3 | F79: 78 | G79: 78000 | H79: 780
A80: 401 | B80: ｼﾝﾄｳ.ｷﾀ | C80: 榛東村立北小学校 | D80: 北・榛東北 | E80: 4 | F80: 79 | G80: 79000 | H80: 790
A81: 402 | B81: ｼﾝﾄｳ.ﾐﾅﾐ | C81: 榛東村立南小学校 | D81: 北・榛東南 | E81: 4 | F81: 80 | G81: 80000 | H81: 800
A82: 403 | B82: ﾖｼｵｶ.ﾒｲｼﾞ | C82: 吉岡村立明治小学校 | D82: 北・明治 | E82: 4 | F82: 81 | G82: 81000 | H82: 810
A83: 404 | B83: ﾖｼｵｶ.ｺﾏﾖｾ | C83: 吉岡村立駒寄小学校 | D83: 北・駒寄 | E83: 4 | F83: 82 | G83: 82000 | H83: 820
A84: 501 | B84: ｼﾌﾞｶﾜ.ｷﾀ | C84: 渋川市立渋川北小学校 | D84: 渋・渋川北 | E84: 5 | F84: 83 | G84: 83000 | H84: 830
A85: 502 | B85: ｼﾌﾞｶﾜ.ﾐﾅﾐ | C85: 渋川市立渋川南小学校 | D85: 渋・渋川南 | E85: 5 | F85: 84 | G85: 84000 | H85: 840
A86: 503 | B86: ｼﾌﾞｶﾜ.ｶﾅｼﾏ | C86: 渋川市立金島小学校 | D86: 渋・金島 | E86: 5 | F86: 85 | G86: 85000 | H86: 850
A87: 504 | B87: ｼﾌﾞｶﾜ.ﾌﾙﾏｷ | C87: 渋川市立古巻小学校 | D87: 渋・古巻 | E87: 5 | F87: 86 | G87: 86000 | H87: 860
A88: 505 | B88: ｼﾌﾞｶﾜ.ﾄﾖｱｷ | C88: 渋川市立豊秋小学校 | D88: 渋・豊秋 | E88: 5 | F88: 87 | G88: 87000 | H88: 870
A89: 506 | B89: ｼﾌﾞｶﾜ.ﾆｼ | C89: 渋川市立渋川西小学校 | D89: 渋・渋川西 | E89: 5 | F89: 88 | G89: 88000 | H89: 880
A90: 507 | B90: ｼﾌﾞｶﾜ.ｲｶﾎ | C90: 渋川市立伊香保小学校 | D90: 渋・伊香保 | E90: 5 | F90: 89 | G90: 89000 | H90: 890
A91: 508 | B91: ｼﾌﾞｶﾜ.ｵﾉｶﾞﾐ | C91: 渋川市立小野上小学校 | D91: 渋・小野上 | E91: 5 | F91: 90 | G91: 90000 | H91: 900
A92: 510 | B92: ｼﾌﾞｶﾜ.ﾅｶｺﾞｳ | C92: 渋川市立中郷小学校 | D92: 渋・中郷 | E92: 5 | F92: 91 | G92: 91000 | H92: 910
A93: 511 | B93: ｼﾌﾞｶﾜ.ﾅｶﾞｵ | C93: 渋川市立長尾小学校 | D93: 渋・長尾 | E93: 5 | F93: 92 | G93: 92000 | H93: 920
A94: 512 | B94: ｼﾌﾞｶﾜ.ﾐﾊﾗﾀﾞ | C94: 渋川市立三原田小学校 | D94: 渋・三原田 | E94: 5 | F94: 93 | G94: 93000 | H94: 930
A95: 514 | B95: ｼﾌﾞｶﾜ.ﾂｸﾀﾞ | C95: 渋川市立津久田小学校 | D95: 渋・津久田 | E95: 5 | F95: 94 | G95: 94000 | H95: 940
A96: 516 | B96: ｼﾌﾞｶﾜ.ﾀﾁﾊﾞﾅ | C96: 渋川市立橘小学校 | D96: 渋・橘 | E96: 5 | F96: 95 | G96: 95000 | H96: 950
A97: 517 | B97: ｼﾌﾞｶﾜ.ﾀﾁﾊﾞﾅｷﾀ | C97: 渋川市立橘北小学校 | D97: 渋・橘北 | E97: 5 | F97: 96 | G97: 96000 | H97: 960
A98: 601 | B98: ｶﾀｼﾅ.ｶﾀｼﾅ | C98: 片品町立片品小学校 | D98: 利・片品 | E98: 6 | F98: 97 | G98: 97000 | H98: 970
A99: 605 | B99: ｶﾜﾊﾞ.ｶﾜﾊﾞ | C99: 川場村立川場小学校 | D99: 利・川場 | E99: 6 | F99: 98 | G99: 98000 | H99: 980
A100: 606 | B100: ﾐﾅｶﾐ.ｺﾒﾏｷ | C100: みなかみ町立古馬牧小学校 | D100: 利・古馬牧 | E100: 6 | F100: 99 | G100: 99000 | H100: 990
A101: 607 | B101: ﾐﾅｶﾐ.ﾓﾓﾉ | C101: みなかみ町立桃野小学校 | D101: 利・桃野 | E101: 6 | F101: 100 | G101: 100000 | H101: 1000
A102: 608 | B102: ﾐﾅｶﾐ.ﾂｷﾖﾉｷﾀ | C102: みなかみ町立月夜野北小学校 | D102: 利・月夜野北 | E102: 6 | F102: 101 | G102: 101000 | H102: 1010
A103: 609 | B103: ﾐﾅｶﾐ.ﾐﾅｶﾐ | C103: みなかみ町立水上小学校 | D103: 利・水上 | E103: 6 | F103: 102 | G103: 102000 | H103: 1020
A104: 610 | B104: ﾐﾅｶﾐ.ﾌｼﾞﾜﾗ | C104: みなかみ町立藤原小学校 | D104: 利・藤原 | E104: 6 | F104: 103 | G104: 103000 | H104: 1030
A105: 611 | B105: ﾐﾅｶﾐ.ﾆｲﾊﾙ | C105: みなかみ町立新治小学校 | D105: 利・新治 | E105: 6 | F105: 104 | G105: 104000 | H105: 1040
A106: 612 | B106: ｼｮｳﾜ.ﾋｶﾞｼ | C106: 昭和村立東小学校 | D106: 利・昭和東 | E106: 6 | F106: 105 | G106: 105000 | H106: 1050
A107: 613 | B107: ｼｮｳﾜ.ﾐﾅﾐ | C107: 昭和村立南小学校 | D107: 利・昭和南 | E107: 6 | F107: 106 | G107: 106000 | H107: 1060
A108: 614 | B108: ｼｮｳﾜ.ｵｵｶﾜﾗ | C108: 昭和村立大河原小学校 | D108: 利・大河原 | E108: 6 | F108: 107 | G108: 107000 | H108: 1070
A109: 701 | B109: ﾇﾏﾀ.ﾇﾏﾀ | C109: 沼田市立沼田小学校 | D109: 沼・沼田 | E109: 7 | F109: 108 | G109: 108000 | H109: 1080
A110: 702 | B110: ﾇﾏﾀ.ﾇﾏﾀﾋｶﾞｼ | C110: 沼田市立沼田東小学校 | D110: 沼・沼田東 | E110: 7 | F110: 109 | G110: 109000 | H110: 1090
A111: 703 | B111: ﾇﾏﾀ.ﾇﾏﾀｷﾀ | C111: 沼田市立沼田北小学校 | D111: 沼・沼田北 | E111: 7 | F111: 110 | G111: 110000 | H111: 1100
A112: 704 | B112: ﾇﾏﾀ.ﾏｽｶﾞﾀ | C112: 沼田市立升形小学校 | D112: 沼・升形 | E112: 7 | F112: 111 | G112: 111000 | H112: 1110
A113: 705 | B113: ﾇﾏﾀ.ﾄﾅﾐﾋｶﾞｼ | C113: 沼田市立利南東小学校 | D113: 沼・利南東 | E113: 7 | F113: 112 | G113: 112000 | H113: 1120
A114: 706 | B114: ﾇﾏﾀ.ｲｹﾀﾞ | C114: 沼田市立池田小学校 | D114: 沼・池田 | E114: 7 | F114: 113 | G114: 113000 | H114: 1130
A115: 707 | B115: ﾇﾏﾀ.ｳｽﾈ | C115: 沼田市立薄根小学校 | D115: 沼・薄根 | E115: 7 | F115: 114 | G115: 114000 | H115: 1140
A116: 708 | B116: ﾇﾏﾀ.ｶﾜﾀﾞ | C116: 沼田市立川田小学校 | D116: 沼・川田 | E116: 7 | F116: 115 | G116: 115000 | H116: 1150
A117: 709 | B117: ﾇﾏﾀ.ｼﾗｻﾜ | C117: 沼田市立白沢小学校 | D117: 沼・白沢 | E117: 7 | F117: 116 | G117: 116000 | H117: 1160
A118: 710 | B118: ﾇﾏﾀ.ﾄﾈ | C118: 沼田市立利根小学校 | D118: 沼・利根 | E118: 7 | F118: 117 | G118: 117000 | H118: 1170
A119: 713 | B119: ﾇﾏﾀ.ﾀﾅ | C119: 沼田市立多那小学校 | D119: 沼・多那 | E119: 7 | F119: 118 | G119: 118000 | H119: 1180
A120: 801 | B120: ﾅｶﾉｼﾞｮｳ.ﾅｶﾉｼﾞｮｳ | C120: 中之条町立中之条小学校 | D120: 吾・中之条 | E120: 8 | F120: 119 | G120: 119000 | H120: 1190
A121: 805 | B121: ﾅｶﾉｼﾞｮｳ.ｸﾆ | C121: 中之条町立六合小学校 | D121: 吾・六合 | E121: 8 | F121: 120 | G121: 120000 | H121: 1200
A122: 806 | B122: ﾋｶﾞｼｱｶﾞﾂﾏ.ｱｽﾞﾏ | C122: 東吾妻町立東小学校 | D122: 吾・東吾妻東 | E122: 8 | F122: 121 | G122: 121000 | H122: 1210
A123: 807 | B123: ﾋｶﾞｼｱｶﾞﾂﾏ.ﾊﾗﾏﾁ | C123: 東吾妻町立原町小学校 | D123: 吾・原町 | E123: 8 | F123: 122 | G123: 122000 | H123: 1220
A124: 808 | B124: ﾋｶﾞｼｱｶﾞﾂﾏ.ｵｵﾀ | C124: 東吾妻町立太田小学校 | D124: 吾・東吾妻太田 | E124: 8 | F124: 123 | G124: 123000 | H124: 1230
A125: 809 | B125: ﾋｶﾞｼｱｶﾞﾂﾏ.ｲﾜｼﾏ | C125: 東吾妻町立岩島小学校 | D125: 吾・岩島 | E125: 8 | F125: 124 | G125: 124000 | H125: 1240
A126: 810 | B126: ﾋｶﾞｼｱｶﾞﾂﾏ.ｻｶｳｴ | C126: 東吾妻町立坂上小学校 | D126: 吾・坂上 | E126: 8 | F126: 125 | G126: 125000 | H126: 1250
A127: 811 | B127: ﾅｶﾞﾉﾊﾗ.ﾁｭｳｵｳ | C127: 長野原町立中央小学校 | D127: 吾・長野原中央 | E127: 8 | F127: 126 | G127: 126000 | H127: 1260
A128: 813 | B128: ﾅｶﾞﾉﾊﾗ.ｵｳｸﾜ | C128: 長野原町立応桑小学校 | D128: 吾・応桑 | E128: 8 | F128: 127 | G128: 127000 | H128: 1270
A129: 814 | B129: ﾅｶﾞﾉﾊﾗ.ｷﾀｶﾙｲｻﾞﾜ | C129: 長野原町立北軽井沢小学校 | D129: 吾・北軽井沢 | E129: 8 | F129: 128 | G129: 128000 | H129: 1280
A130: 815 | B130: ﾂﾏｺﾞｲ.ﾄｳﾌﾞ | C130: 嬬恋村立東部小学校 | D130: 吾・嬬恋東部 | E130: 8 | F130: 129 | G130: 129000 | H130: 1290
A131: 816 | B131: ﾂﾏｺﾞｲ.ｾｲﾌﾞ | C131: 嬬恋村立西部小学校 | D131: 吾・嬬恋西部 | E131: 8 | F131: 130 | G131: =F131*1000 -> 130000 | H131: =F131*10 -> 1300
A132: 820 | B132: ｸｻﾂ.ｸｻﾂ | C132: 草津町立草津小学校 | D132: 吾・草津 | E132: 8 | F132: 131 | G132: 131000 | H132: 1310
A133: 821 | B133: ﾀｶﾔﾏ.ﾀｶﾔﾏ | C133: 高山村立高山小学校 | D133: 吾・高山 | E133: 8 | F133: 132 | G133: 132000 | H133: 1320
A134: 901 | B134: ﾀｶｻｷ.ﾁｭｳｵｳ | C134: 高崎市立中央小学校 | D134: 高・中央 | E134: 9 | F134: 133 | G134: 133000 | H134: 1330
A135: 902 | B135: ﾀｶｻｷ.ｷﾀ | C135: 高崎市立北小学校 | D135: 高・北 | E135: 9 | F135: 134 | G135: 134000 | H135: 1340
A136: 903 | B136: ﾀｶｻｷ.ﾐﾅﾐ | C136: 高崎市立南小学校 | D136: 高・南 | E136: 9 | F136: 135 | G136: 135000 | H136: 1350
A137: 904 | B137: ﾀｶｻｷ.ﾋｶﾞｼ | C137: 高崎市立東小学校 | D137: 高・東 | E137: 9 | F137: 136 | G137: 136000 | H137: 1360
A138: 905 | B138: ﾀｶｻｷ.ﾆｼ | C138: 高崎市立西小学校 | D138: 高・西 | E138: 9 | F138: 137 | G138: 137000 | H138: 1370
A139: 906 | B139: ﾀｶｻｷ.ﾂｶｻﾜ | C139: 高崎市立塚沢小学校 | D139: 高・塚沢 | E139: 9 | F139: 138 | G139: 138000 | H139: 1380
A140: 907 | B140: ﾀｶｻｷ.ｶﾀｵｶ | C140: 高崎市立片岡小学校 | D140: 高・片岡 | E140: 9 | F140: 139 | G140: 139000 | H140: 1390
A141: 908 | B141: ﾀｶｻｷ.ﾃﾗｵ | C141: 高崎市立寺尾小学校 | D141: 高・寺尾 | E141: 9 | F141: 140 | G141: 140000 | H141: 1400
A142: 909 | B142: ﾀｶｻｷ.ｻﾉ | C142: 高崎市立佐野小学校 | D142: 高・佐野 | E142: 9 | F142: 141 | G142: 141000 | H142: 1410
A143: 910 | B143: ﾀｶｻｷ.ﾛｸｺﾞｳ | C143: 高崎市立六郷小学校 | D143: 高・六郷 | E143: 9 | F143: 142 | G143: 142000 | H143: 1420
A144: 911 | B144: ﾀｶｻｷ.ｼﾞｮｳﾅﾝ | C144: 高崎市立城南小学校 | D144: 高・城南 | E144: 9 | F144: 143 | G144: 143000 | H144: 1430
A145: 912 | B145: ﾀｶｻｷ.ｼﾞｮｳﾄｳ | C145: 高崎市立城東小学校 | D145: 高・城東 | E145: 9 | F145: 144 | G145: 144000 | H145: 1440
A146: 913 | B146: ﾀｶｻｷ.ｼﾝﾀｶｵ | C146: 高崎市立新高尾小学校 | D146: 高・新高尾 | E146: 9 | F146: 145 | G146: 145000 | H146: 1450
A147: 914 | B147: ﾀｶｻｷ.ﾅｶｶﾞﾜ | C147: 高崎市立中川小学校 | D147: 高・中川 | E147: 9 | F147: 146 | G147: 146000 | H147: 1460
A148: 915 | B148: ﾀｶｻｷ.ﾔﾜﾀ | C148: 高崎市立八幡小学校 | D148: 高・八幡 | E148: 9 | F148: 147 | G148: 147000 | H148: 1470
A149: 916 | B149: ﾀｶｻｷ.ﾄﾖｵｶ | C149: 高崎市立豊岡小学校 | D149: 高・豊岡 | E149: 9 | F149: 148 | G149: 148000 | H149: 1480
A150: 917 | B150: ﾀｶｻｷ.ﾅｶﾞﾉ | C150: 高崎市立長野小学校 | D150: 高・長野 | E150: 9 | F150: 149 | G150: 149000 | H150: 1490
A151: 918 | B151: ﾀｶｻｷ.ｵｵﾙｲ | C151: 高崎市立大類小学校 | D151: 高・大類 | E151: 9 | F151: 150 | G151: 150000 | H151: 1500
A152: 919 | B152: ﾀｶｻｷ.ﾐﾅﾐﾔﾜﾀ | C152: 高崎市立南八幡小学校 | D152: 高・南八幡 | E152: 9 | F152: 151 | G152: 151000 | H152: 1510
A153: 920 | B153: ﾀｶｻｷ.ｸﾗｶﾞﾉ | C153: 高崎市立倉賀野小学校 | D153: 高・倉賀野 | E153: 9 | F153: 152 | G153: 152000 | H153: 1520
A154: 921 | B154: ﾀｶｻｷ.ｲﾜﾊﾅ | C154: 高崎市立岩鼻小学校 | D154: 高・岩鼻 | E154: 9 | F154: 153 | G154: 153000 | H154: 1530
A155: 922 | B155: ﾀｶｻｷ.ｷｮｳｶﾞｼﾏ | C155: 高崎市立京ヶ島小学校 | D155: 高・京ヶ島 | E155: 9 | F155: 154 | G155: 154000 | H155: 1540
A156: 923 | B156: ﾀｶｻｷ.ﾀｷｶﾞﾜ | C156: 高崎市立滝川小学校 | D156: 高・滝川 | E156: 9 | F156: 155 | G156: 155000 | H156: 1550
A157: 924 | B157: ﾀｶｻｷ.ﾄｳﾌﾞ | C157: 高崎市立東部小学校 | D157: 高・東部 | E157: 9 | F157: 156 | G157: 156000 | H157: 1560
A158: 925 | B158: ﾀｶｻｷ.ﾅｶｲ | C158: 高崎市立中居小学校 | D158: 高・中居 | E158: 9 | F158: 157 | G158: 157000 | H158: 1570
A159: 926 | B159: ﾀｶｻｷ.ﾎｸﾌﾞ | C159: 高崎市立北部小学校 | D159: 高・北部 | E159: 9 | F159: 158 | G159: 158000 | H159: 1580
A160: 927 | B160: ﾀｶｻｷ.ｾｲﾌﾞ | C160: 高崎市立西部小学校 | D160: 高・西部 | E160: 9 | F160: 159 | G160: 159000 | H160: 1590
A161: 928 | B161: ﾀｶｻｷ.ﾉﾂｹ | C161: 高崎市立乗附小学校 | D161: 高・乗附 | E161: 9 | F161: 160 | G161: 160000 | H161: 1600
A162: 929 | B162: ﾀｶｻｷ.ﾊﾏｼﾞﾘ | C162: 高崎市立浜尻小学校 | D162: 高・浜尻 | E162: 9 | F162: 161 | G162: 161000 | H162: 1610
A163: 930 | B163: ﾀｶｻｷ.ﾔﾅｶ | C163: 高崎市立矢中小学校 | D163: 高・矢中 | E163: 9 | F163: 162 | G163: 162000 | H163: 1620
A164: 931 | B164: ﾀｶｻｷ.ｼﾛﾔﾏ | C164: 高崎市立城山小学校 | D164: 高・城山 | E164: 9 | F164: 163 | G164: 163000 | H164: 1630
A165: 932 | B165: ﾀｶｻｷ.ﾊﾅﾀﾞｶ | C165: 高崎市立鼻高小学校 | D165: 高・鼻高 | E165: 9 | F165: 164 | G165: 164000 | H165: 1640
A166: 933 | B166: ﾀｶｻｷ.ｸﾗﾌﾞﾁ | C166: 高崎市立倉渕小学校 | D166: 高・倉渕 | E166: 9 | F166: 165 | G166: 165000 | H166: 1650
A167: 934 | B167: ﾀｶｻｷ.ﾐﾉﾜ | C167: 高崎市立箕輪小学校 | D167: 高・箕輪 | E167: 9 | F167: 166 | G167: 166000 | H167: 1660
A168: 935 | B168: ﾀｶｻｷ.ｸﾙﾏｻﾄ | C168: 高崎市立車郷小学校 | D168: 高・車郷 | E168: 9 | F168: 167 | G168: 167000 | H168: 1670
A169: 936 | B169: ﾀｶｻｷ.ﾐｻﾄﾋｶﾞｼ | C169: 高崎市立箕郷東小学校 | D169: 高・箕郷東 | E169: 9 | F169: 168 | G169: 168000 | H169: 1680
A170: 937 | B170: ﾀｶｻｷ.ｶﾈｺ | C170: 高崎市立金古小学校 | D170: 高・金古 | E170: 9 | F170: 169 | G170: 169000 | H170: 1690
A171: 938 | B171: ﾀｶｻｷ.ｺｸﾌ | C171: 高崎市立国府小学校 | D171: 高・国府 | E171: 9 | F171: 170 | G171: 170000 | H171: 1700
A172: 939 | B172: ﾀｶｻｷ.ﾂﾂﾐｶﾞｵｶ | C172: 高崎市立堤ヶ岡小学校 | D172: 高・堤ヶ岡 | E172: 9 | F172: 171 | G172: 171000 | H172: 1710
A173: 940 | B173: ﾀｶｻｷ.ｶﾐｻﾄ | C173: 高崎市立上郊小学校 | D173: 高・上郊 | E173: 9 | F173: 172 | G173: 172000 | H173: 1720
A174: 941 | B174: ﾀｶｻｷ.ｶﾈｺﾐﾅﾐ | C174: 高崎市立金古南小学校 | D174: 高・金古南 | E174: 9 | F174: 173 | G174: 173000 | H174: 1730
A175: 942 | B175: ﾀｶｻｷ.ｻｸﾗﾔﾏ | C175: 高崎市立桜山小学校 | D175: 高・桜山 | E175: 9 | F175: 174 | G175: 174000 | H175: 1740
A176: 943 | B176: ﾀｶｻｷ.ｼﾝﾏﾁﾀﾞｲｲﾁ | C176: 高崎市立新町第一小学校 | D176: 高・新町第一 | E176: 9 | F176: 175 | G176: 175000 | H176: 1750
A177: 944 | B177: ﾀｶｻｷ.ｼﾝﾏﾁﾀﾞｲﾆ | C177: 高崎市立新町第二小学校 | D177: 高・新町第二 | E177: 9 | F177: 176 | G177: 176000 | H177: 1760
A178: 945 | B178: ﾀｶｻｷ.ｼﾓﾑﾛﾀ | C178: 高崎市立下室田小学校 | D178: 高・下室田 | E178: 9 | F178: 177 | G178: 177000 | H178: 1770
A179: 946 | B179: ﾀｶｻｷ.ﾅｶﾑﾛﾀ | C179: 高崎市立中室田小学校 | D179: 高・中室田 | E179: 9 | F179: 178 | G179: 178000 | H179: 1780
A180: 947 | B180: ﾀｶｻｷ.ｶﾐﾑﾛﾀ | C180: 高崎市立上室田小学校 | D180: 高・上室田 | E180: 9 | F180: 179 | G180: 179000 | H180: 1790
A181: 948 | B181: ﾀｶｻｷ.ｻﾄﾐ | C181: 高崎市立里見小学校 | D181: 高・里見 | E181: 9 | F181: 180 | G181: 180000 | H181: 1800
A182: 949 | B182: ﾀｶｻｷ.ｸﾙﾏ | C182: 高崎市立久留馬小学校 | D182: 高・久留馬 | E182: 9 | F182: 181 | G182: 181000 | H182: 1810
A183: 950 | B183: ﾀｶｻｷ.ｼﾓｻﾄﾐ | C183: 高崎市立下里見小学校 | D183: 高・下里見 | E183: 9 | F183: 182 | G183: 182000 | H183: 1820
A184: 951 | B184: ﾀｶｻｷ.ﾐﾔｻﾞﾜ | C184: 高崎市立宮沢小学校 | D184: 高・宮沢 | E184: 9 | F184: 183 | G184: 183000 | H184: 1830
A185: 952 | B185: ﾀｶｻｷ.ﾀｶｻｷ | C185: 高崎市立吉井小学校 | D185: 高・吉井 | E185: 9 | F185: 184 | G185: 184000 | H185: 1840
A186: 953 | B186: ﾀｶｻｷ.ﾀｶｻｷﾆｼ | C186: 高崎市立吉井西小学校 | D186: 高・吉井西 | E186: 9 | F186: 185 | G186: 185000 | H186: 1850
A187: 954 | B187: ﾀｶｻｷ.ﾀｺﾞ | C187: 高崎市立多胡小学校 | D187: 高・多胡 | E187: 9 | F187: 186 | G187: 186000 | H187: 1860
A188: 955 | B188: ﾀｶｻｷ.ｲﾘﾉ | C188: 高崎市立入野小学校 | D188: 高・入野 | E188: 9 | F188: 187 | G188: 187000 | H188: 1870
A189: 956 | B189: ﾀｶｻｷ.ﾏﾆﾜ | C189: 高崎市立馬庭小学校 | D189: 高・馬庭 | E189: 9 | F189: 188 | G189: 188000 | H189: 1880
A190: 957 | B190: ﾀｶｻｷ.ﾅﾝﾖｳﾀﾞｲ | C190: 高崎市立南陽台小学校 | D190: 高・南陽台 | E190: 9 | F190: 189 | G190: 189000 | H190: 1890
A191: 958 | B191: ﾀｶｻｷ.ｲﾜﾀﾞｲﾗ | C191: 高崎市立岩平小学校 | D191: 高・岩平 | E191: 9 | F191: 190 | G191: 190000 | H191: 1900
A192: 1001 | B192: ｱﾝﾅｶ.ｱﾝﾅｶ | C192: 安中市立安中小学校 | D192: 安・安中 | E192: 10 | F192: 191 | G192: 191000 | H192: 1910
A193: 1002 | B193: ｱﾝﾅｶ.ﾊﾗｲﾁ | C193: 安中市立原市小学校 | D193: 安・原市 | E193: 10 | F193: 192 | G193: 192000 | H193: 1920
A194: 1003 | B194: ｱﾝﾅｶ.ｲｿﾍﾞ | C194: 安中市立磯部小学校 | D194: 安・磯部 | E194: 10 | F194: 193 | G194: 193000 | H194: 1930
A195: 1004 | B195: ｱﾝﾅｶ.ﾋｶﾞｼﾖｺﾉ | C195: 安中市立東横野小学校 | D195: 安・東横野 | E195: 10 | F195: 194 | G195: =F195*1000 -> 194000 | H195: =F195*10 -> 1940
A196: 1005 | B196: ｱﾝﾅｶ.ﾀｲﾄｳ | C196: 安中市立碓東小学校 | D196: 安・碓東 | E196: 10 | F196: 195 | G196: 195000 | H196: 1950
A197: 1006 | B197: ｱﾝﾅｶ.ｱｷﾏ | C197: 安中市立秋間小学校 | D197: 安・秋間 | E197: 10 | F197: 196 | G197: 196000 | H197: 1960
A198: 1007 | B198: ｱﾝﾅｶ.ｺﾞｶﾝ | C198: 安中市立後閑小学校 | D198: 安・後閑 | E198: 10 | F198: 197 | G198: 197000 | H198: 1970
A199: 1008 | B199: ｱﾝﾅｶ.ﾏﾂｲﾀﾞ | C199: 安中市立松井田小学校 | D199: 安・松井田 | E199: 10 | F199: 198 | G199: 198000 | H199: 1980
A200: 1009 | B200: ｱﾝﾅｶ.ｳｽｲ | C200: 安中市立臼井小学校 | D200: 安・臼井 | E200: 10 | F200: 199 | G200: 199000 | H200: 1990
... 112 more rows

Sheet 郡市データ
A1: 郡市NO | B1: 郡市名 | C1: 選手初期NO | D1: リレー初期NO
A2: 0 | B2: な し | C2: =A2*1000 -> 0 | D2: =A2*100 -> 0
A3: 1 | B3: 前 橋 | C3: =A3*1000 -> 1000 | D3: =A3*100 -> 100
A4: 2 | B4: 伊勢崎 | C4: 2000 | D4: 200
A5: 3 | B5: 佐 波 | C5: 3000 | D5: 300
A6: 4 | B6: 北群馬 | C6: 4000 | D6: 400
A7: 5 | B7: 渋 川 | C7: 5000 | D7: 500
A8: 6 | B8: 利 根 | C8: 6000 | D8: 600
A9: 7 | B9: 沼 田 | C9: 7000 | D9: 700
A10: 8 | B10: 吾 妻 | C10: 8000 | D10: 800
A11: 9 | B11: 高 崎 | C11: 9000 | D11: 900
A12: 10 | B12: 安 中 | C12: 10000 | D12: 1000
A13: 11 | B13: 甘・富 | C13: 11000 | D13: 1100
A14: 12 | B14: 藤・多 | C14: 12000 | D14: 1200
A15: 13 | B15: 桐 生 | C15: 13000 | D15: 1300
A16: 14 | B16: みどり | C16: 14000 | D16: 1400
A17: 15 | B17: 太 田 | C17: 15000 | D17: 1500
A18: 16 | B18: 邑 楽 | C18: 16000 | D18: 1600
A19: 17 | B19: 館 林 | C19: 17000 | D19: 1700

Sheet 競技データ
A1: KC | B1: N1 | C1: MX | D1: R1 | E1: R2 | F1: R3 | G1: R4 | H1: R5 | I1: R6 | J1: R7 | K1: J1 | L1: J2 | M1: J3
A2: 002 105 | B2: １００ｍ男子小学５年 | C2: 0 | D2: R0000000 | E2: R0000000 | F2: R0000000 | G2: R0000000 | H2: R0000000 | I2: R0000000 | J2: R0000000
A3: 002 106 | B3: １００ｍ男子小学６年 | C3: 0 | D3: R0000000 | E3: R0000000 | F3: R0000000 | G3: R0000000 | H3: R0000000 | I3: R0000000 | J3: R0000000
A4: 007 100 | B4: １０００ｍ男子小学５・６年 | C4: 0 | D4: R0000000 | E4: R0000000 | F4: R0000000 | G4: R0000000 | H4: R0000000 | I4: R0000000 | J4: R0000000
A5: 042 100 | B5: ５０ｍＨ男子小学５・６年 | C5: 0 | D5: R0000000 | E5: R0000000 | F5: R0000000 | G5: R0000000 | H5: R0000000 | I5: R0000000 | J5: R0000000
A6: 002 107 | B6: １００ｍ男子小学友好レース | C6: 0 | D6: R0000000 | E6: R0000000 | F6: R0000000 | G6: R0000000 | H6: R0000000 | I6: R0000000 | J6: R0000000
A7: 601 100 | B7: ４×１００ｍ男子小学５・６年 | C7: 0 | D7: R0000000 | E7: R0000000 | F7: R0000000 | G7: R0000000 | H7: R0000000 | I7: R0000000 | J7: R0000000
A8: 071 100 | B8: 走高跳男子小学５・６年 | C8: 0 | D8: R0000000 | E8: R0000000 | F8: R0000000 | G8: R0000000 | H8: R0000000 | I8: R0000000 | J8: R0000000
A9: 073 100 | B9: 走幅跳男子小学５・６年 | C9: 0 | D9: R0000000 | E9: R0000000 | F9: R0000000 | G9: R0000000 | H9: R0000000 | I9: R0000000 | J9: R0000000
A10: 092 100 | B10: ボール投男子小学５・６年 | C10: 0 | D10: R0000000 | E10: R0000000 | F10: R0000000 | G10: R0000000 | H10: R0000000 | I10: R0000000 | J10: R0000000
A11: 002 205 | B11: １００ｍ女子小学５年 | C11: 0 | D11: R0000000 | E11: R0000000 | F11: R0000000 | G11: R0000000 | H11: R0000000 | I11: R0000000 | J11: R0000000
A12: 002 206 | B12: １００ｍ女子小学６年 | C12: 0 | D12: R0000000 | E12: R0000000 | F12: R0000000 | G12: R0000000 | H12: R0000000 | I12: R0000000 | J12: R0000000
A13: 006 200 | B13: ８００ｍ女子小学５・６年 | C13: 0 | D13: R0000000 | E13: R0000000 | F13: R0000000 | G13: R0000000 | H13: R0000000 | I13: R0000000 | J13: R0000000
A14: 042 200 | B14: ５０ｍＨ女子小学５・６年 | C14: 0 | D14: R0000000 | E14: R0000000 | F14: R0000000 | G14: R0000000 | H14: R0000000 | I14: R0000000 | J14: R0000000
A15: 002 207 | B15: １００ｍ女子小学友好レース | C15: 0 | D15: R0000000 | E15: R0000000 | F15: R0000000 | G15: R0000000 | H15: R0000000 | I15: R0000000 | J15: R0000000
A16: 601 200 | B16: ４×１００ｍ女子小学５・６年 | C16: 0 | D16: R0000000 | E16: R0000000 | F16: R0000000 | G16: R0000000 | H16: R0000000 | I16: R0000000 | J16: R0000000
A17: 071 200 | B17: 走高跳女子小学５・６年 | C17: 0 | D17: R0000000 | E17: R0000000 | F17: R0000000 | G17: R0000000 | H17: R0000000 | I17: R0000000 | J17: R0000000
A18: 073 200 | B18: 走幅跳女子小学５・６年 | C18: 0 | D18: R0000000 | E18: R0000000 | F18: R0000000 | G18: R0000000 | H18: R0000000 | I18: R0000000 | J18: R0000000
A19: 092 200 | B19: ボール投女子小学５・６年 | C19: 0 | D19: R0000000 | E19: R0000000 | F19: R0000000 | G19: R0000000 | H19: R0000000 | I19: R0000000 | J19: R0000000
B21: 100ｍ | C21: R002
B22: 800ｍ | C22: R006
B23: 1000ｍ | C23: R007
B24: 50ｍH | C24: R042
B25: 走高跳 | C25: R071
B26: 走幅跳 | C26: R073
B27: ボール投げ | C27: R092
B28: リレーのみ
B29: 友好100ｍ | C29: R002
